Body Name,Date Paid,Transaction Number,Amount,Supplier Name,Supplier Type,Expense Area,Cost Centre Description,Expense Type
Cambridgeshire County Council,19-Apr-17,23012799-15199142,-291407.37,Opus Lgss (People Solutions) Ltd,Trade Supplier,Control Accounts,Uncleared bank items,Bank Overdraft Expenditure / Payments
Cambridgeshire County Council,21-Apr-17,22861016-15215235,-86248,Kisimul School,Care Establishment,S&C,Placements - Education,Independent School Placements
Cambridgeshire County Council,05-Apr-17,22981523-15142356,-13985,Cambridgeshire Community Services Nhs Trust,Trust (Other),PH,SH STI testing & treatment - Prescribed,Other Hired Contract Services
Cambridgeshire County Council,06-Apr-17,21156168-15145214,-13946.69,Public Health England,Other Public Bodies,S&C,Catering - Cook Freeze Unit (C3),Sample testing - food/drugs samples
Cambridgeshire County Council,06-Apr-17,22373940-15144030,-10563.48,Medway Council,Other Public Bodies,S&C,Placements - Social Care,Agency Placements - Out County
Cambridgeshire County Council,19-Apr-17,23065083-15199119,-7605.17,Cambridgeshire And Peterborough Nhs Foundation Trust,Trust (Other),6 - Commissioning - Quality & Transformation,Multi-Agency Safeguarding Hub (MASH),General Office Expenses & Stationery
Cambridgeshire County Council,06-Apr-17,23002290-15145494,-4655,Brookdale Healthcare Limited,Care Establishment,2 - Operations - Learning Disability,LDP Huntingdonshire Locality - Care,Respite Independent Sector
Cambridgeshire County Council,27-Apr-17,23036342-15253971,-4655,Brookdale Healthcare Limited,Care Establishment,2 - Operations - Learning Disability,LDP Huntingdonshire Locality - Care,Respite Independent Sector
Cambridgeshire County Council,27-Apr-17,23078347-15253983,-4655,Brookdale Healthcare Limited,Care Establishment,2 - Operations - Learning Disability,LDP Huntingdonshire Locality - Care,Respite Independent Sector
Cambridgeshire County Council,27-Apr-17,23078351-15253987,-4655,Brookdale Healthcare Limited,Care Establishment,2 - Operations - Learning Disability,LDP Huntingdonshire Locality - Care,Respite Independent Sector
Cambridgeshire County Council,27-Apr-17,23078358-15253994,-4655,Brookdale Healthcare Limited,Care Establishment,2 - Operations - Learning Disability,LDP Hunts special needs,Respite Independent Sector
Cambridgeshire County Council,27-Apr-17,23078359-15253995,-4655,Brookdale Healthcare Limited,Care Establishment,2 - Operations - Learning Disability,LDP Huntingdonshire Locality - Care,Respite Independent Sector
Cambridgeshire County Council,27-Apr-17,23112872-15254001,-4655,Brookdale Healthcare Limited,Care Establishment,2 - Operations - Learning Disability,LDP Hunts special needs,Respite Independent Sector
Cambridgeshire County Council,06-Apr-17,23002276-15145482,-4655,Brookdale Healthcare Limited,Care Establishment,2 - Operations - Learning Disability,LDP Huntingdonshire Locality - Care,Respite Independent Sector
Cambridgeshire County Council,06-Apr-17,23002286-15145490,-4655,Brookdale Healthcare Limited,Care Establishment,2 - Operations - Learning Disability,LDP Hunts special needs,Respite Independent Sector
Cambridgeshire County Council,06-Apr-17,23002289-15145493,-4655,Brookdale Healthcare Limited,Care Establishment,2 - Operations - Learning Disability,LDP Hunts special needs,Respite Independent Sector
Cambridgeshire County Council,27-Apr-17,23036350-15253959,-4655,Brookdale Healthcare Limited,Care Establishment,2 - Operations - Learning Disability,LDP Hunts special needs,Respite Independent Sector
Cambridgeshire County Council,27-Apr-17,23078352-15253988,-4655,Brookdale Healthcare Limited,Care Establishment,2 - Operations - Learning Disability,LDP Hunts special needs,Respite Independent Sector
Cambridgeshire County Council,27-Apr-17,23112871-15254000,-4655,Brookdale Healthcare Limited,Care Establishment,2 - Operations - Learning Disability,LDP Hunts special needs,Respite Independent Sector
Cambridgeshire County Council,27-Apr-17,23112876-15254005,-4655,Brookdale Healthcare Limited,Care Establishment,2 - Operations - Learning Disability,LDP Huntingdonshire Locality - Care,Respite Independent Sector
Cambridgeshire County Council,27-Apr-17,23112889-15254018,-4655,Brookdale Healthcare Limited,Care Establishment,2 - Operations - Learning Disability,LDP Hunts special needs,Respite Independent Sector
Cambridgeshire County Council,27-Apr-17,23112890-15254019,-4655,Brookdale Healthcare Limited,Care Establishment,2 - Operations - Learning Disability,LDP Hunts special needs,Respite Independent Sector
Cambridgeshire County Council,06-Apr-17,23002268-15145476,-4655,Brookdale Healthcare Limited,Care Establishment,2 - Operations - Learning Disability,LDP Huntingdonshire Locality - Care,Respite Independent Sector
Cambridgeshire County Council,27-Apr-17,23078340-15253976,-4655,Brookdale Healthcare Limited,Care Establishment,2 - Operations - Learning Disability,LDP Huntingdonshire Locality - Care,Respite Independent Sector
Cambridgeshire County Council,27-Apr-17,23078341-15253977,-4655,Brookdale Healthcare Limited,Care Establishment,2 - Operations - Learning Disability,LDP Huntingdonshire Locality - Care,Respite Independent Sector
Cambridgeshire County Council,27-Apr-17,23112875-15254004,-4655,Brookdale Healthcare Limited,Care Establishment,2 - Operations - Learning Disability,LDP Huntingdonshire Locality - Care,Respite Independent Sector
Cambridgeshire County Council,27-Apr-17,23036353-15253962,-4655,Brookdale Healthcare Limited,Care Establishment,2 - Operations - Learning Disability,LDP Hunts special needs,Respite Independent Sector
Cambridgeshire County Council,27-Apr-17,23036346-15253975,-4655,Brookdale Healthcare Limited,Care Establishment,2 - Operations - Learning Disability,LDP Huntingdonshire Locality - Care,Respite Independent Sector
Cambridgeshire County Council,27-Apr-17,23078353-15253989,-4655,Brookdale Healthcare Limited,Care Establishment,2 - Operations - Learning Disability,LDP Hunts special needs,Respite Independent Sector
Cambridgeshire County Council,27-Apr-17,23036335-15253964,-4655,Brookdale Healthcare Limited,Care Establishment,2 - Operations - Learning Disability,LDP Hunts special needs,Respite Independent Sector
Cambridgeshire County Council,06-Apr-17,23002274-15145481,-4655,Brookdale Healthcare Limited,Care Establishment,2 - Operations - Learning Disability,LDP Huntingdonshire Locality - Care,Respite Independent Sector
Cambridgeshire County Council,06-Apr-17,23002283-15145488,-4655,Brookdale Healthcare Limited,Care Establishment,2 - Operations - Learning Disability,LDP Hunts special needs,Respite Independent Sector
Cambridgeshire County Council,27-Apr-17,23036345-15253974,-4655,Brookdale Healthcare Limited,Care Establishment,2 - Operations - Learning Disability,LDP Huntingdonshire Locality - Care,Respite Independent Sector
Cambridgeshire County Council,06-Apr-17,23002280-15145485,-4655,Brookdale Healthcare Limited,Care Establishment,2 - Operations - Learning Disability,LDP Huntingdonshire Locality - Care,Respite Independent Sector
Cambridgeshire County Council,27-Apr-17,23036347-15253956,-4655,Brookdale Healthcare Limited,Care Establishment,2 - Operations - Learning Disability,LDP Huntingdonshire Locality - Care,Respite Independent Sector
Cambridgeshire County Council,27-Apr-17,23036348-15253957,-4655,Brookdale Healthcare Limited,Care Establishment,2 - Operations - Learning Disability,LDP Hunts special needs,Respite Independent Sector
Cambridgeshire County Council,27-Apr-17,23078354-15253990,-4655,Brookdale Healthcare Limited,Care Establishment,2 - Operations - Learning Disability,LDP Huntingdonshire Locality - Care,Respite Independent Sector
Cambridgeshire County Council,27-Apr-17,23112874-15254003,-4655,Brookdale Healthcare Limited,Care Establishment,2 - Operations - Learning Disability,LDP Huntingdonshire Locality - Care,Respite Independent Sector
Cambridgeshire County Council,27-Apr-17,23112892-15254021,-4655,Brookdale Healthcare Limited,Care Establishment,2 - Operations - Learning Disability,LDP Hunts special needs,Respite Independent Sector
Cambridgeshire County Council,06-Apr-17,23002271-15145479,-4655,Brookdale Healthcare Limited,Care Establishment,2 - Operations - Learning Disability,LDP Huntingdonshire Locality - Care,Respite Independent Sector
Cambridgeshire County Council,27-Apr-17,23036338-15253967,-4655,Brookdale Healthcare Limited,Care Establishment,2 - Operations - Learning Disability,LDP Huntingdonshire Locality - Care,Respite Independent Sector
Cambridgeshire County Council,27-Apr-17,23112879-15254008,-4655,Brookdale Healthcare Limited,Care Establishment,2 - Operations - Learning Disability,LDP Huntingdonshire Locality - Care,Respite Independent Sector
Cambridgeshire County Council,28-Apr-17,22865463-15259269,-4384.29,Chs Group,Care Establishment,S&C,Placements - Social Care,Agency Placements - In Cambs
Cambridgeshire County Council,27-Apr-17,23001969-15241298,-3686.49,Redacted Personal Data,Individual,2 - Commissioning - Older people Pool,Older People - City & South,Direct Payments - Social Services
Cambridgeshire County Council,07-Apr-17,22461816-15164200,-3556.01,Foster Care Associates Ltd (Fca),Care Establishment,S&C,Placements - Social Care,Agency Placements - Out County
Cambridgeshire County Council,07-Apr-17,22460839-15164197,-3441.3,Foster Care Associates Ltd (Fca),Care Establishment,S&C,Placements - Social Care,Agency Placements - Out County
Cambridgeshire County Council,26-Apr-17,22974790-15227449,-3373.4,Little Acorns Fostering Ltd,Care Establishment,S&C,Placements - Social Care,Agency Placements - Out County
Cambridgeshire County Council,27-Apr-17,23112885-15254014,-3325,Brookdale Healthcare Limited,Care Establishment,2 - Operations - Learning Disability,LDP Huntingdonshire Locality - Care,Respite Independent Sector
Cambridgeshire County Council,06-Apr-17,23002272-15145480,-3325,Brookdale Healthcare Limited,Care Establishment,2 - Operations - Learning Disability,LDP Hunts special needs,Respite Independent Sector
Cambridgeshire County Council,27-Apr-17,23036339-15253968,-3325,Brookdale Healthcare Limited,Care Establishment,2 - Operations - Learning Disability,LDP Huntingdonshire Locality - Care,Respite Independent Sector
Cambridgeshire County Council,27-Apr-17,23078356-15253992,-3325,Brookdale Healthcare Limited,Care Establishment,2 - Operations - Learning Disability,LDP Huntingdonshire Locality - Care,Respite Independent Sector
Cambridgeshire County Council,03-Apr-17,22919670-15131217,-3294.86,Little Acorns Fostering Ltd,Care Establishment,S&C,Placements - Social Care,Agency Placements - Out County
Cambridgeshire County Council,27-Apr-17,23003081-15233328,-2916.67,Kisimul School,Care Establishment,3 - Operations - Countywide Services,LDP Young Adults - Care,Residential Independent Sector
Cambridgeshire County Council,27-Apr-17,23003057-15233304,-2916.67,Kisimul School,Care Establishment,3 - Operations - Countywide Services,LDP Young Adults - Care,Residential Independent Sector
Cambridgeshire County Council,27-Apr-17,23003058-15233305,-2916.67,Kisimul School,Care Establishment,3 - Operations - Countywide Services,LDP Young Adults - Care,Residential Independent Sector
Cambridgeshire County Council,27-Apr-17,23003062-15233309,-2916.67,Kisimul School,Care Establishment,3 - Operations - Countywide Services,LDP Young Adults - Care,Residential Independent Sector
Cambridgeshire County Council,27-Apr-17,23003063-15233310,-2916.67,Kisimul School,Care Establishment,3 - Operations - Countywide Services,LDP Young Adults - Care,Residential Independent Sector
Cambridgeshire County Council,27-Apr-17,23001810-15233269,-2916.67,Kisimul School,Care Establishment,3 - Operations - Countywide Services,LDP Young Adults - Care,Residential Independent Sector
Cambridgeshire County Council,27-Apr-17,23001812-15233275,-2916.67,Kisimul School,Care Establishment,3 - Operations - Countywide Services,LDP Young Adults - Care,Residential Independent Sector
Cambridgeshire County Council,27-Apr-17,23001814-15233277,-2916.67,Kisimul School,Care Establishment,3 - Operations - Countywide Services,LDP Young Adults - Care,Residential Independent Sector
Cambridgeshire County Council,27-Apr-17,23001818-15233281,-2916.67,Kisimul School,Care Establishment,3 - Operations - Countywide Services,LDP Young Adults - Care,Residential Independent Sector
Cambridgeshire County Council,27-Apr-17,23003066-15233313,-2916.67,Kisimul School,Care Establishment,3 - Operations - Countywide Services,LDP Young Adults - Care,Residential Independent Sector
Cambridgeshire County Council,27-Apr-17,23003083-15233330,-2916.67,Kisimul School,Care Establishment,3 - Operations - Countywide Services,LDP Young Adults - Care,Residential Independent Sector
Cambridgeshire County Council,27-Apr-17,22999954-15233272,-2916.67,Kisimul School,Care Establishment,3 - Operations - Countywide Services,LDP Young Adults - Care,Residential Independent Sector
Cambridgeshire County Council,27-Apr-17,23001813-15233276,-2916.67,Kisimul School,Care Establishment,3 - Operations - Countywide Services,LDP Young Adults - Care,Residential Independent Sector
Cambridgeshire County Council,27-Apr-17,23001819-15233282,-2916.67,Kisimul School,Care Establishment,3 - Operations - Countywide Services,LDP Young Adults - Care,Residential Independent Sector
Cambridgeshire County Council,27-Apr-17,23003049-15233296,-2916.67,Kisimul School,Care Establishment,3 - Operations - Countywide Services,LDP Young Adults - Care,Residential Independent Sector
Cambridgeshire County Council,27-Apr-17,23003053-15233300,-2916.67,Kisimul School,Care Establishment,3 - Operations - Countywide Services,LDP Young Adults - Care,Residential Independent Sector
Cambridgeshire County Council,27-Apr-17,23003073-15233320,-2916.67,Kisimul School,Care Establishment,3 - Operations - Countywide Services,LDP Young Adults - Care,Residential Independent Sector
Cambridgeshire County Council,27-Apr-17,23003082-15233329,-2916.67,Kisimul School,Care Establishment,3 - Operations - Countywide Services,LDP Young Adults - Care,Residential Independent Sector
Cambridgeshire County Council,27-Apr-17,23001801-15233260,-2916.67,Kisimul School,Care Establishment,3 - Operations - Countywide Services,LDP Young Adults - Care,Residential Independent Sector
Cambridgeshire County Council,27-Apr-17,23001807-15233266,-2916.67,Kisimul School,Care Establishment,3 - Operations - Countywide Services,LDP Young Adults - Care,Residential Independent Sector
Cambridgeshire County Council,27-Apr-17,22999953-15233271,-2916.67,Kisimul School,Care Establishment,3 - Operations - Countywide Services,LDP Young Adults - Care,Residential Independent Sector
Cambridgeshire County Council,27-Apr-17,23003085-15233332,-2916.67,Kisimul School,Care Establishment,3 - Operations - Countywide Services,LDP Young Adults - Care,Residential Independent Sector
Cambridgeshire County Council,27-Apr-17,23001800-15233259,-2916.67,Kisimul School,Care Establishment,3 - Operations - Countywide Services,LDP Young Adults - Care,Residential Independent Sector
Cambridgeshire County Council,27-Apr-17,23003054-15233301,-2916.67,Kisimul School,Care Establishment,3 - Operations - Countywide Services,LDP Young Adults - Care,Residential Independent Sector
Cambridgeshire County Council,27-Apr-17,23003070-15233317,-2916.67,Kisimul School,Care Establishment,3 - Operations - Countywide Services,LDP Young Adults - Care,Residential Independent Sector
Cambridgeshire County Council,27-Apr-17,23003074-15233321,-2916.67,Kisimul School,Care Establishment,3 - Operations - Countywide Services,LDP Young Adults - Care,Residential Independent Sector
Cambridgeshire County Council,27-Apr-17,23003080-15233327,-2916.67,Kisimul School,Care Establishment,3 - Operations - Countywide Services,LDP Young Adults - Care,Residential Independent Sector
Cambridgeshire County Council,27-Apr-17,23001805-15233264,-2916.67,Kisimul School,Care Establishment,3 - Operations - Countywide Services,LDP Young Adults - Care,Residential Independent Sector
Cambridgeshire County Council,27-Apr-17,23001826-15233289,-2916.67,Kisimul School,Care Establishment,3 - Operations - Countywide Services,LDP Young Adults - Care,Residential Independent Sector
Cambridgeshire County Council,27-Apr-17,23003055-15233302,-2916.67,Kisimul School,Care Establishment,3 - Operations - Countywide Services,LDP Young Adults - Care,Residential Independent Sector
Cambridgeshire County Council,27-Apr-17,23003056-15233303,-2916.67,Kisimul School,Care Establishment,3 - Operations - Countywide Services,LDP Young Adults - Care,Residential Independent Sector
Cambridgeshire County Council,27-Apr-17,23003075-15233322,-2916.67,Kisimul School,Care Establishment,3 - Operations - Countywide Services,LDP Young Adults - Care,Residential Independent Sector
Cambridgeshire County Council,27-Apr-17,23001815-15233278,-2916.67,Kisimul School,Care Establishment,3 - Operations - Countywide Services,LDP Young Adults - Care,Residential Independent Sector
Cambridgeshire County Council,27-Apr-17,23001828-15233291,-2916.67,Kisimul School,Care Establishment,3 - Operations - Countywide Services,LDP Young Adults - Care,Residential Independent Sector
Cambridgeshire County Council,27-Apr-17,23003052-15233299,-2916.67,Kisimul School,Care Establishment,3 - Operations - Countywide Services,LDP Young Adults - Care,Residential Independent Sector
Cambridgeshire County Council,03-Apr-17,22874811-15131322,-2500.2,Tarmac Carillion Joint Venture,Trade Supplier,Local Infrastructure & Street Management,Local Projects,Capital WIP - roads  -  Construction cost
Cambridgeshire County Council,27-Apr-17,22999955-15233273,-2500,Kisimul School,Care Establishment,3 - Operations - Countywide Services,LDP Young Adults - Care,Residential Independent Sector
Cambridgeshire County Council,11-Apr-17,22865465-15171292,-2404.29,Chs Group,Care Establishment,S&C,Placements - Social Care,Childrens Lodgings
Cambridgeshire County Council,27-Apr-17,23003514-15251742,-2337.29,Dimensions (Uk) Ltd,Care Establishment,2 - Operations - Learning Disability,LDP South Cambs - Special Needs,Supported Living
Cambridgeshire County Council,27-Apr-17,23113428-15251889,-2337.29,Dimensions (Uk) Ltd,Care Establishment,2 - Operations - Learning Disability,LDP Cambs City - Special Needs,Supported Living
Cambridgeshire County Council,27-Apr-17,23036220-15251752,-2337.29,Dimensions (Uk) Ltd,Care Establishment,2 - Operations - Learning Disability,LDP South Cambs - Special Needs,Supported Living
Cambridgeshire County Council,27-Apr-17,23074995-15251779,-2337.29,Dimensions (Uk) Ltd,Care Establishment,2 - Operations - Learning Disability,LDP Cambs City - Special Needs,Supported Living
Cambridgeshire County Council,27-Apr-17,23074997-15251781,-2337.29,Dimensions (Uk) Ltd,Care Establishment,2 - Operations - Learning Disability,LDP South Cambs - Special Needs,Supported Living
Cambridgeshire County Council,27-Apr-17,23113424-15251885,-2337.29,Dimensions (Uk) Ltd,Care Establishment,2 - Operations - Learning Disability,LDP South Cambs - Special Needs,Supported Living
Cambridgeshire County Council,27-Apr-17,23003500-15251728,-2337.29,Dimensions (Uk) Ltd,Care Establishment,2 - Operations - Learning Disability,LDP South Cambs - Special Needs,Supported Living
Cambridgeshire County Council,27-Apr-17,23003505-15251733,-2337.29,Dimensions (Uk) Ltd,Care Establishment,2 - Operations - Learning Disability,LDP South Cambs - Special Needs,Supported Living
Cambridgeshire County Council,27-Apr-17,23036231-15251763,-2337.29,Dimensions (Uk) Ltd,Care Establishment,2 - Operations - Learning Disability,LDP South Cambs - Special Needs,Supported Living
Cambridgeshire County Council,27-Apr-17,23113431-15251892,-2337.29,Dimensions (Uk) Ltd,Care Establishment,2 - Operations - Learning Disability,LDP South Cambs - Special Needs,Supported Living
Cambridgeshire County Council,27-Apr-17,23113441-15251902,-2337.29,Dimensions (Uk) Ltd,Care Establishment,2 - Operations - Learning Disability,LDP South Cambs - Special Needs,Supported Living
Cambridgeshire County Council,27-Apr-17,23003516-15251744,-2337.29,Dimensions (Uk) Ltd,Care Establishment,2 - Operations - Learning Disability,LDP Cambs City - Special Needs,Supported Living
Cambridgeshire County Council,27-Apr-17,23003517-15251745,-2337.29,Dimensions (Uk) Ltd,Care Establishment,2 - Operations - Learning Disability,LDP Cambs City - Special Needs,Supported Living
Cambridgeshire County Council,27-Apr-17,23036216-15251748,-2337.29,Dimensions (Uk) Ltd,Care Establishment,2 - Operations - Learning Disability,LDP Cambs City - Special Needs,Supported Living
Cambridgeshire County Council,27-Apr-17,23036227-15251759,-2337.29,Dimensions (Uk) Ltd,Care Establishment,2 - Operations - Learning Disability,LDP South Cambs - Special Needs,Supported Living
Cambridgeshire County Council,27-Apr-17,23074990-15251774,-2337.29,Dimensions (Uk) Ltd,Care Establishment,2 - Operations - Learning Disability,LDP Cambs City - Special Needs,Supported Living
Cambridgeshire County Council,27-Apr-17,23113422-15251883,-2337.29,Dimensions (Uk) Ltd,Care Establishment,2 - Operations - Learning Disability,LDP South Cambs - Special Needs,Supported Living
Cambridgeshire County Council,27-Apr-17,23113434-15251895,-2337.29,Dimensions (Uk) Ltd,Care Establishment,2 - Operations - Learning Disability,LDP Cambs City - Special Needs,Supported Living
Cambridgeshire County Council,27-Apr-17,23074987-15251771,-2337.29,Dimensions (Uk) Ltd,Care Establishment,2 - Operations - Learning Disability,LDP Cambs City - Special Needs,Supported Living
Cambridgeshire County Council,27-Apr-17,23074992-15251776,-2337.29,Dimensions (Uk) Ltd,Care Establishment,2 - Operations - Learning Disability,LDP Cambs City - Special Needs,Supported Living
Cambridgeshire County Council,27-Apr-17,23003509-15251737,-2337.29,Dimensions (Uk) Ltd,Care Establishment,2 - Operations - Learning Disability,LDP Cambs City - Special Needs,Supported Living
Cambridgeshire County Council,27-Apr-17,23036228-15251760,-2337.29,Dimensions (Uk) Ltd,Care Establishment,2 - Operations - Learning Disability,LDP Cambs City - Special Needs,Supported Living
Cambridgeshire County Council,27-Apr-17,23036229-15251761,-2337.29,Dimensions (Uk) Ltd,Care Establishment,2 - Operations - Learning Disability,LDP South Cambs - Special Needs,Supported Living
Cambridgeshire County Council,27-Apr-17,23113430-15251891,-2337.29,Dimensions (Uk) Ltd,Care Establishment,2 - Operations - Learning Disability,LDP Cambs City - Special Needs,Supported Living
Cambridgeshire County Council,27-Apr-17,23003504-15251732,-2337.29,Dimensions (Uk) Ltd,Care Establishment,2 - Operations - Learning Disability,LDP South Cambs - Special Needs,Supported Living
Cambridgeshire County Council,27-Apr-17,23003508-15251736,-2337.29,Dimensions (Uk) Ltd,Care Establishment,2 - Operations - Learning Disability,LDP Cambs City - Special Needs,Supported Living
Cambridgeshire County Council,27-Apr-17,23074985-15251769,-2337.29,Dimensions (Uk) Ltd,Care Establishment,2 - Operations - Learning Disability,LDP Cambs City - Special Needs,Supported Living
Cambridgeshire County Council,27-Apr-17,23113433-15251894,-2337.29,Dimensions (Uk) Ltd,Care Establishment,2 - Operations - Learning Disability,LDP South Cambs - Special Needs,Supported Living
Cambridgeshire County Council,27-Apr-17,23036222-15251754,-2337.29,Dimensions (Uk) Ltd,Care Establishment,2 - Operations - Learning Disability,LDP South Cambs - Special Needs,Supported Living
Cambridgeshire County Council,27-Apr-17,23036230-15251762,-2337.29,Dimensions (Uk) Ltd,Care Establishment,2 - Operations - Learning Disability,LDP Cambs City - Special Needs,Supported Living
Cambridgeshire County Council,27-Apr-17,23074991-15251775,-2337.29,Dimensions (Uk) Ltd,Care Establishment,2 - Operations - Learning Disability,LDP Cambs City - Special Needs,Supported Living
Cambridgeshire County Council,27-Apr-17,23074996-15251780,-2337.29,Dimensions (Uk) Ltd,Care Establishment,2 - Operations - Learning Disability,LDP Cambs City - Special Needs,Supported Living
Cambridgeshire County Council,03-Apr-17,22919671-15131218,-2125.71,Little Acorns Fostering Ltd,Care Establishment,S&C,Placements - Social Care,Agency Placements - Out County
Cambridgeshire County Council,06-Apr-17,23002746-15150951,-1890.26,Haddon House,Care Establishment,2 - Operations - Learning Disability,LDP Huntingdonshire Locality - Care,Residential Independent Sector
Cambridgeshire County Council,06-Apr-17,23002742-15150955,-1890.26,Haddon House,Care Establishment,2 - Operations - Learning Disability,LDP Huntingdonshire Locality - Care,Residential Independent Sector
Cambridgeshire County Council,26-Apr-17,23070926-15227516,-1800,Sixteen Plus,Care Establishment,S&C,Placements - Social Care,Agency Placements - In Cambs
Cambridgeshire County Council,27-Apr-17,23116919-15245291,-1788,Glennfield Care Centre (Op),Care Establishment,5 - Commissioning - Mental Health & Supporting People,OP Blocks - Care Placements,Residential Independent Sector
Cambridgeshire County Council,27-Apr-17,23100726-15245198,-1788,Glennfield Care Centre (Op),Care Establishment,5 - Commissioning - Mental Health & Supporting People,OP Blocks - Care Placements,Residential Independent Sector
Cambridgeshire County Council,27-Apr-17,23106909-15245257,-1788,Glennfield Care Centre (Op),Care Establishment,5 - Commissioning - Mental Health & Supporting People,OP Blocks - Care Placements,Residential Independent Sector
Cambridgeshire County Council,27-Apr-17,23106889-15245251,-1788,Glennfield Care Centre (Op),Care Establishment,5 - Commissioning - Mental Health & Supporting People,OP Blocks - Care Placements,Residential Independent Sector
Cambridgeshire County Council,27-Apr-17,23106955-15245267,-1788,Glennfield Care Centre (Op),Care Establishment,5 - Commissioning - Mental Health & Supporting People,OP Blocks - Care Placements,Residential Independent Sector
Cambridgeshire County Council,27-Apr-17,23100757-15245206,-1788,Glennfield Care Centre (Op),Care Establishment,5 - Commissioning - Mental Health & Supporting People,OP Blocks - Care Placements,Residential Independent Sector
Cambridgeshire County Council,27-Apr-17,23100775-15245209,-1788,Glennfield Care Centre (Op),Care Establishment,5 - Commissioning - Mental Health & Supporting People,OP Blocks - Care Placements,Residential Independent Sector
Cambridgeshire County Council,27-Apr-17,23100792-15245214,-1788,Glennfield Care Centre (Op),Care Establishment,5 - Commissioning - Mental Health & Supporting People,OP Blocks - Care Placements,Residential Independent Sector
Cambridgeshire County Council,27-Apr-17,23106897-15245252,-1788,Glennfield Care Centre (Op),Care Establishment,5 - Commissioning - Mental Health & Supporting People,OP Blocks - Care Placements,Residential Independent Sector
Cambridgeshire County Council,27-Apr-17,23106935-15245263,-1788,Glennfield Care Centre (Op),Care Establishment,5 - Commissioning - Mental Health & Supporting People,OP Blocks - Care Placements,Residential Independent Sector
Cambridgeshire County Council,27-Apr-17,23100756-15245205,-1788,Glennfield Care Centre (Op),Care Establishment,5 - Commissioning - Mental Health & Supporting People,OP Blocks - Care Placements,Residential Independent Sector
Cambridgeshire County Council,27-Apr-17,23106943-15245265,-1788,Glennfield Care Centre (Op),Care Establishment,5 - Commissioning - Mental Health & Supporting People,OP Blocks - Care Placements,Residential Independent Sector
Cambridgeshire County Council,27-Apr-17,23106944-15245266,-1788,Glennfield Care Centre (Op),Care Establishment,5 - Commissioning - Mental Health & Supporting People,OP Blocks - Care Placements,Residential Independent Sector
Cambridgeshire County Council,27-Apr-17,23106899-15245254,-1788,Glennfield Care Centre (Op),Care Establishment,5 - Commissioning - Mental Health & Supporting People,OP Blocks - Care Placements,Residential Independent Sector
Cambridgeshire County Council,27-Apr-17,23106936-15245264,-1788,Glennfield Care Centre (Op),Care Establishment,5 - Commissioning - Mental Health & Supporting People,OP Blocks - Care Placements,Residential Independent Sector
Cambridgeshire County Council,27-Apr-17,23116918-15245290,-1788,Glennfield Care Centre (Op),Care Establishment,5 - Commissioning - Mental Health & Supporting People,OP Blocks - Care Placements,Residential Independent Sector
Cambridgeshire County Council,27-Apr-17,23100718-15245196,-1788,Glennfield Care Centre (Op),Care Establishment,5 - Commissioning - Mental Health & Supporting People,OP Blocks - Care Placements,Residential Independent Sector
Cambridgeshire County Council,27-Apr-17,23106887-15245250,-1788,Glennfield Care Centre (Op),Care Establishment,5 - Commissioning - Mental Health & Supporting People,OP Blocks - Care Placements,Residential Independent Sector
Cambridgeshire County Council,27-Apr-17,23106963-15245269,-1788,Glennfield Care Centre (Op),Care Establishment,5 - Commissioning - Mental Health & Supporting People,OP Blocks - Care Placements,Residential Independent Sector
Cambridgeshire County Council,11-Apr-17,22803567-15171005,-1680,Sancton Wood School,Nursery,S&C,Procurement - TA Therapy in Special Schools,Other Hired Contract Services
Cambridgeshire County Council,11-Apr-17,22773321-15171346,-1631.76,Compass Fostering,Care Establishment,S&C,Placements - Social Care,Agency Placements - In Cambs
Cambridgeshire County Council,27-Apr-17,23100785-15245212,-1532.57,Glennfield Care Centre (Op),Care Establishment,5 - Commissioning - Mental Health & Supporting People,OP Blocks - Care Placements,Residential Independent Sector
Cambridgeshire County Council,27-Apr-17,23079085-15232592,-1328.7,Social Care Solutions Ltd,Care Establishment,2 - Operations - Learning Disability,LDP Fens - Special Needs,Supported Living
Cambridgeshire County Council,27-Apr-17,23078382-15232568,-1328.7,Social Care Solutions Ltd,Care Establishment,2 - Operations - Learning Disability,LDP Fens - Special Needs,Supported Living
Cambridgeshire County Council,27-Apr-17,23104267-15250215,-1300,Farrington Care Homes Ltd T/A Woodlands Residential Care Home,Care Establishment,3 - Operations - Countywide Services,Countywide PD Service - Care,Respite Independent Sector
Cambridgeshire County Council,27-Apr-17,23041076-15236100,-1266.59,2 Cheveril Lane (Voyage),Care Establishment,2 - Operations - Learning Disability,LDP Hunts special needs,Supported Living
Cambridgeshire County Council,27-Apr-17,23041869-15236108,-1266.59,2 Cheveril Lane (Voyage),Care Establishment,2 - Operations - Learning Disability,LDP Huntingdonshire Locality - Care,Supported Living
Cambridgeshire County Council,27-Apr-17,22995189-15236072,-1266.59,2 Cheveril Lane (Voyage),Care Establishment,2 - Operations - Learning Disability,LDP Hunts special needs,Supported Living
Cambridgeshire County Council,27-Apr-17,22995190-15236073,-1266.59,2 Cheveril Lane (Voyage),Care Establishment,2 - Operations - Learning Disability,LDP Hunts special needs,Supported Living
Cambridgeshire County Council,27-Apr-17,22995197-15236080,-1266.59,2 Cheveril Lane (Voyage),Care Establishment,2 - Operations - Learning Disability,LDP Hunts special needs,Supported Living
Cambridgeshire County Council,27-Apr-17,22995201-15236084,-1266.59,2 Cheveril Lane (Voyage),Care Establishment,2 - Operations - Learning Disability,LDP Huntingdonshire Locality - Care,Supported Living
Cambridgeshire County Council,27-Apr-17,23041069-15236093,-1266.59,2 Cheveril Lane (Voyage),Care Establishment,2 - Operations - Learning Disability,LDP Huntingdonshire Locality - Care,Supported Living
Cambridgeshire County Council,27-Apr-17,23078627-15236128,-1266.59,2 Cheveril Lane (Voyage),Care Establishment,2 - Operations - Learning Disability,LDP Hunts special needs,Supported Living
Cambridgeshire County Council,27-Apr-17,23110932-15236149,-1266.59,2 Cheveril Lane (Voyage),Care Establishment,2 - Operations - Learning Disability,LDP Huntingdonshire Locality - Care,Supported Living
Cambridgeshire County Council,27-Apr-17,23110940-15236155,-1266.59,2 Cheveril Lane (Voyage),Care Establishment,2 - Operations - Learning Disability,LDP Huntingdonshire Locality - Care,Supported Living
Cambridgeshire County Council,27-Apr-17,22995187-15236070,-1266.59,2 Cheveril Lane (Voyage),Care Establishment,2 - Operations - Learning Disability,LDP Hunts special needs,Supported Living
Cambridgeshire County Council,27-Apr-17,22995200-15236083,-1266.59,2 Cheveril Lane (Voyage),Care Establishment,2 - Operations - Learning Disability,LDP Huntingdonshire Locality - Care,Supported Living
Cambridgeshire County Council,27-Apr-17,23041077-15236101,-1266.59,2 Cheveril Lane (Voyage),Care Establishment,2 - Operations - Learning Disability,LDP Hunts special needs,Supported Living
Cambridgeshire County Council,27-Apr-17,23078608-15236109,-1266.59,2 Cheveril Lane (Voyage),Care Establishment,2 - Operations - Learning Disability,LDP Huntingdonshire Locality - Care,Supported Living
Cambridgeshire County Council,27-Apr-17,23078613-15236114,-1266.59,2 Cheveril Lane (Voyage),Care Establishment,2 - Operations - Learning Disability,LDP Hunts special needs,Supported Living
Cambridgeshire County Council,27-Apr-17,23078615-15236116,-1266.59,2 Cheveril Lane (Voyage),Care Establishment,2 - Operations - Learning Disability,LDP Huntingdonshire Locality - Care,Supported Living
Cambridgeshire County Council,27-Apr-17,23110942-15236157,-1266.59,2 Cheveril Lane (Voyage),Care Establishment,2 - Operations - Learning Disability,LDP Huntingdonshire Locality - Care,Supported Living
Cambridgeshire County Council,27-Apr-17,22995205-15236088,-1266.59,2 Cheveril Lane (Voyage),Care Establishment,2 - Operations - Learning Disability,LDP Huntingdonshire Locality - Care,Supported Living
Cambridgeshire County Council,27-Apr-17,23078611-15236112,-1266.59,2 Cheveril Lane (Voyage),Care Establishment,2 - Operations - Learning Disability,LDP Hunts special needs,Supported Living
Cambridgeshire County Council,27-Apr-17,23110937-15236153,-1266.59,2 Cheveril Lane (Voyage),Care Establishment,2 - Operations - Learning Disability,LDP Hunts special needs,Supported Living
Cambridgeshire County Council,27-Apr-17,22995195-15236078,-1266.59,2 Cheveril Lane (Voyage),Care Establishment,2 - Operations - Learning Disability,LDP Hunts special needs,Supported Living
Cambridgeshire County Council,27-Apr-17,23078622-15236123,-1266.59,2 Cheveril Lane (Voyage),Care Establishment,2 - Operations - Learning Disability,LDP Huntingdonshire Locality - Care,Supported Living
Cambridgeshire County Council,27-Apr-17,23078626-15236127,-1266.59,2 Cheveril Lane (Voyage),Care Establishment,2 - Operations - Learning Disability,LDP Hunts special needs,Supported Living
Cambridgeshire County Council,27-Apr-17,23110919-15236138,-1266.59,2 Cheveril Lane (Voyage),Care Establishment,2 - Operations - Learning Disability,LDP Huntingdonshire Locality - Care,Supported Living
Cambridgeshire County Council,27-Apr-17,23110921-15236140,-1266.59,2 Cheveril Lane (Voyage),Care Establishment,2 - Operations - Learning Disability,LDP Huntingdonshire Locality - Care,Supported Living
Cambridgeshire County Council,27-Apr-17,23041867-15236106,-1266.59,2 Cheveril Lane (Voyage),Care Establishment,2 - Operations - Learning Disability,LDP Huntingdonshire Locality - Care,Supported Living
Cambridgeshire County Council,27-Apr-17,23110935-15236151,-1266.59,2 Cheveril Lane (Voyage),Care Establishment,2 - Operations - Learning Disability,LDP Hunts special needs,Supported Living
Cambridgeshire County Council,27-Apr-17,23110943-15236158,-1266.59,2 Cheveril Lane (Voyage),Care Establishment,2 - Operations - Learning Disability,LDP Huntingdonshire Locality - Care,Supported Living
Cambridgeshire County Council,27-Apr-17,22995203-15236086,-1266.59,2 Cheveril Lane (Voyage),Care Establishment,2 - Operations - Learning Disability,LDP Hunts special needs,Supported Living
Cambridgeshire County Council,27-Apr-17,23041074-15236098,-1266.59,2 Cheveril Lane (Voyage),Care Establishment,2 - Operations - Learning Disability,LDP Hunts special needs,Supported Living
Cambridgeshire County Council,27-Apr-17,23041863-15236102,-1266.59,2 Cheveril Lane (Voyage),Care Establishment,2 - Operations - Learning Disability,LDP Huntingdonshire Locality - Care,Supported Living
Cambridgeshire County Council,27-Apr-17,23078624-15236125,-1266.59,2 Cheveril Lane (Voyage),Care Establishment,2 - Operations - Learning Disability,LDP Huntingdonshire Locality - Care,Supported Living
Cambridgeshire County Council,27-Apr-17,23110925-15236143,-1266.59,2 Cheveril Lane (Voyage),Care Establishment,2 - Operations - Learning Disability,LDP Hunts special needs,Supported Living
Cambridgeshire County Council,27-Apr-17,23041075-15236099,-1266.59,2 Cheveril Lane (Voyage),Care Establishment,2 - Operations - Learning Disability,LDP Hunts special needs,Supported Living
Cambridgeshire County Council,27-Apr-17,23041865-15236104,-1266.59,2 Cheveril Lane (Voyage),Care Establishment,2 - Operations - Learning Disability,LDP Huntingdonshire Locality - Care,Supported Living
Cambridgeshire County Council,27-Apr-17,23078620-15236121,-1266.59,2 Cheveril Lane (Voyage),Care Establishment,2 - Operations - Learning Disability,LDP Huntingdonshire Locality - Care,Supported Living
Cambridgeshire County Council,27-Apr-17,23108002-15236543,-1210.17,Redacted Personal Data,Individual,2 - Operations - Learning Disability,LDP City Locality - Care,Residential Independent Sector
Cambridgeshire County Council,27-Apr-17,23108013-15236554,-1210.17,Redacted Personal Data,Individual,2 - Operations - Learning Disability,LDP City Locality - Care,Residential Independent Sector
Cambridgeshire County Council,06-Apr-17,23000512-15149550,-1198.04,Caretech Community Services,Care Establishment,2 - Operations - Learning Disability,LDP South Cambs Locality - Care,Residential Independent Sector
Cambridgeshire County Council,06-Apr-17,23000487-15149553,-1198.04,Caretech Community Services,Care Establishment,2 - Operations - Learning Disability,LDP South Cambs Locality - Care,Residential Independent Sector
Cambridgeshire County Council,06-Apr-17,23000494-15149560,-1198.04,Caretech Community Services,Care Establishment,2 - Operations - Learning Disability,LDP South Cambs Locality - Care,Residential Independent Sector
Cambridgeshire County Council,06-Apr-17,23002542-15149589,-1198.04,Caretech Community Services,Care Establishment,2 - Operations - Learning Disability,LDP South Cambs Locality - Care,Residential Independent Sector
Cambridgeshire County Council,06-Apr-17,23002550-15149597,-1198.04,Caretech Community Services,Care Establishment,2 - Operations - Learning Disability,LDP South Cambs Locality - Care,Residential Independent Sector
Cambridgeshire County Council,12-Apr-17,23040533-15179320,-1198.04,Caretech Community Services,Care Establishment,2 - Operations - Learning Disability,LDP South Cambs - Special Needs,Residential Independent Sector
Cambridgeshire County Council,12-Apr-17,23040542-15179329,-1198.04,Caretech Community Services,Care Establishment,2 - Operations - Learning Disability,LDP South Cambs Locality - Care,Residential Independent Sector
Cambridgeshire County Council,12-Apr-17,23040510-15179297,-1198.04,Caretech Community Services,Care Establishment,2 - Operations - Learning Disability,LDP South Cambs Locality - Care,Residential Independent Sector
Cambridgeshire County Council,20-Apr-17,23078483-15205275,-1198.04,Caretech Community Services,Care Establishment,2 - Operations - Learning Disability,LDP South Cambs - Special Needs,Residential Independent Sector
Cambridgeshire County Council,20-Apr-17,23078487-15205279,-1198.04,Caretech Community Services,Care Establishment,2 - Operations - Learning Disability,LDP South Cambs - Special Needs,Residential Independent Sector
Cambridgeshire County Council,20-Apr-17,23078489-15205281,-1198.04,Caretech Community Services,Care Establishment,2 - Operations - Learning Disability,LDP South Cambs Locality - Care,Residential Independent Sector
Cambridgeshire County Council,20-Apr-17,23078510-15205302,-1198.04,Caretech Community Services,Care Establishment,2 - Operations - Learning Disability,LDP South Cambs Locality - Care,Residential Independent Sector
Cambridgeshire County Council,27-Apr-17,23107177-15239064,-1198.04,Caretech Community Services,Care Establishment,2 - Operations - Learning Disability,LDP South Cambs - Special Needs,Residential Independent Sector
Cambridgeshire County Council,27-Apr-17,23107179-15239066,-1198.04,Caretech Community Services,Care Establishment,2 - Operations - Learning Disability,LDP South Cambs - Special Needs,Residential Independent Sector
Cambridgeshire County Council,27-Apr-17,23107181-15239068,-1198.04,Caretech Community Services,Care Establishment,2 - Operations - Learning Disability,LDP South Cambs Locality - Care,Residential Independent Sector
Cambridgeshire County Council,27-Apr-17,23107189-15239076,-1198.04,Caretech Community Services,Care Establishment,2 - Operations - Learning Disability,LDP South Cambs - Special Needs,Residential Independent Sector
Cambridgeshire County Council,27-Apr-17,23113183-15239094,-1198.04,Caretech Community Services,Care Establishment,2 - Operations - Learning Disability,LDP South Cambs Locality - Care,Residential Independent Sector
Cambridgeshire County Council,27-Apr-17,23113187-15239098,-1198.04,Caretech Community Services,Care Establishment,2 - Operations - Learning Disability,LDP South Cambs Locality - Care,Residential Independent Sector
Cambridgeshire County Council,12-Apr-17,23039497-15179341,-1198.04,Caretech Community Services,Care Establishment,2 - Operations - Learning Disability,LDP South Cambs Locality - Care,Residential Independent Sector
Cambridgeshire County Council,12-Apr-17,23040506-15179293,-1198.04,Caretech Community Services,Care Establishment,2 - Operations - Learning Disability,LDP South Cambs - Special Needs,Residential Independent Sector
Cambridgeshire County Council,12-Apr-17,23040508-15179295,-1198.04,Caretech Community Services,Care Establishment,2 - Operations - Learning Disability,LDP South Cambs Locality - Care,Residential Independent Sector
Cambridgeshire County Council,12-Apr-17,23040511-15179298,-1198.04,Caretech Community Services,Care Establishment,2 - Operations - Learning Disability,LDP South Cambs Locality - Care,Residential Independent Sector
Cambridgeshire County Council,12-Apr-17,23040513-15179300,-1198.04,Caretech Community Services,Care Establishment,2 - Operations - Learning Disability,LDP South Cambs Locality - Care,Residential Independent Sector
Cambridgeshire County Council,12-Apr-17,23040516-15179303,-1198.04,Caretech Community Services,Care Establishment,2 - Operations - Learning Disability,LDP South Cambs Locality - Care,Residential Independent Sector
Cambridgeshire County Council,20-Apr-17,23078502-15205294,-1198.04,Caretech Community Services,Care Establishment,2 - Operations - Learning Disability,LDP South Cambs Locality - Care,Residential Independent Sector
Cambridgeshire County Council,20-Apr-17,23078509-15205301,-1198.04,Caretech Community Services,Care Establishment,2 - Operations - Learning Disability,LDP South Cambs Locality - Care,Residential Independent Sector
Cambridgeshire County Council,20-Apr-17,23078457-15205223,-1198.04,Caretech Community Services,Care Establishment,2 - Operations - Learning Disability,LDP South Cambs Locality - Care,Residential Independent Sector
Cambridgeshire County Council,27-Apr-17,23107157-15239044,-1198.04,Caretech Community Services,Care Establishment,2 - Operations - Learning Disability,LDP South Cambs Locality - Care,Residential Independent Sector
Cambridgeshire County Council,27-Apr-17,23107176-15239063,-1198.04,Caretech Community Services,Care Establishment,2 - Operations - Learning Disability,LDP South Cambs Locality - Care,Residential Independent Sector
Cambridgeshire County Council,27-Apr-17,23107182-15239069,-1198.04,Caretech Community Services,Care Establishment,2 - Operations - Learning Disability,LDP South Cambs - Special Needs,Residential Independent Sector
Cambridgeshire County Council,27-Apr-17,23113182-15239093,-1198.04,Caretech Community Services,Care Establishment,2 - Operations - Learning Disability,LDP South Cambs - Special Needs,Residential Independent Sector
Cambridgeshire County Council,27-Apr-17,23113193-15239104,-1198.04,Caretech Community Services,Care Establishment,2 - Operations - Learning Disability,LDP South Cambs - Special Needs,Residential Independent Sector
Cambridgeshire County Council,06-Apr-17,23000511-15149549,-1198.04,Caretech Community Services,Care Establishment,2 - Operations - Learning Disability,LDP South Cambs Locality - Care,Residential Independent Sector
Cambridgeshire County Council,06-Apr-17,23000493-15149559,-1198.04,Caretech Community Services,Care Establishment,2 - Operations - Learning Disability,LDP South Cambs - Special Needs,Residential Independent Sector
Cambridgeshire County Council,06-Apr-17,23000499-15149565,-1198.04,Caretech Community Services,Care Establishment,2 - Operations - Learning Disability,LDP South Cambs - Special Needs,Residential Independent Sector
Cambridgeshire County Council,06-Apr-17,23000502-15149568,-1198.04,Caretech Community Services,Care Establishment,2 - Operations - Learning Disability,LDP South Cambs Locality - Care,Residential Independent Sector
Cambridgeshire County Council,06-Apr-17,23002533-15149580,-1198.04,Caretech Community Services,Care Establishment,2 - Operations - Learning Disability,LDP South Cambs Locality - Care,Residential Independent Sector
Cambridgeshire County Council,06-Apr-17,23002539-15149586,-1198.04,Caretech Community Services,Care Establishment,2 - Operations - Learning Disability,LDP South Cambs Locality - Care,Residential Independent Sector
Cambridgeshire County Council,12-Apr-17,23040536-15179323,-1198.04,Caretech Community Services,Care Establishment,2 - Operations - Learning Disability,LDP South Cambs Locality - Care,Residential Independent Sector
Cambridgeshire County Council,20-Apr-17,23078482-15205274,-1198.04,Caretech Community Services,Care Establishment,2 - Operations - Learning Disability,LDP South Cambs - Special Needs,Residential Independent Sector
Cambridgeshire County Council,27-Apr-17,23107153-15239040,-1198.04,Caretech Community Services,Care Establishment,2 - Operations - Learning Disability,LDP South Cambs - Special Needs,Residential Independent Sector
Cambridgeshire County Council,27-Apr-17,23107187-15239074,-1198.04,Caretech Community Services,Care Establishment,2 - Operations - Learning Disability,LDP South Cambs - Special Needs,Residential Independent Sector
Cambridgeshire County Council,06-Apr-17,23000495-15149561,-1198.04,Caretech Community Services,Care Establishment,2 - Operations - Learning Disability,LDP South Cambs - Special Needs,Residential Independent Sector
Cambridgeshire County Council,06-Apr-17,23002532-15149579,-1198.04,Caretech Community Services,Care Establishment,2 - Operations - Learning Disability,LDP South Cambs - Special Needs,Residential Independent Sector
Cambridgeshire County Council,06-Apr-17,23002531-15149578,-1198.04,Caretech Community Services,Care Establishment,2 - Operations - Learning Disability,LDP South Cambs - Special Needs,Residential Independent Sector
Cambridgeshire County Council,06-Apr-17,23002536-15149583,-1198.04,Caretech Community Services,Care Establishment,2 - Operations - Learning Disability,LDP South Cambs Locality - Care,Residential Independent Sector
Cambridgeshire County Council,12-Apr-17,23040505-15179292,-1198.04,Caretech Community Services,Care Establishment,2 - Operations - Learning Disability,LDP South Cambs Locality - Care,Residential Independent Sector
Cambridgeshire County Council,20-Apr-17,23078491-15205283,-1198.04,Caretech Community Services,Care Establishment,2 - Operations - Learning Disability,LDP South Cambs - Special Needs,Residential Independent Sector
Cambridgeshire County Council,20-Apr-17,23078493-15205285,-1198.04,Caretech Community Services,Care Establishment,2 - Operations - Learning Disability,LDP South Cambs Locality - Care,Residential Independent Sector
Cambridgeshire County Council,20-Apr-17,23078496-15205288,-1198.04,Caretech Community Services,Care Establishment,2 - Operations - Learning Disability,LDP South Cambs - Special Needs,Residential Independent Sector
Cambridgeshire County Council,27-Apr-17,23107159-15239046,-1198.04,Caretech Community Services,Care Establishment,2 - Operations - Learning Disability,LDP South Cambs - Special Needs,Residential Independent Sector
Cambridgeshire County Council,27-Apr-17,23113180-15239091,-1198.04,Caretech Community Services,Care Establishment,2 - Operations - Learning Disability,LDP South Cambs - Special Needs,Residential Independent Sector
Cambridgeshire County Council,12-Apr-17,23040527-15179314,-1198.04,Caretech Community Services,Care Establishment,2 - Operations - Learning Disability,LDP South Cambs - Special Needs,Residential Independent Sector
Cambridgeshire County Council,12-Apr-17,23040537-15179324,-1198.04,Caretech Community Services,Care Establishment,2 - Operations - Learning Disability,LDP South Cambs - Special Needs,Residential Independent Sector
Cambridgeshire County Council,12-Apr-17,23040545-15179332,-1198.04,Caretech Community Services,Care Establishment,2 - Operations - Learning Disability,LDP South Cambs Locality - Care,Residential Independent Sector
Cambridgeshire County Council,12-Apr-17,23040500-15179287,-1198.04,Caretech Community Services,Care Establishment,2 - Operations - Learning Disability,LDP South Cambs Locality - Care,Residential Independent Sector
Cambridgeshire County Council,12-Apr-17,23040509-15179296,-1198.04,Caretech Community Services,Care Establishment,2 - Operations - Learning Disability,LDP South Cambs - Special Needs,Residential Independent Sector
Cambridgeshire County Council,20-Apr-17,23078465-15205257,-1198.04,Caretech Community Services,Care Establishment,2 - Operations - Learning Disability,LDP South Cambs - Special Needs,Residential Independent Sector
Cambridgeshire County Council,20-Apr-17,23078466-15205258,-1198.04,Caretech Community Services,Care Establishment,2 - Operations - Learning Disability,LDP South Cambs Locality - Care,Residential Independent Sector
Cambridgeshire County Council,20-Apr-17,23078478-15205270,-1198.04,Caretech Community Services,Care Establishment,2 - Operations - Learning Disability,LDP South Cambs Locality - Care,Residential Independent Sector
Cambridgeshire County Council,20-Apr-17,23078484-15205276,-1198.04,Caretech Community Services,Care Establishment,2 - Operations - Learning Disability,LDP South Cambs - Special Needs,Residential Independent Sector
Cambridgeshire County Council,20-Apr-17,23078485-15205277,-1198.04,Caretech Community Services,Care Establishment,2 - Operations - Learning Disability,LDP South Cambs - Special Needs,Residential Independent Sector
Cambridgeshire County Council,20-Apr-17,23078488-15205280,-1198.04,Caretech Community Services,Care Establishment,2 - Operations - Learning Disability,LDP South Cambs - Special Needs,Residential Independent Sector
Cambridgeshire County Council,20-Apr-17,23078513-15205305,-1198.04,Caretech Community Services,Care Establishment,2 - Operations - Learning Disability,LDP South Cambs Locality - Care,Residential Independent Sector
Cambridgeshire County Council,27-Apr-17,23107162-15239049,-1198.04,Caretech Community Services,Care Establishment,2 - Operations - Learning Disability,LDP South Cambs Locality - Care,Residential Independent Sector
Cambridgeshire County Council,27-Apr-17,23107184-15239071,-1198.04,Caretech Community Services,Care Establishment,2 - Operations - Learning Disability,LDP South Cambs Locality - Care,Residential Independent Sector
Cambridgeshire County Council,27-Apr-17,23108113-15239077,-1198.04,Caretech Community Services,Care Establishment,2 - Operations - Learning Disability,LDP South Cambs Locality - Care,Residential Independent Sector
Cambridgeshire County Council,06-Apr-17,23000485-15149541,-1198.04,Caretech Community Services,Care Establishment,2 - Operations - Learning Disability,LDP South Cambs Locality - Care,Residential Independent Sector
Cambridgeshire County Council,06-Apr-17,23000510-15149548,-1198.04,Caretech Community Services,Care Establishment,2 - Operations - Learning Disability,LDP South Cambs - Special Needs,Residential Independent Sector
Cambridgeshire County Council,06-Apr-17,23002534-15149581,-1198.04,Caretech Community Services,Care Establishment,2 - Operations - Learning Disability,LDP South Cambs - Special Needs,Residential Independent Sector
Cambridgeshire County Council,12-Apr-17,23040534-15179321,-1198.04,Caretech Community Services,Care Establishment,2 - Operations - Learning Disability,LDP South Cambs Locality - Care,Residential Independent Sector
Cambridgeshire County Council,12-Apr-17,23040535-15179322,-1198.04,Caretech Community Services,Care Establishment,2 - Operations - Learning Disability,LDP South Cambs - Special Needs,Residential Independent Sector
Cambridgeshire County Council,12-Apr-17,23040539-15179326,-1198.04,Caretech Community Services,Care Establishment,2 - Operations - Learning Disability,LDP South Cambs Locality - Care,Residential Independent Sector
Cambridgeshire County Council,12-Apr-17,23039496-15179340,-1198.04,Caretech Community Services,Care Establishment,2 - Operations - Learning Disability,LDP South Cambs Locality - Care,Residential Independent Sector
Cambridgeshire County Council,12-Apr-17,23038533-15179283,-1198.04,Caretech Community Services,Care Establishment,2 - Operations - Learning Disability,LDP South Cambs Locality - Care,Residential Independent Sector
Cambridgeshire County Council,12-Apr-17,23040499-15179286,-1198.04,Caretech Community Services,Care Establishment,2 - Operations - Learning Disability,LDP South Cambs Locality - Care,Residential Independent Sector
Cambridgeshire County Council,20-Apr-17,23078495-15205287,-1198.04,Caretech Community Services,Care Establishment,2 - Operations - Learning Disability,LDP South Cambs Locality - Care,Residential Independent Sector
Cambridgeshire County Council,20-Apr-17,23078501-15205293,-1198.04,Caretech Community Services,Care Establishment,2 - Operations - Learning Disability,LDP South Cambs - Special Needs,Residential Independent Sector
Cambridgeshire County Council,20-Apr-17,23078505-15205297,-1198.04,Caretech Community Services,Care Establishment,2 - Operations - Learning Disability,LDP South Cambs Locality - Care,Residential Independent Sector
Cambridgeshire County Council,20-Apr-17,23078507-15205299,-1198.04,Caretech Community Services,Care Establishment,2 - Operations - Learning Disability,LDP South Cambs - Special Needs,Residential Independent Sector
Cambridgeshire County Council,20-Apr-17,23078512-15205304,-1198.04,Caretech Community Services,Care Establishment,2 - Operations - Learning Disability,LDP South Cambs - Special Needs,Residential Independent Sector
Cambridgeshire County Council,27-Apr-17,23107174-15239061,-1198.04,Caretech Community Services,Care Establishment,2 - Operations - Learning Disability,LDP South Cambs - Special Needs,Residential Independent Sector
Cambridgeshire County Council,06-Apr-17,23000486-15149542,-1198.04,Caretech Community Services,Care Establishment,2 - Operations - Learning Disability,LDP South Cambs Locality - Care,Residential Independent Sector
Cambridgeshire County Council,06-Apr-17,23000491-15149557,-1198.04,Caretech Community Services,Care Establishment,2 - Operations - Learning Disability,LDP South Cambs - Special Needs,Residential Independent Sector
Cambridgeshire County Council,06-Apr-17,23000496-15149562,-1198.04,Caretech Community Services,Care Establishment,2 - Operations - Learning Disability,LDP South Cambs Locality - Care,Residential Independent Sector
Cambridgeshire County Council,06-Apr-17,23002535-15149582,-1198.04,Caretech Community Services,Care Establishment,2 - Operations - Learning Disability,LDP South Cambs - Special Needs,Residential Independent Sector
Cambridgeshire County Council,12-Apr-17,23039494-15179338,-1198.04,Caretech Community Services,Care Establishment,2 - Operations - Learning Disability,LDP South Cambs - Special Needs,Residential Independent Sector
Cambridgeshire County Council,12-Apr-17,23040523-15179310,-1198.04,Caretech Community Services,Care Establishment,2 - Operations - Learning Disability,LDP South Cambs Locality - Care,Residential Independent Sector
Cambridgeshire County Council,12-Apr-17,23040524-15179311,-1198.04,Caretech Community Services,Care Establishment,2 - Operations - Learning Disability,LDP South Cambs - Special Needs,Residential Independent Sector
Cambridgeshire County Council,20-Apr-17,23078498-15205290,-1198.04,Caretech Community Services,Care Establishment,2 - Operations - Learning Disability,LDP South Cambs Locality - Care,Residential Independent Sector
Cambridgeshire County Council,20-Apr-17,23078499-15205291,-1198.04,Caretech Community Services,Care Establishment,2 - Operations - Learning Disability,LDP South Cambs - Special Needs,Residential Independent Sector
Cambridgeshire County Council,27-Apr-17,23107164-15239051,-1198.04,Caretech Community Services,Care Establishment,2 - Operations - Learning Disability,LDP South Cambs Locality - Care,Residential Independent Sector
Cambridgeshire County Council,27-Apr-17,23113186-15239097,-1198.04,Caretech Community Services,Care Establishment,2 - Operations - Learning Disability,LDP South Cambs - Special Needs,Residential Independent Sector
Cambridgeshire County Council,27-Apr-17,23113190-15239101,-1198.04,Caretech Community Services,Care Establishment,2 - Operations - Learning Disability,LDP South Cambs - Special Needs,Residential Independent Sector
Cambridgeshire County Council,06-Apr-17,23000492-15149558,-1198.04,Caretech Community Services,Care Establishment,2 - Operations - Learning Disability,LDP South Cambs - Special Needs,Residential Independent Sector
Cambridgeshire County Council,06-Apr-17,23000503-15149569,-1198.04,Caretech Community Services,Care Establishment,2 - Operations - Learning Disability,LDP South Cambs Locality - Care,Residential Independent Sector
Cambridgeshire County Council,06-Apr-17,23002530-15149577,-1198.04,Caretech Community Services,Care Establishment,2 - Operations - Learning Disability,LDP South Cambs - Special Needs,Residential Independent Sector
Cambridgeshire County Council,06-Apr-17,23002544-15149591,-1198.04,Caretech Community Services,Care Establishment,2 - Operations - Learning Disability,LDP South Cambs Locality - Care,Residential Independent Sector
Cambridgeshire County Council,06-Apr-17,23002551-15149598,-1198.04,Caretech Community Services,Care Establishment,2 - Operations - Learning Disability,LDP South Cambs Locality - Care,Residential Independent Sector
Cambridgeshire County Council,12-Apr-17,23040532-15179319,-1198.04,Caretech Community Services,Care Establishment,2 - Operations - Learning Disability,LDP South Cambs - Special Needs,Residential Independent Sector
Cambridgeshire County Council,12-Apr-17,23040515-15179302,-1198.04,Caretech Community Services,Care Establishment,2 - Operations - Learning Disability,LDP South Cambs Locality - Care,Residential Independent Sector
Cambridgeshire County Council,20-Apr-17,23078460-15205252,-1198.04,Caretech Community Services,Care Establishment,2 - Operations - Learning Disability,LDP South Cambs Locality - Care,Residential Independent Sector
Cambridgeshire County Council,20-Apr-17,23078451-15205217,-1198.04,Caretech Community Services,Care Establishment,2 - Operations - Learning Disability,LDP South Cambs Locality - Care,Residential Independent Sector
Cambridgeshire County Council,27-Apr-17,23107156-15239043,-1198.04,Caretech Community Services,Care Establishment,2 - Operations - Learning Disability,LDP South Cambs - Special Needs,Residential Independent Sector
Cambridgeshire County Council,27-Apr-17,23107160-15239047,-1198.04,Caretech Community Services,Care Establishment,2 - Operations - Learning Disability,LDP South Cambs - Special Needs,Residential Independent Sector
Cambridgeshire County Council,27-Apr-17,23107178-15239065,-1198.04,Caretech Community Services,Care Establishment,2 - Operations - Learning Disability,LDP South Cambs Locality - Care,Residential Independent Sector
Cambridgeshire County Council,27-Apr-17,23113185-15239096,-1198.04,Caretech Community Services,Care Establishment,2 - Operations - Learning Disability,LDP South Cambs Locality - Care,Residential Independent Sector
Cambridgeshire County Council,27-Apr-17,23113189-15239100,-1198.04,Caretech Community Services,Care Establishment,2 - Operations - Learning Disability,LDP South Cambs Locality - Care,Residential Independent Sector
Cambridgeshire County Council,26-Apr-17,23012586-15227211,-1140,Demco Interiors Ltd T/A Gresswell,Company,Corporate Services,Support - Business Support,Other Hired Contract Services
Cambridgeshire County Council,27-Apr-17,23079083-15232591,-1138.89,Social Care Solutions Ltd,Care Establishment,2 - Operations - Learning Disability,LDP Fens - Special Needs,Supported Living
Cambridgeshire County Council,06-Apr-17,23000775-15151851,-1096,Conquest Care Homes Peterborough,Care Establishment,2 - Operations - Learning Disability,LDP Fenland Locality - Care,Residential Independent Sector
Cambridgeshire County Council,06-Apr-17,23000777-15151853,-1096,Conquest Care Homes Peterborough,Care Establishment,2 - Operations - Learning Disability,LDP Fenland Locality - Care,Residential Independent Sector
Cambridgeshire County Council,06-Apr-17,23000776-15151852,-1096,Conquest Care Homes Peterborough,Care Establishment,2 - Operations - Learning Disability,LDP Fenland Locality - Care,Residential Independent Sector
Cambridgeshire County Council,27-Apr-17,23077411-15253760,-1091.65,Guyatt House Care Ltd,Care Establishment,2 - Operations - Learning Disability,LDP E Cambs Locality - Care,Day and Domicillary Care Independent Sector
Cambridgeshire County Council,12-Apr-17,23042493-15182963,-1091.65,Guyatt House Care Ltd,Care Establishment,2 - Operations - Learning Disability,LDP E Cambs Locality - Care,Day and Domicillary Care Independent Sector
Cambridgeshire County Council,27-Apr-17,23107020-15253765,-1091.65,Guyatt House Care Ltd,Care Establishment,2 - Operations - Learning Disability,LDP E Cambs Locality - Care,Day and Domicillary Care Independent Sector
Cambridgeshire County Council,12-Apr-17,23006479-15182959,-1091.65,Guyatt House Care Ltd,Care Establishment,2 - Operations - Learning Disability,LDP E Cambs Locality - Care,Day and Domicillary Care Independent Sector
Cambridgeshire County Council,27-Apr-17,23005091-15232553,-1079.59,Social Care Solutions Ltd,Care Establishment,3 - Operations - Countywide Services,Autism and Adult Support Team - Care,Day and Domicillary Care Independent Sector
Cambridgeshire County Council,27-Apr-17,23005095-15232557,-1079.59,Social Care Solutions Ltd,Care Establishment,3 - Operations - Countywide Services,Autism and Adult Support Team - Care,Day and Domicillary Care Independent Sector
Cambridgeshire County Council,27-Apr-17,23005097-15232559,-1079.59,Social Care Solutions Ltd,Care Establishment,3 - Operations - Countywide Services,Autism and Adult Support Team - Care,Day and Domicillary Care Independent Sector
Cambridgeshire County Council,27-Apr-17,23005093-15232555,-1079.59,Social Care Solutions Ltd,Care Establishment,3 - Operations - Countywide Services,Autism and Adult Support Team - Care,Day and Domicillary Care Independent Sector
Cambridgeshire County Council,27-Apr-17,23005098-15232560,-1079.59,Social Care Solutions Ltd,Care Establishment,3 - Operations - Countywide Services,Autism and Adult Support Team - Care,Day and Domicillary Care Independent Sector
Cambridgeshire County Council,27-Apr-17,23005083-15232545,-1079.59,Social Care Solutions Ltd,Care Establishment,3 - Operations - Countywide Services,Autism and Adult Support Team - Care,Day and Domicillary Care Independent Sector
Cambridgeshire County Council,27-Apr-17,23005084-15232546,-1079.59,Social Care Solutions Ltd,Care Establishment,3 - Operations - Countywide Services,Autism and Adult Support Team - Care,Day and Domicillary Care Independent Sector
Cambridgeshire County Council,27-Apr-17,23005094-15232556,-1079.59,Social Care Solutions Ltd,Care Establishment,3 - Operations - Countywide Services,Autism and Adult Support Team - Care,Day and Domicillary Care Independent Sector
Cambridgeshire County Council,27-Apr-17,23005101-15232563,-1079.59,Social Care Solutions Ltd,Care Establishment,3 - Operations - Countywide Services,Autism and Adult Support Team - Care,Day and Domicillary Care Independent Sector
Cambridgeshire County Council,27-Apr-17,23005087-15232549,-1079.59,Social Care Solutions Ltd,Care Establishment,3 - Operations - Countywide Services,Autism and Adult Support Team - Care,Day and Domicillary Care Independent Sector
Cambridgeshire County Council,27-Apr-17,23005100-15232562,-1079.59,Social Care Solutions Ltd,Care Establishment,3 - Operations - Countywide Services,Autism and Adult Support Team - Care,Day and Domicillary Care Independent Sector
Cambridgeshire County Council,27-Apr-17,23005104-15232543,-1079.59,Social Care Solutions Ltd,Care Establishment,3 - Operations - Countywide Services,Autism and Adult Support Team - Care,Day and Domicillary Care Independent Sector
Cambridgeshire County Council,27-Apr-17,23005103-15232565,-1079.59,Social Care Solutions Ltd,Care Establishment,3 - Operations - Countywide Services,Autism and Adult Support Team - Care,Day and Domicillary Care Independent Sector
Cambridgeshire County Council,27-Apr-17,23005086-15232548,-1079.59,Social Care Solutions Ltd,Care Establishment,3 - Operations - Countywide Services,Autism and Adult Support Team - Care,Day and Domicillary Care Independent Sector
Cambridgeshire County Council,27-Apr-17,23005096-15232558,-1079.59,Social Care Solutions Ltd,Care Establishment,3 - Operations - Countywide Services,Autism and Adult Support Team - Care,Day and Domicillary Care Independent Sector
Cambridgeshire County Council,27-Apr-17,23005102-15232564,-1079.59,Social Care Solutions Ltd,Care Establishment,3 - Operations - Countywide Services,Autism and Adult Support Team - Care,Day and Domicillary Care Independent Sector
Cambridgeshire County Council,27-Apr-17,23005088-15232550,-1079.59,Social Care Solutions Ltd,Care Establishment,3 - Operations - Countywide Services,Autism and Adult Support Team - Care,Day and Domicillary Care Independent Sector
Cambridgeshire County Council,27-Apr-17,23005090-15232552,-1079.59,Social Care Solutions Ltd,Care Establishment,3 - Operations - Countywide Services,Autism and Adult Support Team - Care,Day and Domicillary Care Independent Sector
Cambridgeshire County Council,27-Apr-17,23005082-15232544,-1079.59,Social Care Solutions Ltd,Care Establishment,3 - Operations - Countywide Services,Autism and Adult Support Team - Care,Day and Domicillary Care Independent Sector
Cambridgeshire County Council,27-Apr-17,23005099-15232561,-1079.59,Social Care Solutions Ltd,Care Establishment,3 - Operations - Countywide Services,Autism and Adult Support Team - Care,Day and Domicillary Care Independent Sector
Cambridgeshire County Council,20-Apr-17,23078470-15205262,-1026.89,Caretech Community Services,Care Establishment,2 - Operations - Learning Disability,LDP South Cambs - Special Needs,Residential Independent Sector
Cambridgeshire County Council,06-Apr-17,23000508-15149546,-1026.89,Caretech Community Services,Care Establishment,2 - Operations - Learning Disability,LDP South Cambs Locality - Care,Residential Independent Sector
Cambridgeshire County Council,12-Apr-17,23039493-15179337,-1026.89,Caretech Community Services,Care Establishment,2 - Operations - Learning Disability,LDP South Cambs - Special Needs,Residential Independent Sector
Cambridgeshire County Council,27-Apr-17,23107188-15239075,-1026.89,Caretech Community Services,Care Establishment,2 - Operations - Learning Disability,LDP South Cambs - Special Needs,Residential Independent Sector
Cambridgeshire County Council,27-Apr-17,23005565-15234037,-972.15,Home Close Ltd,Care Establishment,2 - Commissioning - Older people Pool,Older People - City & South,Nursing Independent Sector
Cambridgeshire County Council,27-Apr-17,23005563-15234035,-972.15,Home Close Ltd,Care Establishment,2 - Commissioning - Older people Pool,Older People - City & South,Nursing Independent Sector
Cambridgeshire County Council,11-Apr-17,22978580-15171350,-968.24,Compass Fostering,Care Establishment,S&C,Placements - Social Care,Agency Placements - Out County
Cambridgeshire County Council,27-Apr-17,23117777-15241629,-962.12,Conquest Care Homes (Soham) Ltd,Care Establishment,2 - Operations - Learning Disability,LDP E Cambs Special Needs,Residential Independent Sector
Cambridgeshire County Council,27-Apr-17,23117487-15241611,-960.14,Conquest Care Homes (Soham) Ltd,Care Establishment,2 - Operations - Learning Disability,LDP E Cambs Special Needs,Residential Independent Sector
Cambridgeshire County Council,06-Apr-17,23000773-15151849,-939.43,Conquest Care Homes Peterborough,Care Establishment,2 - Operations - Learning Disability,LDP Fenland Locality - Care,Residential Independent Sector
Cambridgeshire County Council,06-Apr-17,23000774-15151850,-939.43,Conquest Care Homes Peterborough,Care Establishment,2 - Operations - Learning Disability,LDP Fenland Locality - Care,Residential Independent Sector
Cambridgeshire County Council,27-Apr-17,23106672-15241557,-926.9,Conquest Care Homes (Soham) Ltd,Care Establishment,2 - Operations - Learning Disability,LDP E Cambs Special Needs,Residential Independent Sector
Cambridgeshire County Council,27-Apr-17,23106650-15241536,-926.9,Conquest Care Homes (Soham) Ltd,Care Establishment,2 - Operations - Learning Disability,LDP E Cambs Special Needs,Residential Independent Sector
Cambridgeshire County Council,27-Apr-17,23106682-15241565,-926.9,Conquest Care Homes (Soham) Ltd,Care Establishment,2 - Operations - Learning Disability,LDP E Cambs Special Needs,Residential Independent Sector
Cambridgeshire County Council,27-Apr-17,23106683-15241566,-926.9,Conquest Care Homes (Soham) Ltd,Care Establishment,2 - Operations - Learning Disability,LDP E Cambs Special Needs,Residential Independent Sector
Cambridgeshire County Council,27-Apr-17,23106663-15241548,-926.9,Conquest Care Homes (Soham) Ltd,Care Establishment,2 - Operations - Learning Disability,LDP E Cambs Special Needs,Residential Independent Sector
Cambridgeshire County Council,12-Apr-17,23000665-15181649,-926.11,Making Space#1,Care Establishment,3 - Operations - Countywide Services,Countywide PD Service - Care,Nursing Independent Sector
Cambridgeshire County Council,12-Apr-17,23000670-15181654,-926.11,Making Space#1,Care Establishment,3 - Operations - Countywide Services,Countywide PD Service - Care,Nursing Independent Sector
Cambridgeshire County Council,12-Apr-17,23040717-15181704,-926.11,Making Space#1,Care Establishment,3 - Operations - Countywide Services,Countywide PD Service - Care,Nursing Independent Sector
Cambridgeshire County Council,12-Apr-17,23040732-15181719,-926.11,Making Space#1,Care Establishment,3 - Operations - Countywide Services,Countywide PD Service - Care,Nursing Independent Sector
Cambridgeshire County Council,12-Apr-17,22954082-15181548,-926.11,Making Space#1,Care Establishment,3 - Operations - Countywide Services,Countywide PD Service - Care,Nursing Independent Sector
Cambridgeshire County Council,12-Apr-17,22954092-15181558,-926.11,Making Space#1,Care Establishment,3 - Operations - Countywide Services,Countywide PD Service - Care,Nursing Independent Sector
Cambridgeshire County Council,12-Apr-17,22961019-15181591,-926.11,Making Space#1,Care Establishment,3 - Operations - Countywide Services,Countywide PD Service - Care,Nursing Independent Sector
Cambridgeshire County Council,12-Apr-17,23002952-15181605,-926.11,Making Space#1,Care Establishment,3 - Operations - Countywide Services,Countywide PD Service - Care,Nursing Independent Sector
Cambridgeshire County Council,12-Apr-17,23002956-15181609,-926.11,Making Space#1,Care Establishment,3 - Operations - Countywide Services,Countywide PD Service - Care,Nursing Independent Sector
Cambridgeshire County Council,12-Apr-17,23002957-15181610,-926.11,Making Space#1,Care Establishment,3 - Operations - Countywide Services,Countywide PD Service - Care,Nursing Independent Sector
Cambridgeshire County Council,20-Apr-17,23074593-15204964,-926.11,Making Space#1,Care Establishment,3 - Operations - Countywide Services,Countywide PD Service - Care,Nursing Independent Sector
Cambridgeshire County Council,20-Apr-17,23076632-15205006,-926.11,Making Space#1,Care Establishment,3 - Operations - Countywide Services,Countywide PD Service - Care,Nursing Independent Sector
Cambridgeshire County Council,12-Apr-17,23002987-15181640,-926.11,Making Space#1,Care Establishment,3 - Operations - Countywide Services,Countywide PD Service - Care,Nursing Independent Sector
Cambridgeshire County Council,12-Apr-17,23002988-15181641,-926.11,Making Space#1,Care Establishment,3 - Operations - Countywide Services,Countywide PD Service - Care,Nursing Independent Sector
Cambridgeshire County Council,12-Apr-17,23035731-15181688,-926.11,Making Space#1,Care Establishment,3 - Operations - Countywide Services,Countywide PD Service - Care,Nursing Independent Sector
Cambridgeshire County Council,12-Apr-17,23035745-15181702,-926.11,Making Space#1,Care Establishment,3 - Operations - Countywide Services,Countywide PD Service - Care,Nursing Independent Sector
Cambridgeshire County Council,12-Apr-17,22947043-15181529,-926.11,Making Space#1,Care Establishment,3 - Operations - Countywide Services,Countywide PD Service - Care,Nursing Independent Sector
Cambridgeshire County Council,12-Apr-17,22954085-15181551,-926.11,Making Space#1,Care Establishment,3 - Operations - Countywide Services,Countywide PD Service - Care,Nursing Independent Sector
Cambridgeshire County Council,12-Apr-17,22954086-15181552,-926.11,Making Space#1,Care Establishment,3 - Operations - Countywide Services,Countywide PD Service - Care,Nursing Independent Sector
Cambridgeshire County Council,12-Apr-17,22961010-15181582,-926.11,Making Space#1,Care Establishment,3 - Operations - Countywide Services,Countywide PD Service - Care,Nursing Independent Sector
Cambridgeshire County Council,20-Apr-17,23074591-15204962,-926.11,Making Space#1,Care Establishment,3 - Operations - Countywide Services,Countywide PD Service - Care,Nursing Independent Sector
Cambridgeshire County Council,20-Apr-17,23074600-15204971,-926.11,Making Space#1,Care Establishment,3 - Operations - Countywide Services,Countywide PD Service - Care,Nursing Independent Sector
Cambridgeshire County Council,20-Apr-17,23076615-15204989,-926.11,Making Space#1,Care Establishment,3 - Operations - Countywide Services,Countywide PD Service - Care,Nursing Independent Sector
Cambridgeshire County Council,20-Apr-17,23076626-15205000,-926.11,Making Space#1,Care Establishment,3 - Operations - Countywide Services,Countywide PD Service - Care,Nursing Independent Sector
Cambridgeshire County Council,12-Apr-17,23002960-15181613,-926.11,Making Space#1,Care Establishment,3 - Operations - Countywide Services,Countywide PD Service - Care,Nursing Independent Sector
Cambridgeshire County Council,12-Apr-17,23002974-15181627,-926.11,Making Space#1,Care Establishment,3 - Operations - Countywide Services,Countywide PD Service - Care,Nursing Independent Sector
Cambridgeshire County Council,12-Apr-17,22999628-15181644,-926.11,Making Space#1,Care Establishment,3 - Operations - Countywide Services,Countywide PD Service - Care,Nursing Independent Sector
Cambridgeshire County Council,12-Apr-17,23000666-15181650,-926.11,Making Space#1,Care Establishment,3 - Operations - Countywide Services,Countywide PD Service - Care,Nursing Independent Sector
Cambridgeshire County Council,12-Apr-17,23035713-15181670,-926.11,Making Space#1,Care Establishment,3 - Operations - Countywide Services,Countywide PD Service - Care,Nursing Independent Sector
Cambridgeshire County Council,12-Apr-17,23035716-15181673,-926.11,Making Space#1,Care Establishment,3 - Operations - Countywide Services,Countywide PD Service - Care,Nursing Independent Sector
Cambridgeshire County Council,12-Apr-17,23040716-15181703,-926.11,Making Space#1,Care Establishment,3 - Operations - Countywide Services,Countywide PD Service - Care,Nursing Independent Sector
Cambridgeshire County Council,12-Apr-17,22947041-15181527,-926.11,Making Space#1,Care Establishment,3 - Operations - Countywide Services,Countywide PD Service - Care,Nursing Independent Sector
Cambridgeshire County Council,12-Apr-17,22947044-15181530,-926.11,Making Space#1,Care Establishment,3 - Operations - Countywide Services,Countywide PD Service - Care,Nursing Independent Sector
Cambridgeshire County Council,12-Apr-17,22947049-15181535,-926.11,Making Space#1,Care Establishment,3 - Operations - Countywide Services,Countywide PD Service - Care,Nursing Independent Sector
Cambridgeshire County Council,12-Apr-17,22954079-15181545,-926.11,Making Space#1,Care Establishment,3 - Operations - Countywide Services,Countywide PD Service - Care,Nursing Independent Sector
Cambridgeshire County Council,12-Apr-17,22954106-15181572,-926.11,Making Space#1,Care Establishment,3 - Operations - Countywide Services,Countywide PD Service - Care,Nursing Independent Sector
Cambridgeshire County Council,12-Apr-17,22961015-15181587,-926.11,Making Space#1,Care Establishment,3 - Operations - Countywide Services,Countywide PD Service - Care,Nursing Independent Sector
Cambridgeshire County Council,20-Apr-17,23074596-15204967,-926.11,Making Space#1,Care Establishment,3 - Operations - Countywide Services,Countywide PD Service - Care,Nursing Independent Sector
Cambridgeshire County Council,20-Apr-17,23074597-15204968,-926.11,Making Space#1,Care Establishment,3 - Operations - Countywide Services,Countywide PD Service - Care,Nursing Independent Sector
Cambridgeshire County Council,20-Apr-17,23076608-15204982,-926.11,Making Space#1,Care Establishment,3 - Operations - Countywide Services,Countywide PD Service - Care,Nursing Independent Sector
Cambridgeshire County Council,20-Apr-17,23076631-15205005,-926.11,Making Space#1,Care Establishment,3 - Operations - Countywide Services,Countywide PD Service - Care,Nursing Independent Sector
Cambridgeshire County Council,20-Apr-17,23076633-15205007,-926.11,Making Space#1,Care Establishment,3 - Operations - Countywide Services,Countywide PD Service - Care,Nursing Independent Sector
Cambridgeshire County Council,12-Apr-17,23002967-15181620,-926.11,Making Space#1,Care Establishment,3 - Operations - Countywide Services,Countywide PD Service - Care,Nursing Independent Sector
Cambridgeshire County Council,12-Apr-17,23002977-15181630,-926.11,Making Space#1,Care Establishment,3 - Operations - Countywide Services,Countywide PD Service - Care,Nursing Independent Sector
Cambridgeshire County Council,12-Apr-17,23002985-15181638,-926.11,Making Space#1,Care Establishment,3 - Operations - Countywide Services,Countywide PD Service - Care,Nursing Independent Sector
Cambridgeshire County Council,12-Apr-17,22999627-15181643,-926.11,Making Space#1,Care Establishment,3 - Operations - Countywide Services,Countywide PD Service - Care,Nursing Independent Sector
Cambridgeshire County Council,12-Apr-17,23000663-15181647,-926.11,Making Space#1,Care Establishment,3 - Operations - Countywide Services,Countywide PD Service - Care,Nursing Independent Sector
Cambridgeshire County Council,12-Apr-17,23000669-15181653,-926.11,Making Space#1,Care Establishment,3 - Operations - Countywide Services,Countywide PD Service - Care,Nursing Independent Sector
Cambridgeshire County Council,12-Apr-17,23035704-15181661,-926.11,Making Space#1,Care Establishment,3 - Operations - Countywide Services,Countywide PD Service - Care,Nursing Independent Sector
Cambridgeshire County Council,12-Apr-17,23035718-15181675,-926.11,Making Space#1,Care Establishment,3 - Operations - Countywide Services,Countywide PD Service - Care,Nursing Independent Sector
Cambridgeshire County Council,12-Apr-17,23035719-15181676,-926.11,Making Space#1,Care Establishment,3 - Operations - Countywide Services,Countywide PD Service - Care,Nursing Independent Sector
Cambridgeshire County Council,12-Apr-17,23035740-15181697,-926.11,Making Space#1,Care Establishment,3 - Operations - Countywide Services,Countywide PD Service - Care,Nursing Independent Sector
Cambridgeshire County Council,12-Apr-17,22954090-15181556,-926.11,Making Space#1,Care Establishment,3 - Operations - Countywide Services,Countywide PD Service - Care,Nursing Independent Sector
Cambridgeshire County Council,12-Apr-17,22954098-15181564,-926.11,Making Space#1,Care Establishment,3 - Operations - Countywide Services,Countywide PD Service - Care,Nursing Independent Sector
Cambridgeshire County Council,12-Apr-17,22961002-15181574,-926.11,Making Space#1,Care Establishment,3 - Operations - Countywide Services,Countywide PD Service - Care,Nursing Independent Sector
Cambridgeshire County Council,12-Apr-17,22961018-15181590,-926.11,Making Space#1,Care Establishment,3 - Operations - Countywide Services,Countywide PD Service - Care,Nursing Independent Sector
Cambridgeshire County Council,12-Apr-17,23002940-15181593,-926.11,Making Space#1,Care Establishment,3 - Operations - Countywide Services,Countywide PD Service - Care,Nursing Independent Sector
Cambridgeshire County Council,12-Apr-17,23002944-15181597,-926.11,Making Space#1,Care Establishment,3 - Operations - Countywide Services,Countywide PD Service - Care,Nursing Independent Sector
Cambridgeshire County Council,12-Apr-17,23002950-15181603,-926.11,Making Space#1,Care Establishment,3 - Operations - Countywide Services,Countywide PD Service - Care,Nursing Independent Sector
Cambridgeshire County Council,12-Apr-17,23002958-15181611,-926.11,Making Space#1,Care Establishment,3 - Operations - Countywide Services,Countywide PD Service - Care,Nursing Independent Sector
Cambridgeshire County Council,20-Apr-17,23074588-15204959,-926.11,Making Space#1,Care Establishment,3 - Operations - Countywide Services,Countywide PD Service - Care,Nursing Independent Sector
Cambridgeshire County Council,20-Apr-17,23074602-15204973,-926.11,Making Space#1,Care Establishment,3 - Operations - Countywide Services,Countywide PD Service - Care,Nursing Independent Sector
Cambridgeshire County Council,20-Apr-17,23074603-15204974,-926.11,Making Space#1,Care Establishment,3 - Operations - Countywide Services,Countywide PD Service - Care,Nursing Independent Sector
Cambridgeshire County Council,20-Apr-17,23076602-15204976,-926.11,Making Space#1,Care Establishment,3 - Operations - Countywide Services,Countywide PD Service - Care,Nursing Independent Sector
Cambridgeshire County Council,20-Apr-17,23076604-15204978,-926.11,Making Space#1,Care Establishment,3 - Operations - Countywide Services,Countywide PD Service - Care,Nursing Independent Sector
Cambridgeshire County Council,20-Apr-17,23076606-15204980,-926.11,Making Space#1,Care Establishment,3 - Operations - Countywide Services,Countywide PD Service - Care,Nursing Independent Sector
Cambridgeshire County Council,20-Apr-17,23076611-15204985,-926.11,Making Space#1,Care Establishment,3 - Operations - Countywide Services,Countywide PD Service - Care,Nursing Independent Sector
Cambridgeshire County Council,20-Apr-17,23076621-15204995,-926.11,Making Space#1,Care Establishment,3 - Operations - Countywide Services,Countywide PD Service - Care,Nursing Independent Sector
Cambridgeshire County Council,20-Apr-17,23076630-15205004,-926.11,Making Space#1,Care Establishment,3 - Operations - Countywide Services,Countywide PD Service - Care,Nursing Independent Sector
Cambridgeshire County Council,12-Apr-17,23002965-15181618,-926.11,Making Space#1,Care Establishment,3 - Operations - Countywide Services,Countywide PD Service - Care,Nursing Independent Sector
Cambridgeshire County Council,12-Apr-17,23002980-15181633,-926.11,Making Space#1,Care Establishment,3 - Operations - Countywide Services,Countywide PD Service - Care,Nursing Independent Sector
Cambridgeshire County Council,12-Apr-17,23035721-15181678,-926.11,Making Space#1,Care Establishment,3 - Operations - Countywide Services,Countywide PD Service - Care,Nursing Independent Sector
Cambridgeshire County Council,12-Apr-17,23035737-15181694,-926.11,Making Space#1,Care Establishment,3 - Operations - Countywide Services,Countywide PD Service - Care,Nursing Independent Sector
Cambridgeshire County Council,12-Apr-17,23040737-15181724,-926.11,Making Space#1,Care Establishment,3 - Operations - Countywide Services,Countywide PD Service - Care,Nursing Independent Sector
Cambridgeshire County Council,12-Apr-17,22954078-15181544,-926.11,Making Space#1,Care Establishment,3 - Operations - Countywide Services,Countywide PD Service - Care,Nursing Independent Sector
Cambridgeshire County Council,20-Apr-17,23074595-15204966,-926.11,Making Space#1,Care Establishment,3 - Operations - Countywide Services,Countywide PD Service - Care,Nursing Independent Sector
Cambridgeshire County Council,20-Apr-17,23076629-15205003,-926.11,Making Space#1,Care Establishment,3 - Operations - Countywide Services,Countywide PD Service - Care,Nursing Independent Sector
Cambridgeshire County Council,12-Apr-17,23002971-15181624,-926.11,Making Space#1,Care Establishment,3 - Operations - Countywide Services,Countywide PD Service - Care,Nursing Independent Sector
Cambridgeshire County Council,12-Apr-17,23002976-15181629,-926.11,Making Space#1,Care Establishment,3 - Operations - Countywide Services,Countywide PD Service - Care,Nursing Independent Sector
Cambridgeshire County Council,12-Apr-17,23000667-15181651,-926.11,Making Space#1,Care Establishment,3 - Operations - Countywide Services,Countywide PD Service - Care,Nursing Independent Sector
Cambridgeshire County Council,12-Apr-17,23035709-15181666,-926.11,Making Space#1,Care Establishment,3 - Operations - Countywide Services,Countywide PD Service - Care,Nursing Independent Sector
Cambridgeshire County Council,12-Apr-17,23035717-15181674,-926.11,Making Space#1,Care Establishment,3 - Operations - Countywide Services,Countywide PD Service - Care,Nursing Independent Sector
Cambridgeshire County Council,12-Apr-17,23035738-15181695,-926.11,Making Space#1,Care Establishment,3 - Operations - Countywide Services,Countywide PD Service - Care,Nursing Independent Sector
Cambridgeshire County Council,12-Apr-17,23040728-15181715,-926.11,Making Space#1,Care Establishment,3 - Operations - Countywide Services,Countywide PD Service - Care,Nursing Independent Sector
Cambridgeshire County Council,12-Apr-17,23040731-15181718,-926.11,Making Space#1,Care Establishment,3 - Operations - Countywide Services,Countywide PD Service - Care,Nursing Independent Sector
Cambridgeshire County Council,12-Apr-17,22954084-15181550,-926.11,Making Space#1,Care Establishment,3 - Operations - Countywide Services,Countywide PD Service - Care,Nursing Independent Sector
Cambridgeshire County Council,12-Apr-17,22954093-15181559,-926.11,Making Space#1,Care Establishment,3 - Operations - Countywide Services,Countywide PD Service - Care,Nursing Independent Sector
Cambridgeshire County Council,20-Apr-17,23076605-15204979,-926.11,Making Space#1,Care Establishment,3 - Operations - Countywide Services,Countywide PD Service - Care,Nursing Independent Sector
Cambridgeshire County Council,20-Apr-17,23076622-15204996,-926.11,Making Space#1,Care Establishment,3 - Operations - Countywide Services,Countywide PD Service - Care,Nursing Independent Sector
Cambridgeshire County Council,20-Apr-17,23076637-15205011,-926.11,Making Space#1,Care Establishment,3 - Operations - Countywide Services,Countywide PD Service - Care,Nursing Independent Sector
Cambridgeshire County Council,12-Apr-17,23002973-15181626,-926.11,Making Space#1,Care Establishment,3 - Operations - Countywide Services,Countywide PD Service - Care,Nursing Independent Sector
Cambridgeshire County Council,12-Apr-17,23002984-15181637,-926.11,Making Space#1,Care Establishment,3 - Operations - Countywide Services,Countywide PD Service - Care,Nursing Independent Sector
Cambridgeshire County Council,12-Apr-17,23002986-15181639,-926.11,Making Space#1,Care Establishment,3 - Operations - Countywide Services,Countywide PD Service - Care,Nursing Independent Sector
Cambridgeshire County Council,12-Apr-17,22999630-15181646,-926.11,Making Space#1,Care Establishment,3 - Operations - Countywide Services,Countywide PD Service - Care,Nursing Independent Sector
Cambridgeshire County Council,12-Apr-17,23035724-15181681,-926.11,Making Space#1,Care Establishment,3 - Operations - Countywide Services,Countywide PD Service - Care,Nursing Independent Sector
Cambridgeshire County Council,12-Apr-17,23035739-15181696,-926.11,Making Space#1,Care Establishment,3 - Operations - Countywide Services,Countywide PD Service - Care,Nursing Independent Sector
Cambridgeshire County Council,12-Apr-17,23040720-15181707,-926.11,Making Space#1,Care Establishment,3 - Operations - Countywide Services,Countywide PD Service - Care,Nursing Independent Sector
Cambridgeshire County Council,12-Apr-17,23040721-15181708,-926.11,Making Space#1,Care Establishment,3 - Operations - Countywide Services,Countywide PD Service - Care,Nursing Independent Sector
Cambridgeshire County Council,12-Apr-17,23040722-15181709,-926.11,Making Space#1,Care Establishment,3 - Operations - Countywide Services,Countywide PD Service - Care,Nursing Independent Sector
Cambridgeshire County Council,12-Apr-17,22947046-15181532,-926.11,Making Space#1,Care Establishment,3 - Operations - Countywide Services,Countywide PD Service - Care,Nursing Independent Sector
Cambridgeshire County Council,12-Apr-17,22954071-15181537,-926.11,Making Space#1,Care Establishment,3 - Operations - Countywide Services,Countywide PD Service - Care,Nursing Independent Sector
Cambridgeshire County Council,12-Apr-17,22954081-15181547,-926.11,Making Space#1,Care Establishment,3 - Operations - Countywide Services,Countywide PD Service - Care,Nursing Independent Sector
Cambridgeshire County Council,12-Apr-17,22954096-15181562,-926.11,Making Space#1,Care Establishment,3 - Operations - Countywide Services,Countywide PD Service - Care,Nursing Independent Sector
Cambridgeshire County Council,12-Apr-17,22954104-15181570,-926.11,Making Space#1,Care Establishment,3 - Operations - Countywide Services,Countywide PD Service - Care,Nursing Independent Sector
Cambridgeshire County Council,12-Apr-17,22961007-15181579,-926.11,Making Space#1,Care Establishment,3 - Operations - Countywide Services,Countywide PD Service - Care,Nursing Independent Sector
Cambridgeshire County Council,12-Apr-17,23002955-15181608,-926.11,Making Space#1,Care Establishment,3 - Operations - Countywide Services,Countywide PD Service - Care,Nursing Independent Sector
Cambridgeshire County Council,20-Apr-17,23074594-15204965,-926.11,Making Space#1,Care Establishment,3 - Operations - Countywide Services,Countywide PD Service - Care,Nursing Independent Sector
Cambridgeshire County Council,20-Apr-17,23076607-15204981,-926.11,Making Space#1,Care Establishment,3 - Operations - Countywide Services,Countywide PD Service - Care,Nursing Independent Sector
Cambridgeshire County Council,20-Apr-17,23076612-15204986,-926.11,Making Space#1,Care Establishment,3 - Operations - Countywide Services,Countywide PD Service - Care,Nursing Independent Sector
Cambridgeshire County Council,12-Apr-17,23002963-15181616,-926.11,Making Space#1,Care Establishment,3 - Operations - Countywide Services,Countywide PD Service - Care,Nursing Independent Sector
Cambridgeshire County Council,12-Apr-17,23035712-15181669,-926.11,Making Space#1,Care Establishment,3 - Operations - Countywide Services,Countywide PD Service - Care,Nursing Independent Sector
Cambridgeshire County Council,12-Apr-17,23035720-15181677,-926.11,Making Space#1,Care Establishment,3 - Operations - Countywide Services,Countywide PD Service - Care,Nursing Independent Sector
Cambridgeshire County Council,12-Apr-17,23035722-15181679,-926.11,Making Space#1,Care Establishment,3 - Operations - Countywide Services,Countywide PD Service - Care,Nursing Independent Sector
Cambridgeshire County Council,12-Apr-17,23035726-15181683,-926.11,Making Space#1,Care Establishment,3 - Operations - Countywide Services,Countywide PD Service - Care,Nursing Independent Sector
Cambridgeshire County Council,12-Apr-17,23035729-15181686,-926.11,Making Space#1,Care Establishment,3 - Operations - Countywide Services,Countywide PD Service - Care,Nursing Independent Sector
Cambridgeshire County Council,12-Apr-17,23035735-15181692,-926.11,Making Space#1,Care Establishment,3 - Operations - Countywide Services,Countywide PD Service - Care,Nursing Independent Sector
Cambridgeshire County Council,12-Apr-17,23040736-15181723,-926.11,Making Space#1,Care Establishment,3 - Operations - Countywide Services,Countywide PD Service - Care,Nursing Independent Sector
Cambridgeshire County Council,12-Apr-17,23040738-15181725,-926.11,Making Space#1,Care Establishment,3 - Operations - Countywide Services,Countywide PD Service - Care,Nursing Independent Sector
Cambridgeshire County Council,12-Apr-17,22954080-15181546,-926.11,Making Space#1,Care Establishment,3 - Operations - Countywide Services,Countywide PD Service - Care,Nursing Independent Sector
Cambridgeshire County Council,12-Apr-17,22954088-15181554,-926.11,Making Space#1,Care Establishment,3 - Operations - Countywide Services,Countywide PD Service - Care,Nursing Independent Sector
Cambridgeshire County Council,12-Apr-17,22954091-15181557,-926.11,Making Space#1,Care Establishment,3 - Operations - Countywide Services,Countywide PD Service - Care,Nursing Independent Sector
Cambridgeshire County Council,12-Apr-17,22954099-15181565,-926.11,Making Space#1,Care Establishment,3 - Operations - Countywide Services,Countywide PD Service - Care,Nursing Independent Sector
Cambridgeshire County Council,12-Apr-17,22954105-15181571,-926.11,Making Space#1,Care Establishment,3 - Operations - Countywide Services,Countywide PD Service - Care,Nursing Independent Sector
Cambridgeshire County Council,12-Apr-17,22961017-15181589,-926.11,Making Space#1,Care Establishment,3 - Operations - Countywide Services,Countywide PD Service - Care,Nursing Independent Sector
Cambridgeshire County Council,20-Apr-17,23074583-15204954,-926.11,Making Space#1,Care Establishment,3 - Operations - Countywide Services,Countywide PD Service - Care,Nursing Independent Sector
Cambridgeshire County Council,20-Apr-17,23074585-15204956,-926.11,Making Space#1,Care Establishment,3 - Operations - Countywide Services,Countywide PD Service - Care,Nursing Independent Sector
Cambridgeshire County Council,20-Apr-17,23074592-15204963,-926.11,Making Space#1,Care Establishment,3 - Operations - Countywide Services,Countywide PD Service - Care,Nursing Independent Sector
Cambridgeshire County Council,20-Apr-17,23076625-15204999,-926.11,Making Space#1,Care Establishment,3 - Operations - Countywide Services,Countywide PD Service - Care,Nursing Independent Sector
Cambridgeshire County Council,27-Apr-17,23005085-15232547,-925.36,Social Care Solutions Ltd,Care Establishment,3 - Operations - Countywide Services,Autism and Adult Support Team - Care,Day and Domicillary Care Independent Sector
Cambridgeshire County Council,27-Apr-17,23005092-15232554,-925.36,Social Care Solutions Ltd,Care Establishment,3 - Operations - Countywide Services,Autism and Adult Support Team - Care,Day and Domicillary Care Independent Sector
Cambridgeshire County Council,27-Apr-17,23103046-15241490,-903.84,Conquest Care Homes (Soham) Ltd,Care Establishment,2 - Operations - Learning Disability,LDP E Cambs Special Needs,Residential Independent Sector
Cambridgeshire County Council,27-Apr-17,23103051-15241493,-903.84,Conquest Care Homes (Soham) Ltd,Care Establishment,2 - Operations - Learning Disability,LDP E Cambs Special Needs,Residential Independent Sector
Cambridgeshire County Council,27-Apr-17,23103064-15241504,-903.84,Conquest Care Homes (Soham) Ltd,Care Establishment,2 - Operations - Learning Disability,LDP E Cambs Special Needs,Residential Independent Sector
Cambridgeshire County Council,27-Apr-17,23103070-15241507,-903.84,Conquest Care Homes (Soham) Ltd,Care Establishment,2 - Operations - Learning Disability,LDP E Cambs Special Needs,Residential Independent Sector
Cambridgeshire County Council,27-Apr-17,23103056-15241497,-903.84,Conquest Care Homes (Soham) Ltd,Care Establishment,2 - Operations - Learning Disability,LDP E Cambs Special Needs,Residential Independent Sector
Cambridgeshire County Council,27-Apr-17,23106655-15241541,-902.53,Conquest Care Homes (Soham) Ltd,Care Establishment,2 - Operations - Learning Disability,LDP E Cambs Special Needs,Residential Independent Sector
Cambridgeshire County Council,27-Apr-17,23106660-15241545,-902.53,Conquest Care Homes (Soham) Ltd,Care Establishment,2 - Operations - Learning Disability,LDP E Cambs Special Needs,Residential Independent Sector
Cambridgeshire County Council,27-Apr-17,23106654-15241540,-902.53,Conquest Care Homes (Soham) Ltd,Care Establishment,2 - Operations - Learning Disability,LDP E Cambs Special Needs,Residential Independent Sector
Cambridgeshire County Council,27-Apr-17,23106647-15241533,-902.53,Conquest Care Homes (Soham) Ltd,Care Establishment,2 - Operations - Learning Disability,LDP E Cambs Special Needs,Residential Independent Sector
Cambridgeshire County Council,27-Apr-17,23106686-15241568,-902.53,Conquest Care Homes (Soham) Ltd,Care Establishment,2 - Operations - Learning Disability,LDP E Cambs Special Needs,Residential Independent Sector
Cambridgeshire County Council,27-Apr-17,23106670-15241555,-902.53,Conquest Care Homes (Soham) Ltd,Care Establishment,2 - Operations - Learning Disability,LDP E Cambs Special Needs,Residential Independent Sector
Cambridgeshire County Council,27-Apr-17,23106677-15241561,-902.53,Conquest Care Homes (Soham) Ltd,Care Establishment,2 - Operations - Learning Disability,LDP E Cambs Special Needs,Residential Independent Sector
Cambridgeshire County Council,27-Apr-17,23106680-15241564,-902.53,Conquest Care Homes (Soham) Ltd,Care Establishment,2 - Operations - Learning Disability,LDP E Cambs Special Needs,Residential Independent Sector
Cambridgeshire County Council,12-Apr-17,23000724-15178725,-900,Bramley Court,Care Establishment,2 - Commissioning - Older people Pool,Older People - City & South,Residential Independent Sector
Cambridgeshire County Council,13-Apr-17,22247667-15185122,-900,Randstad Education Limited,Education,E&P,SEND Specialist Services - Access & Inclusion,Pay - Supply Cover - Long-term supply
Cambridgeshire County Council,12-Apr-17,23000726-15178726,-900,Bramley Court,Care Establishment,2 - Commissioning - Older people Pool,Older People - City & South,Residential Independent Sector
Cambridgeshire County Council,12-Apr-17,23000716-15178722,-900,Bramley Court,Care Establishment,2 - Commissioning - Older people Pool,Older People - City & South,Residential Independent Sector
Cambridgeshire County Council,12-Apr-17,23000717-15178723,-900,Bramley Court,Care Establishment,2 - Commissioning - Older people Pool,Older People - City & South,Residential Independent Sector
Cambridgeshire County Council,12-Apr-17,23000729-15178728,-900,Bramley Court,Care Establishment,2 - Commissioning - Older people Pool,Older People - City & South,Residential Independent Sector
Cambridgeshire County Council,27-Apr-17,23077803-15235642,-895.17,Etheldred House,Care Establishment,2 - Commissioning - Older people Pool,Older People Mental Health Hunts,Nursing Independent Sector
Cambridgeshire County Council,27-Apr-17,23077796-15235635,-895.17,Etheldred House,Care Establishment,2 - Commissioning - Older people Pool,Older People Mental Health Hunts,Nursing Independent Sector
Cambridgeshire County Council,27-Apr-17,23077798-15235637,-895.17,Etheldred House,Care Establishment,2 - Commissioning - Older people Pool,Older People Mental Health Hunts,Nursing Independent Sector
Cambridgeshire County Council,27-Apr-17,23077802-15235641,-895.17,Etheldred House,Care Establishment,2 - Commissioning - Older people Pool,Older People Mental Health Hunts,Nursing Independent Sector
Cambridgeshire County Council,27-Apr-17,23077801-15235640,-895.17,Etheldred House,Care Establishment,2 - Commissioning - Older people Pool,Older People Mental Health Hunts,Nursing Independent Sector
Cambridgeshire County Council,27-Apr-17,23035634-15245844,-876.67,The Gables (Nursing Care Only),Care Establishment,2 - Commissioning - Older people Pool,East Cambs - O P Team,Nursing Independent Sector
Cambridgeshire County Council,27-Apr-17,23035629-15245839,-876.67,The Gables (Nursing Care Only),Care Establishment,2 - Commissioning - Older people Pool,East Cambs - O P Team,Nursing Independent Sector
Cambridgeshire County Council,27-Apr-17,23035630-15245840,-876.67,The Gables (Nursing Care Only),Care Establishment,2 - Commissioning - Older people Pool,East Cambs - O P Team,Nursing Independent Sector
Cambridgeshire County Council,27-Apr-17,23035636-15245846,-876.67,The Gables (Nursing Care Only),Care Establishment,2 - Commissioning - Older people Pool,East Cambs - O P Team,Nursing Independent Sector
Cambridgeshire County Council,27-Apr-17,23035635-15245845,-876.67,The Gables (Nursing Care Only),Care Establishment,2 - Commissioning - Older people Pool,East Cambs - O P Team,Nursing Independent Sector
Cambridgeshire County Council,27-Apr-17,23035628-15245838,-876.67,The Gables (Nursing Care Only),Care Establishment,2 - Commissioning - Older people Pool,East Cambs - O P Team,Nursing Independent Sector
Cambridgeshire County Council,27-Apr-17,23107993-15236534,-864.41,Redacted Personal Data,Individual,2 - Operations - Learning Disability,LDP City Locality - Care,Residential Independent Sector
Cambridgeshire County Council,12-Apr-17,22964137-15178003,-844.25,The Cambridge Nursing Centre,Care Establishment,2 - Commissioning - Older people Pool,Older People - City & South,Nursing Independent Sector
Cambridgeshire County Council,12-Apr-17,22964138-15178004,-844.25,The Cambridge Nursing Centre,Care Establishment,2 - Commissioning - Older people Pool,Older People - City & South,Nursing Independent Sector
Cambridgeshire County Council,12-Apr-17,22964132-15177998,-844.25,The Cambridge Nursing Centre,Care Establishment,2 - Commissioning - Older people Pool,Older People - City & South,Nursing Independent Sector
Cambridgeshire County Council,12-Apr-17,22964134-15178000,-844.25,The Cambridge Nursing Centre,Care Establishment,2 - Commissioning - Older people Pool,Older People - City & South,Nursing Independent Sector
Cambridgeshire County Council,12-Apr-17,22964136-15178002,-844.25,The Cambridge Nursing Centre,Care Establishment,2 - Commissioning - Older people Pool,Older People - City & South,Nursing Independent Sector
Cambridgeshire County Council,12-Apr-17,22964122-15177988,-844.25,The Cambridge Nursing Centre,Care Establishment,2 - Commissioning - Older people Pool,Older People - City & South,Nursing Independent Sector
Cambridgeshire County Council,12-Apr-17,22964125-15177991,-844.25,The Cambridge Nursing Centre,Care Establishment,2 - Commissioning - Older people Pool,Older People - City & South,Nursing Independent Sector
Cambridgeshire County Council,12-Apr-17,22964127-15177993,-844.25,The Cambridge Nursing Centre,Care Establishment,2 - Commissioning - Older people Pool,Older People - City & South,Nursing Independent Sector
Cambridgeshire County Council,12-Apr-17,22964139-15178005,-844.25,The Cambridge Nursing Centre,Care Establishment,2 - Commissioning - Older people Pool,Older People - City & South,Nursing Independent Sector
Cambridgeshire County Council,12-Apr-17,22964128-15177994,-844.25,The Cambridge Nursing Centre,Care Establishment,2 - Commissioning - Older people Pool,Older People - City & South,Nursing Independent Sector
Cambridgeshire County Council,12-Apr-17,22964135-15178001,-844.25,The Cambridge Nursing Centre,Care Establishment,2 - Commissioning - Older people Pool,Older People - City & South,Nursing Independent Sector
Cambridgeshire County Council,12-Apr-17,22964124-15177990,-844.25,The Cambridge Nursing Centre,Care Establishment,2 - Commissioning - Older people Pool,Older People - City & South,Nursing Independent Sector
Cambridgeshire County Council,12-Apr-17,22964126-15177992,-844.25,The Cambridge Nursing Centre,Care Establishment,2 - Commissioning - Older people Pool,Older People - City & South,Nursing Independent Sector
Cambridgeshire County Council,12-Apr-17,22964131-15177997,-844.25,The Cambridge Nursing Centre,Care Establishment,2 - Commissioning - Older people Pool,Older People - City & South,Nursing Independent Sector
Cambridgeshire County Council,12-Apr-17,22964123-15177989,-844.25,The Cambridge Nursing Centre,Care Establishment,2 - Commissioning - Older people Pool,Older People - City & South,Nursing Independent Sector
Cambridgeshire County Council,12-Apr-17,22964130-15177996,-844.25,The Cambridge Nursing Centre,Care Establishment,2 - Commissioning - Older people Pool,Older People - City & South,Nursing Independent Sector
Cambridgeshire County Council,13-Apr-17,23061641-15185476,-843.83,Pitney Bowes Finance Plc,Trade Supplier,Corporate Services,Information Management,Printing
Cambridgeshire County Council,27-Apr-17,23106665-15241550,-842.5,Conquest Care Homes (Soham) Ltd,Care Establishment,2 - Operations - Learning Disability,LDP E Cambs Special Needs,Residential Independent Sector
Cambridgeshire County Council,27-Apr-17,23041518-15253169,-840,Living Ambitions Ltd,Care Establishment,2 - Operations - Learning Disability,LDP City Locality - Care,Day and Domicillary Care Independent Sector
Cambridgeshire County Council,27-Apr-17,23041522-15253173,-840,Living Ambitions Ltd,Care Establishment,2 - Operations - Learning Disability,LDP City Locality - Care,Day and Domicillary Care Independent Sector
Cambridgeshire County Council,27-Apr-17,23041517-15253168,-840,Living Ambitions Ltd,Care Establishment,2 - Operations - Learning Disability,LDP City Locality - Care,Day and Domicillary Care Independent Sector
Cambridgeshire County Council,27-Apr-17,23041523-15253174,-840,Living Ambitions Ltd,Care Establishment,2 - Operations - Learning Disability,LDP City Locality - Care,Day and Domicillary Care Independent Sector
Cambridgeshire County Council,27-Apr-17,23041519-15253170,-840,Living Ambitions Ltd,Care Establishment,2 - Operations - Learning Disability,LDP City Locality - Care,Day and Domicillary Care Independent Sector
Cambridgeshire County Council,27-Apr-17,23041520-15253171,-840,Living Ambitions Ltd,Care Establishment,2 - Operations - Learning Disability,LDP City Locality - Care,Day and Domicillary Care Independent Sector
Cambridgeshire County Council,27-Apr-17,23041521-15253172,-840,Living Ambitions Ltd,Care Establishment,2 - Operations - Learning Disability,LDP City Locality - Care,Day and Domicillary Care Independent Sector
Cambridgeshire County Council,27-Apr-17,23041524-15253175,-840,Living Ambitions Ltd,Care Establishment,2 - Operations - Learning Disability,LDP City Locality - Care,Day and Domicillary Care Independent Sector
Cambridgeshire County Council,27-Apr-17,23005562-15234034,-833.27,Home Close Ltd,Care Establishment,2 - Commissioning - Older people Pool,Older People - City & South,Nursing Independent Sector
Cambridgeshire County Council,12-Apr-17,23039267-15178651,-826,Woodlands Care Centre,Care Establishment,2 - Commissioning - Older people Pool,Older People Mental Health Hunts,Nursing Independent Sector
Cambridgeshire County Council,12-Apr-17,23039278-15178653,-826,Woodlands Care Centre,Care Establishment,2 - Commissioning - Older people Pool,Older People Mental Health Hunts,Nursing Independent Sector
Cambridgeshire County Council,12-Apr-17,23039225-15178648,-826,Woodlands Care Centre,Care Establishment,2 - Commissioning - Older people Pool,Older People Mental Health Hunts,Nursing Independent Sector
Cambridgeshire County Council,12-Apr-17,23042417-15178687,-826,Woodlands Care Centre,Care Establishment,2 - Commissioning - Older people Pool,Older People Mental Health Hunts,Nursing Independent Sector
Cambridgeshire County Council,12-Apr-17,23039238-15178649,-826,Woodlands Care Centre,Care Establishment,2 - Commissioning - Older people Pool,Older People Mental Health Hunts,Nursing Independent Sector
Cambridgeshire County Council,12-Apr-17,23039277-15178652,-826,Woodlands Care Centre,Care Establishment,2 - Commissioning - Older people Pool,Older People Mental Health Hunts,Nursing Independent Sector
Cambridgeshire County Council,27-Apr-17,23102370-15241468,-825.06,Conquest Care Homes (Soham) Ltd,Care Establishment,2 - Operations - Learning Disability,LDP E Cambs Special Needs,Residential Independent Sector
Cambridgeshire County Council,27-Apr-17,23102385-15241480,-825.06,Conquest Care Homes (Soham) Ltd,Care Establishment,2 - Operations - Learning Disability,LDP E Cambs Special Needs,Residential Independent Sector
Cambridgeshire County Council,27-Apr-17,23102387-15241482,-825.06,Conquest Care Homes (Soham) Ltd,Care Establishment,2 - Operations - Learning Disability,LDP E Cambs Special Needs,Residential Independent Sector
Cambridgeshire County Council,27-Apr-17,23102384-15241479,-825.06,Conquest Care Homes (Soham) Ltd,Care Establishment,2 - Operations - Learning Disability,LDP E Cambs Special Needs,Residential Independent Sector
Cambridgeshire County Council,27-Apr-17,23102386-15241481,-825.06,Conquest Care Homes (Soham) Ltd,Care Establishment,2 - Operations - Learning Disability,LDP E Cambs Special Needs,Residential Independent Sector
Cambridgeshire County Council,27-Apr-17,23001833-15232289,-800,The Elms Nursing Home,Care Establishment,2 - Commissioning - Older people Pool,Older People - Fenland,Nursing Independent Sector
Cambridgeshire County Council,27-Apr-17,23001837-15232293,-800,The Elms Nursing Home,Care Establishment,2 - Commissioning - Older people Pool,Older People - Fenland,Nursing Independent Sector
Cambridgeshire County Council,27-Apr-17,23001838-15232294,-800,The Elms Nursing Home,Care Establishment,2 - Commissioning - Older people Pool,Older People - Fenland,Nursing Independent Sector
Cambridgeshire County Council,27-Apr-17,23001840-15232296,-800,The Elms Nursing Home,Care Establishment,2 - Commissioning - Older people Pool,Older People - Fenland,Nursing Independent Sector
Cambridgeshire County Council,27-Apr-17,23005436-15232299,-800,The Elms Nursing Home,Care Establishment,2 - Commissioning - Older people Pool,Older People - Fenland,Nursing Independent Sector
Cambridgeshire County Council,27-Apr-17,23001834-15232290,-800,The Elms Nursing Home,Care Establishment,2 - Commissioning - Older people Pool,Older People - Fenland,Nursing Independent Sector
Cambridgeshire County Council,27-Apr-17,23005437-15232300,-800,The Elms Nursing Home,Care Establishment,2 - Commissioning - Older people Pool,Older People - Fenland,Nursing Independent Sector
Cambridgeshire County Council,27-Apr-17,23005443-15232306,-800,The Elms Nursing Home,Care Establishment,2 - Commissioning - Older people Pool,Older People - Fenland,Nursing Independent Sector
Cambridgeshire County Council,27-Apr-17,23001832-15232288,-800,The Elms Nursing Home,Care Establishment,2 - Commissioning - Older people Pool,Older People - Fenland,Nursing Independent Sector
Cambridgeshire County Council,27-Apr-17,23005435-15232298,-800,The Elms Nursing Home,Care Establishment,2 - Commissioning - Older people Pool,Older People - Fenland,Nursing Independent Sector
Cambridgeshire County Council,27-Apr-17,23005446-15232309,-800,The Elms Nursing Home,Care Establishment,2 - Commissioning - Older people Pool,Older People - Fenland,Nursing Independent Sector
Cambridgeshire County Council,27-Apr-17,23005438-15232301,-800,The Elms Nursing Home,Care Establishment,2 - Commissioning - Older people Pool,Older People - Fenland,Nursing Independent Sector
Cambridgeshire County Council,27-Apr-17,23005441-15232304,-800,The Elms Nursing Home,Care Establishment,2 - Commissioning - Older people Pool,Older People - Fenland,Nursing Independent Sector
Cambridgeshire County Council,27-Apr-17,23005440-15232303,-800,The Elms Nursing Home,Care Establishment,2 - Commissioning - Older people Pool,Older People - Fenland,Nursing Independent Sector
Cambridgeshire County Council,27-Apr-17,23005442-15232305,-800,The Elms Nursing Home,Care Establishment,2 - Commissioning - Older people Pool,Older People - Fenland,Nursing Independent Sector
Cambridgeshire County Council,27-Apr-17,23005444-15232307,-800,The Elms Nursing Home,Care Establishment,2 - Commissioning - Older people Pool,Older People - Fenland,Nursing Independent Sector
Cambridgeshire County Council,27-Apr-17,23001839-15232295,-800,The Elms Nursing Home,Care Establishment,2 - Commissioning - Older people Pool,Older People - Fenland,Nursing Independent Sector
Cambridgeshire County Council,27-Apr-17,23005439-15232302,-800,The Elms Nursing Home,Care Establishment,2 - Commissioning - Older people Pool,Older People - Fenland,Nursing Independent Sector
Cambridgeshire County Council,13-Apr-17,22934705-15185385,-798,Randstad Education Limited,Education,E&P,SEMH Support Programme,Pay - Supply Cover - Long-term supply
Cambridgeshire County Council,13-Apr-17,23061501-15185394,-798,Randstad Education Limited,Education,E&P,SEMH Support Programme,Pay - Supply Cover - Long-term supply
Cambridgeshire County Council,03-Apr-17,22903692-15131330,-798,Randstad Education Limited,Education,E&P,SEMH Support Programme,Pay - Supply Cover - Long-term supply
Cambridgeshire County Council,03-Apr-17,22903693-15131331,-798,Randstad Education Limited,Education,E&P,SEMH Support Programme,Pay - Supply Cover - Long-term supply
Cambridgeshire County Council,03-Apr-17,22934703-15131337,-798,Randstad Education Limited,Education,E&P,SEMH Support Programme,Pay - Supply Cover - Long-term supply
Cambridgeshire County Council,03-Apr-17,22934704-15131338,-798,Randstad Education Limited,Education,E&P,SEMH Support Programme,Pay - Supply Cover - Long-term supply
Cambridgeshire County Council,13-Apr-17,22281229-15185123,-798,Randstad Education Limited,Education,E&P,SEMH Support Programme,Pay - Supply Cover - Long-term supply
Cambridgeshire County Council,27-Apr-17,23103043-15241487,-797.66,Conquest Care Homes (Soham) Ltd,Care Establishment,2 - Operations - Learning Disability,LDP E Cambs Special Needs,Residential Independent Sector
Cambridgeshire County Council,27-Apr-17,23100067-15250265,-793.86,Broad Oaks Vct Ltd,Care Establishment,2 - Operations - Learning Disability,LDP Fenland Locality - Care,Residential Independent Sector
Cambridgeshire County Council,27-Apr-17,23100073-15250270,-793.86,Broad Oaks Vct Ltd,Care Establishment,2 - Operations - Learning Disability,LDP Fenland Locality - Care,Residential Independent Sector
Cambridgeshire County Council,27-Apr-17,23100079-15250275,-793.86,Broad Oaks Vct Ltd,Care Establishment,2 - Operations - Learning Disability,LDP Fenland Locality - Care,Residential Independent Sector
Cambridgeshire County Council,20-Apr-17,23074599-15204970,-793.81,Making Space#1,Care Establishment,3 - Operations - Countywide Services,Countywide PD Service - Care,Nursing Independent Sector
Cambridgeshire County Council,12-Apr-17,23035734-15181691,-793.81,Making Space#1,Care Establishment,3 - Operations - Countywide Services,Countywide PD Service - Care,Nursing Independent Sector
Cambridgeshire County Council,12-Apr-17,23002966-15181619,-793.81,Making Space#1,Care Establishment,3 - Operations - Countywide Services,Countywide PD Service - Care,Nursing Independent Sector
Cambridgeshire County Council,12-Apr-17,22954102-15181568,-793.81,Making Space#1,Care Establishment,3 - Operations - Countywide Services,Countywide PD Service - Care,Nursing Independent Sector
Cambridgeshire County Council,27-Apr-17,23116582-15241594,-781.34,Conquest Care Homes (Soham) Ltd,Care Establishment,2 - Operations - Learning Disability,LDP E Cambs Special Needs,Residential Independent Sector
Cambridgeshire County Council,27-Apr-17,23116573-15241588,-781.34,Conquest Care Homes (Soham) Ltd,Care Establishment,2 - Operations - Learning Disability,LDP E Cambs Special Needs,Residential Independent Sector
Cambridgeshire County Council,27-Apr-17,23116587-15241597,-781.34,Conquest Care Homes (Soham) Ltd,Care Establishment,2 - Operations - Learning Disability,LDP E Cambs Special Needs,Residential Independent Sector
Cambridgeshire County Council,27-Apr-17,23116594-15241601,-781.34,Conquest Care Homes (Soham) Ltd,Care Establishment,2 - Operations - Learning Disability,LDP E Cambs Special Needs,Residential Independent Sector
Cambridgeshire County Council,27-Apr-17,23116598-15241604,-781.34,Conquest Care Homes (Soham) Ltd,Care Establishment,2 - Operations - Learning Disability,LDP E Cambs Special Needs,Residential Independent Sector
Cambridgeshire County Council,06-Apr-17,23005343-15146024,-773.76,Royal Mencap Society,Care Establishment,2 - Operations - Learning Disability,LDP South Cambs Locality - Care,Residential Independent Sector
Cambridgeshire County Council,06-Apr-17,22995064-15145963,-773.76,Royal Mencap Society,Care Establishment,2 - Operations - Learning Disability,LDP South Cambs Locality - Care,Residential Independent Sector
Cambridgeshire County Council,06-Apr-17,23001645-15145979,-773.76,Royal Mencap Society,Care Establishment,2 - Operations - Learning Disability,LDP South Cambs Locality - Care,Residential Independent Sector
Cambridgeshire County Council,06-Apr-17,23005351-15146032,-773.76,Royal Mencap Society,Care Establishment,2 - Operations - Learning Disability,LDP South Cambs Locality - Care,Residential Independent Sector
Cambridgeshire County Council,06-Apr-17,22995067-15145966,-773.76,Royal Mencap Society,Care Establishment,2 - Operations - Learning Disability,LDP South Cambs Locality - Care,Residential Independent Sector
Cambridgeshire County Council,06-Apr-17,23001637-15145971,-773.76,Royal Mencap Society,Care Establishment,2 - Operations - Learning Disability,LDP South Cambs Locality - Care,Residential Independent Sector
Cambridgeshire County Council,06-Apr-17,23001643-15145977,-773.76,Royal Mencap Society,Care Establishment,2 - Operations - Learning Disability,LDP South Cambs Locality - Care,Residential Independent Sector
Cambridgeshire County Council,06-Apr-17,23005330-15146011,-773.76,Royal Mencap Society,Care Establishment,2 - Operations - Learning Disability,LDP South Cambs Locality - Care,Residential Independent Sector
Cambridgeshire County Council,06-Apr-17,23005350-15146031,-773.76,Royal Mencap Society,Care Establishment,2 - Operations - Learning Disability,LDP South Cambs Locality - Care,Residential Independent Sector
Cambridgeshire County Council,06-Apr-17,23001652-15145986,-773.76,Royal Mencap Society,Care Establishment,2 - Operations - Learning Disability,LDP South Cambs Locality - Care,Residential Independent Sector
Cambridgeshire County Council,06-Apr-17,23005320-15146001,-773.76,Royal Mencap Society,Care Establishment,2 - Operations - Learning Disability,LDP South Cambs Locality - Care,Residential Independent Sector
Cambridgeshire County Council,06-Apr-17,23005322-15146003,-773.76,Royal Mencap Society,Care Establishment,2 - Operations - Learning Disability,LDP South Cambs Locality - Care,Residential Independent Sector
Cambridgeshire County Council,06-Apr-17,23005327-15146008,-773.76,Royal Mencap Society,Care Establishment,2 - Operations - Learning Disability,LDP South Cambs Locality - Care,Residential Independent Sector
Cambridgeshire County Council,06-Apr-17,22995063-15145962,-773.76,Royal Mencap Society,Care Establishment,2 - Operations - Learning Disability,LDP South Cambs Locality - Care,Residential Independent Sector
Cambridgeshire County Council,06-Apr-17,23005311-15145992,-773.76,Royal Mencap Society,Care Establishment,2 - Operations - Learning Disability,LDP South Cambs Locality - Care,Residential Independent Sector
Cambridgeshire County Council,27-Apr-17,23106669-15241554,-773.6,Conquest Care Homes (Soham) Ltd,Care Establishment,2 - Operations - Learning Disability,LDP E Cambs Special Needs,Residential Independent Sector
Cambridgeshire County Council,27-Apr-17,23077797-15235636,-767.29,Etheldred House,Care Establishment,2 - Commissioning - Older people Pool,Older People Mental Health Hunts,Nursing Independent Sector
Cambridgeshire County Council,27-Apr-17,23077799-15235638,-767.29,Etheldred House,Care Establishment,2 - Commissioning - Older people Pool,Older People Mental Health Hunts,Nursing Independent Sector
Cambridgeshire County Council,27-Apr-17,23100803-15245193,-766.29,Glennfield Care Centre (Op),Care Establishment,5 - Commissioning - Mental Health & Supporting People,OP Blocks - Care Placements,Residential Independent Sector
Cambridgeshire County Council,27-Apr-17,23103232-15241518,-761.46,Conquest Care Homes (Soham) Ltd,Care Establishment,2 - Operations - Learning Disability,LDP E Cambs Locality - Care,Residential Independent Sector
Cambridgeshire County Council,27-Apr-17,23117787-15241631,-761.46,Conquest Care Homes (Soham) Ltd,Care Establishment,2 - Operations - Learning Disability,LDP E Cambs Special Needs,Residential Independent Sector
Cambridgeshire County Council,27-Apr-17,23103237-15241523,-761.46,Conquest Care Homes (Soham) Ltd,Care Establishment,2 - Operations - Learning Disability,LDP E Cambs Locality - Care,Residential Independent Sector
Cambridgeshire County Council,27-Apr-17,23117801-15241618,-761.46,Conquest Care Homes (Soham) Ltd,Care Establishment,2 - Operations - Learning Disability,LDP E Cambs Special Needs,Residential Independent Sector
Cambridgeshire County Council,27-Apr-17,23117758-15241622,-761.46,Conquest Care Homes (Soham) Ltd,Care Establishment,2 - Operations - Learning Disability,LDP E Cambs Special Needs,Residential Independent Sector
Cambridgeshire County Council,27-Apr-17,23103234-15241520,-761.46,Conquest Care Homes (Soham) Ltd,Care Establishment,2 - Operations - Learning Disability,LDP E Cambs Locality - Care,Residential Independent Sector
Cambridgeshire County Council,27-Apr-17,23103242-15241528,-761.46,Conquest Care Homes (Soham) Ltd,Care Establishment,2 - Operations - Learning Disability,LDP E Cambs Locality - Care,Residential Independent Sector
Cambridgeshire County Council,27-Apr-17,23103240-15241526,-761.46,Conquest Care Homes (Soham) Ltd,Care Establishment,2 - Operations - Learning Disability,LDP E Cambs Locality - Care,Residential Independent Sector
Cambridgeshire County Council,27-Apr-17,23117810-15241633,-761.46,Conquest Care Homes (Soham) Ltd,Care Establishment,2 - Operations - Learning Disability,LDP E Cambs Special Needs,Residential Independent Sector
Cambridgeshire County Council,27-Apr-17,23117763-15241624,-761.46,Conquest Care Homes (Soham) Ltd,Care Establishment,2 - Operations - Learning Disability,LDP E Cambs Special Needs,Residential Independent Sector
Cambridgeshire County Council,27-Apr-17,23035631-15245841,-751.43,The Gables (Nursing Care Only),Care Establishment,2 - Commissioning - Older people Pool,East Cambs - O P Team,Nursing Independent Sector
Cambridgeshire County Council,27-Apr-17,23102457-15242734,-749.91,25 Scotney Street,Care Establishment,3 - Operations - Countywide Services,Autism and Adult Support Team - Care,Supported Living
Cambridgeshire County Council,27-Apr-17,23102451-15242728,-749.91,25 Scotney Street,Care Establishment,3 - Operations - Countywide Services,Autism and Adult Support Team - Care,Supported Living
Cambridgeshire County Council,27-Apr-17,23102424-15242701,-749.91,25 Scotney Street,Care Establishment,3 - Operations - Countywide Services,Autism and Adult Support Team - Care,Supported Living
Cambridgeshire County Council,27-Apr-17,23102416-15242693,-749.91,25 Scotney Street,Care Establishment,3 - Operations - Countywide Services,Autism and Adult Support Team - Care,Supported Living
Cambridgeshire County Council,27-Apr-17,23102441-15242718,-749.91,25 Scotney Street,Care Establishment,3 - Operations - Countywide Services,Autism and Adult Support Team - Care,Supported Living
Cambridgeshire County Council,27-Apr-17,23102447-15242724,-749.91,25 Scotney Street,Care Establishment,3 - Operations - Countywide Services,Autism and Adult Support Team - Care,Supported Living
Cambridgeshire County Council,27-Apr-17,23102415-15242692,-749.91,25 Scotney Street,Care Establishment,3 - Operations - Countywide Services,Autism and Adult Support Team - Care,Supported Living
Cambridgeshire County Council,27-Apr-17,23102389-15241483,-749.85,Conquest Care Homes (Soham) Ltd,Care Establishment,2 - Operations - Learning Disability,LDP E Cambs Special Needs,Residential Independent Sector
Cambridgeshire County Council,06-Apr-17,22998782-15152032,-736.45,The Edmund Trust,Care Establishment,2 - Operations - Learning Disability,LDP E Cambs Special Needs,Day and Domicillary Care Independent Sector
Cambridgeshire County Council,20-Apr-17,23074948-15205823,-736.45,The Edmund Trust,Care Establishment,2 - Operations - Learning Disability,LDP E Cambs Special Needs,Day and Domicillary Care Independent Sector
Cambridgeshire County Council,20-Apr-17,23077100-15205841,-736.45,The Edmund Trust,Care Establishment,2 - Operations - Learning Disability,LDP E Cambs Locality - Care,Day and Domicillary Care Independent Sector
Cambridgeshire County Council,20-Apr-17,23077103-15205844,-736.45,The Edmund Trust,Care Establishment,2 - Operations - Learning Disability,LDP E Cambs Special Needs,Day and Domicillary Care Independent Sector
Cambridgeshire County Council,27-Apr-17,23102792-15246697,-736.45,The Edmund Trust,Care Establishment,2 - Operations - Learning Disability,LDP E Cambs Special Needs,Day and Domicillary Care Independent Sector
Cambridgeshire County Council,06-Apr-17,22998514-15152025,-736.45,The Edmund Trust,Care Establishment,2 - Operations - Learning Disability,LDP E Cambs Special Needs,Day and Domicillary Care Independent Sector
Cambridgeshire County Council,06-Apr-17,22998796-15152044,-736.45,The Edmund Trust,Care Establishment,2 - Operations - Learning Disability,LDP E Cambs Locality - Care,Day and Domicillary Care Independent Sector
Cambridgeshire County Council,20-Apr-17,23077115-15205856,-736.45,The Edmund Trust,Care Establishment,2 - Operations - Learning Disability,LDP E Cambs Special Needs,Day and Domicillary Care Independent Sector
Cambridgeshire County Council,27-Apr-17,23102751-15246672,-736.45,The Edmund Trust,Care Establishment,2 - Operations - Learning Disability,LDP E Cambs Special Needs,Day and Domicillary Care Independent Sector
Cambridgeshire County Council,27-Apr-17,23102801-15246705,-736.45,The Edmund Trust,Care Establishment,2 - Operations - Learning Disability,LDP E Cambs Special Needs,Day and Domicillary Care Independent Sector
Cambridgeshire County Council,06-Apr-17,22995501-15152016,-736.45,The Edmund Trust,Care Establishment,2 - Operations - Learning Disability,LDP E Cambs Locality - Care,Day and Domicillary Care Independent Sector
Cambridgeshire County Council,06-Apr-17,22995506-15152019,-736.45,The Edmund Trust,Care Establishment,2 - Operations - Learning Disability,LDP E Cambs Locality - Care,Day and Domicillary Care Independent Sector
Cambridgeshire County Council,06-Apr-17,22998512-15152023,-736.45,The Edmund Trust,Care Establishment,2 - Operations - Learning Disability,LDP E Cambs Locality - Care,Day and Domicillary Care Independent Sector
Cambridgeshire County Council,06-Apr-17,22998793-15152041,-736.45,The Edmund Trust,Care Establishment,2 - Operations - Learning Disability,LDP E Cambs Special Needs,Day and Domicillary Care Independent Sector
Cambridgeshire County Council,06-Apr-17,22998772-15152045,-736.45,The Edmund Trust,Care Establishment,2 - Operations - Learning Disability,LDP E Cambs Locality - Care,Day and Domicillary Care Independent Sector
Cambridgeshire County Council,06-Apr-17,22998773-15152046,-736.45,The Edmund Trust,Care Establishment,2 - Operations - Learning Disability,LDP E Cambs Special Needs,Day and Domicillary Care Independent Sector
Cambridgeshire County Council,20-Apr-17,23074950-15205825,-736.45,The Edmund Trust,Care Establishment,2 - Operations - Learning Disability,LDP E Cambs Special Needs,Day and Domicillary Care Independent Sector
Cambridgeshire County Council,20-Apr-17,23077114-15205855,-736.45,The Edmund Trust,Care Establishment,2 - Operations - Learning Disability,LDP E Cambs Special Needs,Day and Domicillary Care Independent Sector
Cambridgeshire County Council,20-Apr-17,23041325-15205777,-736.45,The Edmund Trust,Care Establishment,2 - Operations - Learning Disability,LDP E Cambs Locality - Care,Day and Domicillary Care Independent Sector
Cambridgeshire County Council,20-Apr-17,23041338-15205787,-736.45,The Edmund Trust,Care Establishment,2 - Operations - Learning Disability,LDP E Cambs Locality - Care,Day and Domicillary Care Independent Sector
Cambridgeshire County Council,27-Apr-17,23102789-15246694,-736.45,The Edmund Trust,Care Establishment,2 - Operations - Learning Disability,LDP E Cambs Special Needs,Day and Domicillary Care Independent Sector
Cambridgeshire County Council,06-Apr-17,22998513-15152024,-736.45,The Edmund Trust,Care Establishment,2 - Operations - Learning Disability,LDP E Cambs Special Needs,Day and Domicillary Care Independent Sector
Cambridgeshire County Council,06-Apr-17,22998795-15152043,-736.45,The Edmund Trust,Care Establishment,2 - Operations - Learning Disability,LDP E Cambs Locality - Care,Day and Domicillary Care Independent Sector
Cambridgeshire County Council,20-Apr-17,23077104-15205845,-736.45,The Edmund Trust,Care Establishment,2 - Operations - Learning Disability,LDP E Cambs Locality - Care,Day and Domicillary Care Independent Sector
Cambridgeshire County Council,20-Apr-17,23077111-15205852,-736.45,The Edmund Trust,Care Establishment,2 - Operations - Learning Disability,LDP E Cambs Locality - Care,Day and Domicillary Care Independent Sector
Cambridgeshire County Council,20-Apr-17,23041328-15205779,-736.45,The Edmund Trust,Care Establishment,2 - Operations - Learning Disability,LDP E Cambs Locality - Care,Day and Domicillary Care Independent Sector
Cambridgeshire County Council,20-Apr-17,23041329-15205780,-736.45,The Edmund Trust,Care Establishment,2 - Operations - Learning Disability,LDP E Cambs Locality - Care,Day and Domicillary Care Independent Sector
Cambridgeshire County Council,20-Apr-17,23041339-15205788,-736.45,The Edmund Trust,Care Establishment,2 - Operations - Learning Disability,LDP E Cambs Special Needs,Day and Domicillary Care Independent Sector
Cambridgeshire County Council,20-Apr-17,23041344-15205793,-736.45,The Edmund Trust,Care Establishment,2 - Operations - Learning Disability,LDP E Cambs Locality - Care,Day and Domicillary Care Independent Sector
Cambridgeshire County Council,20-Apr-17,23041347-15205796,-736.45,The Edmund Trust,Care Establishment,2 - Operations - Learning Disability,LDP E Cambs Locality - Care,Day and Domicillary Care Independent Sector
Cambridgeshire County Council,27-Apr-17,23102752-15246673,-736.45,The Edmund Trust,Care Establishment,2 - Operations - Learning Disability,LDP E Cambs Special Needs,Day and Domicillary Care Independent Sector
Cambridgeshire County Council,27-Apr-17,23102802-15246706,-736.45,The Edmund Trust,Care Establishment,2 - Operations - Learning Disability,LDP E Cambs Locality - Care,Day and Domicillary Care Independent Sector
Cambridgeshire County Council,06-Apr-17,22998510-15152022,-736.45,The Edmund Trust,Care Establishment,2 - Operations - Learning Disability,LDP E Cambs Special Needs,Day and Domicillary Care Independent Sector
Cambridgeshire County Council,06-Apr-17,22998788-15152036,-736.45,The Edmund Trust,Care Establishment,2 - Operations - Learning Disability,LDP E Cambs Locality - Care,Day and Domicillary Care Independent Sector
Cambridgeshire County Council,06-Apr-17,22998791-15152039,-736.45,The Edmund Trust,Care Establishment,2 - Operations - Learning Disability,LDP E Cambs Special Needs,Day and Domicillary Care Independent Sector
Cambridgeshire County Council,20-Apr-17,23041324-15205776,-736.45,The Edmund Trust,Care Establishment,2 - Operations - Learning Disability,LDP E Cambs Special Needs,Day and Domicillary Care Independent Sector
Cambridgeshire County Council,20-Apr-17,23041332-15205783,-736.45,The Edmund Trust,Care Establishment,2 - Operations - Learning Disability,LDP E Cambs Locality - Care,Day and Domicillary Care Independent Sector
Cambridgeshire County Council,20-Apr-17,23041340-15205789,-736.45,The Edmund Trust,Care Establishment,2 - Operations - Learning Disability,LDP E Cambs Special Needs,Day and Domicillary Care Independent Sector
Cambridgeshire County Council,27-Apr-17,23102760-15246678,-736.45,The Edmund Trust,Care Establishment,2 - Operations - Learning Disability,LDP E Cambs Locality - Care,Day and Domicillary Care Independent Sector
Cambridgeshire County Council,20-Apr-17,23074946-15205821,-736.45,The Edmund Trust,Care Establishment,2 - Operations - Learning Disability,LDP E Cambs Locality - Care,Day and Domicillary Care Independent Sector
Cambridgeshire County Council,20-Apr-17,23074957-15205832,-736.45,The Edmund Trust,Care Establishment,2 - Operations - Learning Disability,LDP E Cambs Special Needs,Day and Domicillary Care Independent Sector
Cambridgeshire County Council,20-Apr-17,23077112-15205853,-736.45,The Edmund Trust,Care Establishment,2 - Operations - Learning Disability,LDP E Cambs Special Needs,Day and Domicillary Care Independent Sector
Cambridgeshire County Council,20-Apr-17,23041321-15205774,-736.45,The Edmund Trust,Care Establishment,2 - Operations - Learning Disability,LDP E Cambs Locality - Care,Day and Domicillary Care Independent Sector
Cambridgeshire County Council,20-Apr-17,23041343-15205792,-736.45,The Edmund Trust,Care Establishment,2 - Operations - Learning Disability,LDP E Cambs Special Needs,Day and Domicillary Care Independent Sector
Cambridgeshire County Council,27-Apr-17,23102755-15246674,-736.45,The Edmund Trust,Care Establishment,2 - Operations - Learning Disability,LDP E Cambs Special Needs,Day and Domicillary Care Independent Sector
Cambridgeshire County Council,27-Apr-17,23102756-15246675,-736.45,The Edmund Trust,Care Establishment,2 - Operations - Learning Disability,LDP E Cambs Special Needs,Day and Domicillary Care Independent Sector
Cambridgeshire County Council,27-Apr-17,23102791-15246696,-736.45,The Edmund Trust,Care Establishment,2 - Operations - Learning Disability,LDP E Cambs Locality - Care,Day and Domicillary Care Independent Sector
Cambridgeshire County Council,27-Apr-17,23102810-15246709,-736.45,The Edmund Trust,Care Establishment,2 - Operations - Learning Disability,LDP E Cambs Locality - Care,Day and Domicillary Care Independent Sector
Cambridgeshire County Council,06-Apr-17,22998516-15152027,-736.45,The Edmund Trust,Care Establishment,2 - Operations - Learning Disability,LDP E Cambs Special Needs,Day and Domicillary Care Independent Sector
Cambridgeshire County Council,06-Apr-17,22998792-15152040,-736.45,The Edmund Trust,Care Establishment,2 - Operations - Learning Disability,LDP E Cambs Locality - Care,Day and Domicillary Care Independent Sector
Cambridgeshire County Council,20-Apr-17,23074949-15205824,-736.45,The Edmund Trust,Care Establishment,2 - Operations - Learning Disability,LDP E Cambs Locality - Care,Day and Domicillary Care Independent Sector
Cambridgeshire County Council,20-Apr-17,23074953-15205828,-736.45,The Edmund Trust,Care Establishment,2 - Operations - Learning Disability,LDP E Cambs Special Needs,Day and Domicillary Care Independent Sector
Cambridgeshire County Council,20-Apr-17,23077099-15205840,-736.45,The Edmund Trust,Care Establishment,2 - Operations - Learning Disability,LDP E Cambs Special Needs,Day and Domicillary Care Independent Sector
Cambridgeshire County Council,20-Apr-17,23077105-15205846,-736.45,The Edmund Trust,Care Establishment,2 - Operations - Learning Disability,LDP E Cambs Special Needs,Day and Domicillary Care Independent Sector
Cambridgeshire County Council,20-Apr-17,23077116-15205857,-736.45,The Edmund Trust,Care Establishment,2 - Operations - Learning Disability,LDP E Cambs Locality - Care,Day and Domicillary Care Independent Sector
Cambridgeshire County Council,20-Apr-17,23041331-15205782,-736.45,The Edmund Trust,Care Establishment,2 - Operations - Learning Disability,LDP E Cambs Locality - Care,Day and Domicillary Care Independent Sector
Cambridgeshire County Council,27-Apr-17,23102749-15246671,-736.45,The Edmund Trust,Care Establishment,2 - Operations - Learning Disability,LDP E Cambs Locality - Care,Day and Domicillary Care Independent Sector
Cambridgeshire County Council,27-Apr-17,23102775-15246686,-736.45,The Edmund Trust,Care Establishment,2 - Operations - Learning Disability,LDP E Cambs Locality - Care,Day and Domicillary Care Independent Sector
Cambridgeshire County Council,20-Apr-17,23041330-15205781,-736.45,The Edmund Trust,Care Establishment,2 - Operations - Learning Disability,LDP E Cambs Locality - Care,Day and Domicillary Care Independent Sector
Cambridgeshire County Council,20-Apr-17,23041337-15205786,-736.45,The Edmund Trust,Care Establishment,2 - Operations - Learning Disability,LDP E Cambs Special Needs,Day and Domicillary Care Independent Sector
Cambridgeshire County Council,20-Apr-17,23041350-15205799,-736.45,The Edmund Trust,Care Establishment,2 - Operations - Learning Disability,LDP E Cambs Special Needs,Day and Domicillary Care Independent Sector
Cambridgeshire County Council,27-Apr-17,23102769-15246683,-736.45,The Edmund Trust,Care Establishment,2 - Operations - Learning Disability,LDP E Cambs Special Needs,Day and Domicillary Care Independent Sector
Cambridgeshire County Council,27-Apr-17,23102782-15246689,-736.45,The Edmund Trust,Care Establishment,2 - Operations - Learning Disability,LDP E Cambs Special Needs,Day and Domicillary Care Independent Sector
Cambridgeshire County Council,27-Apr-17,23102783-15246690,-736.45,The Edmund Trust,Care Establishment,2 - Operations - Learning Disability,LDP E Cambs Locality - Care,Day and Domicillary Care Independent Sector
Cambridgeshire County Council,27-Apr-17,23105218-15232341,-736.41,The Elms Nursing Home,Care Establishment,2 - Commissioning - Older people Pool,Older People - Fenland,Nursing Independent Sector
Cambridgeshire County Council,27-Apr-17,23105210-15232340,-736.41,The Elms Nursing Home,Care Establishment,2 - Commissioning - Older people Pool,Older People - Fenland,Nursing Independent Sector
Cambridgeshire County Council,27-Apr-17,23111572-15232352,-736.41,The Elms Nursing Home,Care Establishment,2 - Commissioning - Older people Pool,Older People - Fenland,Nursing Independent Sector
Cambridgeshire County Council,12-Apr-17,22646013-15182059,-725.78,Redacted Personal Data,Individual,2 - Commissioning - Older people Pool,Older People - City & South,Direct Payments - Social Services
Cambridgeshire County Council,12-Apr-17,22646010-15182056,-725.78,Redacted Personal Data,Individual,2 - Commissioning - Older people Pool,Older People - City & South,Direct Payments - Social Services
Cambridgeshire County Council,12-Apr-17,22646011-15182057,-725.78,Redacted Personal Data,Individual,2 - Commissioning - Older people Pool,Older People - City & South,Direct Payments - Social Services
Cambridgeshire County Council,12-Apr-17,22646012-15182058,-725.78,Redacted Personal Data,Individual,2 - Commissioning - Older people Pool,Older People - City & South,Direct Payments - Social Services
Cambridgeshire County Council,12-Apr-17,22964133-15177999,-723.64,The Cambridge Nursing Centre,Care Establishment,2 - Commissioning - Older people Pool,Older People - City & South,Nursing Independent Sector
Cambridgeshire County Council,12-Apr-17,23042381-15178686,-708,Woodlands Care Centre,Care Establishment,2 - Commissioning - Older people Pool,Older People Mental Health Hunts,Nursing Independent Sector
Cambridgeshire County Council,27-Apr-17,23116590-15241599,-698.55,Conquest Care Homes (Soham) Ltd,Care Establishment,2 - Operations - Learning Disability,LDP E Cambs Special Needs,Residential Independent Sector
Cambridgeshire County Council,12-Apr-17,22999541-15178019,-698.3,The Cambridge Nursing Centre,Care Establishment,2 - Commissioning - Older people Pool,Older People - City & South,Nursing Independent Sector
Cambridgeshire County Council,12-Apr-17,22999542-15178020,-698.3,The Cambridge Nursing Centre,Care Establishment,2 - Commissioning - Older people Pool,Older People - City & South,Nursing Independent Sector
Cambridgeshire County Council,12-Apr-17,22999538-15178016,-698.3,The Cambridge Nursing Centre,Care Establishment,2 - Commissioning - Older people Pool,Older People - City & South,Nursing Independent Sector
Cambridgeshire County Council,27-Apr-17,22999548-15239652,-695.52,Fenland Area Community Enterprise Trust (Facet),Trust (Other),2 - Operations - Learning Disability,LDP Fenland Locality - Care,Daycare
Cambridgeshire County Council,27-Apr-17,23006208-15239819,-695.52,Fenland Area Community Enterprise Trust (Facet),Trust (Other),2 - Operations - Learning Disability,LDP Fenland Locality - Care,Daycare
Cambridgeshire County Council,27-Apr-17,23006191-15239843,-695.52,Fenland Area Community Enterprise Trust (Facet),Trust (Other),2 - Operations - Learning Disability,LDP Fenland Locality - Care,Daycare
Cambridgeshire County Council,27-Apr-17,23006196-15239847,-695.52,Fenland Area Community Enterprise Trust (Facet),Trust (Other),2 - Operations - Learning Disability,LDP Fenland Locality - Care,Daycare
Cambridgeshire County Council,27-Apr-17,23006198-15239849,-695.52,Fenland Area Community Enterprise Trust (Facet),Trust (Other),2 - Operations - Learning Disability,LDP Fenland Locality - Care,Daycare
Cambridgeshire County Council,27-Apr-17,22999545-15239650,-695.52,Fenland Area Community Enterprise Trust (Facet),Trust (Other),2 - Operations - Learning Disability,LDP Fenland Locality - Care,Daycare
Cambridgeshire County Council,27-Apr-17,23006213-15239823,-695.52,Fenland Area Community Enterprise Trust (Facet),Trust (Other),2 - Operations - Learning Disability,LDP Fenland Locality - Care,Daycare
Cambridgeshire County Council,27-Apr-17,23006222-15239832,-695.52,Fenland Area Community Enterprise Trust (Facet),Trust (Other),2 - Operations - Learning Disability,LDP Fenland Locality - Care,Daycare
Cambridgeshire County Council,27-Apr-17,23006224-15239833,-695.52,Fenland Area Community Enterprise Trust (Facet),Trust (Other),2 - Operations - Learning Disability,LDP Fenland Locality - Care,Daycare
Cambridgeshire County Council,27-Apr-17,23006227-15239836,-695.52,Fenland Area Community Enterprise Trust (Facet),Trust (Other),2 - Operations - Learning Disability,LDP Fenland Locality - Care,Daycare
Cambridgeshire County Council,27-Apr-17,22999550-15239654,-695.52,Fenland Area Community Enterprise Trust (Facet),Trust (Other),2 - Operations - Learning Disability,LDP Fenland Locality - Care,Daycare
Cambridgeshire County Council,27-Apr-17,22999551-15239655,-695.52,Fenland Area Community Enterprise Trust (Facet),Trust (Other),2 - Operations - Learning Disability,LDP Fenland Locality - Care,Daycare
Cambridgeshire County Council,27-Apr-17,23006201-15239814,-695.52,Fenland Area Community Enterprise Trust (Facet),Trust (Other),2 - Operations - Learning Disability,LDP Fenland Locality - Care,Daycare
Cambridgeshire County Council,27-Apr-17,23006210-15239821,-695.52,Fenland Area Community Enterprise Trust (Facet),Trust (Other),2 - Operations - Learning Disability,LDP Fenland Locality - Care,Daycare
Cambridgeshire County Council,27-Apr-17,23006214-15239824,-695.52,Fenland Area Community Enterprise Trust (Facet),Trust (Other),2 - Operations - Learning Disability,LDP Fenland Locality - Care,Daycare
Cambridgeshire County Council,27-Apr-17,23006216-15239826,-695.52,Fenland Area Community Enterprise Trust (Facet),Trust (Other),2 - Operations - Learning Disability,LDP Fenland Locality - Care,Daycare
Cambridgeshire County Council,27-Apr-17,23006219-15239829,-695.52,Fenland Area Community Enterprise Trust (Facet),Trust (Other),2 - Operations - Learning Disability,LDP Fenland Locality - Care,Daycare
Cambridgeshire County Council,27-Apr-17,23006232-15239839,-695.52,Fenland Area Community Enterprise Trust (Facet),Trust (Other),2 - Operations - Learning Disability,LDP Fenland Locality - Care,Daycare
Cambridgeshire County Council,27-Apr-17,22999552-15239656,-695.52,Fenland Area Community Enterprise Trust (Facet),Trust (Other),2 - Operations - Learning Disability,LDP Fenland Locality - Care,Daycare
Cambridgeshire County Council,27-Apr-17,23006199-15239812,-695.52,Fenland Area Community Enterprise Trust (Facet),Trust (Other),2 - Operations - Learning Disability,LDP Fenland Locality - Care,Daycare
Cambridgeshire County Council,27-Apr-17,23006211-15239822,-695.52,Fenland Area Community Enterprise Trust (Facet),Trust (Other),2 - Operations - Learning Disability,LDP Fenland Locality - Care,Daycare
Cambridgeshire County Council,27-Apr-17,23006218-15239828,-695.52,Fenland Area Community Enterprise Trust (Facet),Trust (Other),2 - Operations - Learning Disability,LDP Fenland Locality - Care,Daycare
Cambridgeshire County Council,27-Apr-17,23006220-15239830,-695.52,Fenland Area Community Enterprise Trust (Facet),Trust (Other),2 - Operations - Learning Disability,LDP Fenland Locality - Care,Daycare
Cambridgeshire County Council,27-Apr-17,23006192-15239844,-695.52,Fenland Area Community Enterprise Trust (Facet),Trust (Other),2 - Operations - Learning Disability,LDP Fenland Locality - Care,Daycare
Cambridgeshire County Council,27-Apr-17,23006193-15239845,-695.52,Fenland Area Community Enterprise Trust (Facet),Trust (Other),2 - Operations - Learning Disability,LDP Fenland Locality - Care,Daycare
Cambridgeshire County Council,27-Apr-17,22999544-15239649,-695.52,Fenland Area Community Enterprise Trust (Facet),Trust (Other),2 - Operations - Learning Disability,LDP Fenland Locality - Care,Daycare
Cambridgeshire County Council,27-Apr-17,23006209-15239820,-695.52,Fenland Area Community Enterprise Trust (Facet),Trust (Other),2 - Operations - Learning Disability,LDP Fenland Locality - Care,Daycare
Cambridgeshire County Council,27-Apr-17,23006221-15239831,-695.52,Fenland Area Community Enterprise Trust (Facet),Trust (Other),2 - Operations - Learning Disability,LDP Fenland Locality - Care,Daycare
Cambridgeshire County Council,27-Apr-17,23006226-15239835,-695.52,Fenland Area Community Enterprise Trust (Facet),Trust (Other),2 - Operations - Learning Disability,LDP Fenland Locality - Care,Daycare
Cambridgeshire County Council,27-Apr-17,23006200-15239813,-695.52,Fenland Area Community Enterprise Trust (Facet),Trust (Other),2 - Operations - Learning Disability,LDP Fenland Locality - Care,Daycare
Cambridgeshire County Council,27-Apr-17,23006203-15239816,-695.52,Fenland Area Community Enterprise Trust (Facet),Trust (Other),2 - Operations - Learning Disability,LDP Fenland Locality - Care,Daycare
Cambridgeshire County Council,27-Apr-17,23006217-15239827,-695.52,Fenland Area Community Enterprise Trust (Facet),Trust (Other),2 - Operations - Learning Disability,LDP Fenland Locality - Care,Daycare
Cambridgeshire County Council,27-Apr-17,23006186-15239841,-695.52,Fenland Area Community Enterprise Trust (Facet),Trust (Other),2 - Operations - Learning Disability,LDP Fenland Locality - Care,Daycare
Cambridgeshire County Council,27-Apr-17,22999546-15239651,-695.52,Fenland Area Community Enterprise Trust (Facet),Trust (Other),2 - Operations - Learning Disability,LDP Fenland Locality - Care,Daycare
Cambridgeshire County Council,27-Apr-17,23006204-15239817,-695.52,Fenland Area Community Enterprise Trust (Facet),Trust (Other),2 - Operations - Learning Disability,LDP Fenland Locality - Care,Daycare
Cambridgeshire County Council,27-Apr-17,23006215-15239825,-695.52,Fenland Area Community Enterprise Trust (Facet),Trust (Other),2 - Operations - Learning Disability,LDP Fenland Locality - Care,Daycare
Cambridgeshire County Council,27-Apr-17,23006225-15239834,-695.52,Fenland Area Community Enterprise Trust (Facet),Trust (Other),2 - Operations - Learning Disability,LDP Fenland Locality - Care,Daycare
Cambridgeshire County Council,27-Apr-17,23006231-15239838,-695.52,Fenland Area Community Enterprise Trust (Facet),Trust (Other),2 - Operations - Learning Disability,LDP Fenland Locality - Care,Daycare
Cambridgeshire County Council,27-Apr-17,23006189-15239842,-695.52,Fenland Area Community Enterprise Trust (Facet),Trust (Other),2 - Operations - Learning Disability,LDP Fenland Locality - Care,Daycare
Cambridgeshire County Council,27-Apr-17,23006194-15239846,-695.52,Fenland Area Community Enterprise Trust (Facet),Trust (Other),2 - Operations - Learning Disability,LDP Fenland Locality - Care,Daycare
Cambridgeshire County Council,27-Apr-17,22999543-15239648,-695.52,Fenland Area Community Enterprise Trust (Facet),Trust (Other),2 - Operations - Learning Disability,LDP Fenland Locality - Care,Daycare
Cambridgeshire County Council,27-Apr-17,22999549-15239653,-695.52,Fenland Area Community Enterprise Trust (Facet),Trust (Other),2 - Operations - Learning Disability,LDP Fenland Locality - Care,Daycare
Cambridgeshire County Council,27-Apr-17,23006202-15239815,-695.52,Fenland Area Community Enterprise Trust (Facet),Trust (Other),2 - Operations - Learning Disability,LDP Fenland Locality - Care,Daycare
Cambridgeshire County Council,27-Apr-17,23006229-15239837,-695.52,Fenland Area Community Enterprise Trust (Facet),Trust (Other),2 - Operations - Learning Disability,LDP Fenland Locality - Care,Daycare
Cambridgeshire County Council,27-Apr-17,23006197-15239848,-695.52,Fenland Area Community Enterprise Trust (Facet),Trust (Other),2 - Operations - Learning Disability,LDP Fenland Locality - Care,Daycare
Cambridgeshire County Council,27-Apr-17,23001835-15232291,-685.71,The Elms Nursing Home,Care Establishment,2 - Commissioning - Older people Pool,Older People - Fenland,Nursing Independent Sector
Cambridgeshire County Council,27-Apr-17,23100069-15250267,-680.45,Broad Oaks Vct Ltd,Care Establishment,2 - Operations - Learning Disability,LDP Fenland Locality - Care,Residential Independent Sector
Cambridgeshire County Council,20-Apr-17,22771172-15204142,-675.9,Capita Business Services Ltd,Trade Supplier,LRNG,ICT Service Helpline,Materials for resale
Cambridgeshire County Council,27-Apr-17,23103246-15241532,-672.1,Conquest Care Homes (Soham) Ltd,Care Establishment,2 - Operations - Learning Disability,LDP E Cambs Locality - Care,Residential Independent Sector
Cambridgeshire County Council,27-Apr-17,23003502-15251730,-667.8,Dimensions (Uk) Ltd,Care Establishment,2 - Operations - Learning Disability,LDP South Cambs - Special Needs,Supported Living
Cambridgeshire County Council,27-Apr-17,23074993-15251777,-667.8,Dimensions (Uk) Ltd,Care Establishment,2 - Operations - Learning Disability,LDP Cambs City - Special Needs,Supported Living
Cambridgeshire County Council,27-Apr-17,23113437-15251898,-667.8,Dimensions (Uk) Ltd,Care Establishment,2 - Operations - Learning Disability,LDP South Cambs - Special Needs,Supported Living
Cambridgeshire County Council,27-Apr-17,23036226-15251758,-667.8,Dimensions (Uk) Ltd,Care Establishment,2 - Operations - Learning Disability,LDP South Cambs - Special Needs,Supported Living
Cambridgeshire County Council,27-Apr-17,23002805-15233766,-666.21,Buchan Healthcare Ltd,Care Establishment,2 - Commissioning - Older people Pool,Older People - City & South,Nursing Independent Sector
Cambridgeshire County Council,03-Apr-17,22880670-15131324,-665.8,Tarmac Carillion Joint Venture,Trade Supplier,Local Infrastructure & Street Management,Local Projects,Capital WIP - roads  -  Construction cost
Cambridgeshire County Council,27-Apr-17,23101957-15250142,-665.54,Hunters Healthcare (Hunters Down),Care Establishment,2 - Commissioning - Older people Pool,Hunts O P  Team,Short Term Other
Cambridgeshire County Council,27-Apr-17,23101938-15250138,-665.54,Hunters Healthcare (Hunters Down),Care Establishment,2 - Commissioning - Older people Pool,Hunts O P  Team,Short Term Other
Cambridgeshire County Council,06-Apr-17,23005345-15146026,-663.22,Royal Mencap Society,Care Establishment,2 - Operations - Learning Disability,LDP South Cambs Locality - Care,Residential Independent Sector
Cambridgeshire County Council,27-Apr-17,23107324-15234619,-640.36,Abbott Healthcare Ltd,Care Establishment,2 - Commissioning - Older people Pool,Older People - City & South,Day and Domicillary Care Independent Sector
Cambridgeshire County Council,27-Apr-17,23107323-15234618,-640.36,Abbott Healthcare Ltd,Care Establishment,2 - Commissioning - Older people Pool,Older People - City & South,Day and Domicillary Care Independent Sector
Cambridgeshire County Council,27-Apr-17,23107326-15234621,-640.36,Abbott Healthcare Ltd,Care Establishment,2 - Commissioning - Older people Pool,Older People - City & South,Day and Domicillary Care Independent Sector
Cambridgeshire County Council,27-Apr-17,23107325-15234620,-640.36,Abbott Healthcare Ltd,Care Establishment,2 - Commissioning - Older people Pool,Older People - City & South,Day and Domicillary Care Independent Sector
Cambridgeshire County Council,27-Apr-17,23107330-15234625,-640.36,Abbott Healthcare Ltd,Care Establishment,2 - Commissioning - Older people Pool,Older People - City & South,Day and Domicillary Care Independent Sector
Cambridgeshire County Council,27-Apr-17,23107327-15234622,-640.36,Abbott Healthcare Ltd,Care Establishment,2 - Commissioning - Older people Pool,Older People - City & South,Day and Domicillary Care Independent Sector
Cambridgeshire County Council,27-Apr-17,23101750-15232493,-630.71,Woodlands Care Centre,Care Establishment,2 - Commissioning - Older people Pool,Older People Mental Health City & South,Nursing Independent Sector
Cambridgeshire County Council,27-Apr-17,23101755-15232498,-630.71,Woodlands Care Centre,Care Establishment,2 - Commissioning - Older people Pool,Older People Mental Health City & South,Nursing Independent Sector
Cambridgeshire County Council,27-Apr-17,23107949-15232512,-630.71,Woodlands Care Centre,Care Establishment,2 - Commissioning - Older people Pool,Older People Mental Health City & South,Nursing Independent Sector
Cambridgeshire County Council,27-Apr-17,23101762-15232505,-630.71,Woodlands Care Centre,Care Establishment,2 - Commissioning - Older people Pool,Older People Mental Health City & South,Nursing Independent Sector
Cambridgeshire County Council,27-Apr-17,23107948-15232511,-630.71,Woodlands Care Centre,Care Establishment,2 - Commissioning - Older people Pool,Older People Mental Health City & South,Nursing Independent Sector
Cambridgeshire County Council,27-Apr-17,23101752-15232495,-630.71,Woodlands Care Centre,Care Establishment,2 - Commissioning - Older people Pool,Older People Mental Health City & South,Nursing Independent Sector
Cambridgeshire County Council,27-Apr-17,23101763-15232506,-630.71,Woodlands Care Centre,Care Establishment,2 - Commissioning - Older people Pool,Older People Mental Health City & South,Nursing Independent Sector
Cambridgeshire County Council,20-Apr-17,23077971-15205881,-627.01,The Edmund Trust,Care Establishment,2 - Operations - Learning Disability,LDP Cambs City - Special Needs,Supported Living
Cambridgeshire County Council,27-Apr-17,23103598-15246729,-627.01,The Edmund Trust,Care Establishment,2 - Operations - Learning Disability,LDP South Cambs - Special Needs,Supported Living
Cambridgeshire County Council,20-Apr-17,23042009-15205813,-627.01,The Edmund Trust,Care Establishment,2 - Operations - Learning Disability,LDP South Cambs - Special Needs,Supported Living
Cambridgeshire County Council,27-Apr-17,23103606-15246732,-627.01,The Edmund Trust,Care Establishment,2 - Operations - Learning Disability,LDP South Cambs - Special Needs,Supported Living
Cambridgeshire County Council,06-Apr-17,23003160-15152061,-627.01,The Edmund Trust,Care Establishment,2 - Operations - Learning Disability,LDP Cambs City - Special Needs,Supported Living
Cambridgeshire County Council,20-Apr-17,23042015-15205817,-627.01,The Edmund Trust,Care Establishment,2 - Operations - Learning Disability,LDP South Cambs - Special Needs,Supported Living
Cambridgeshire County Council,20-Apr-17,23042017-15205818,-627.01,The Edmund Trust,Care Establishment,2 - Operations - Learning Disability,LDP South Cambs - Special Needs,Supported Living
Cambridgeshire County Council,20-Apr-17,23077955-15205869,-627.01,The Edmund Trust,Care Establishment,2 - Operations - Learning Disability,LDP South Cambs - Special Needs,Supported Living
Cambridgeshire County Council,20-Apr-17,23077967-15205878,-627.01,The Edmund Trust,Care Establishment,2 - Operations - Learning Disability,LDP South Cambs - Special Needs,Supported Living
Cambridgeshire County Council,27-Apr-17,23103579-15246722,-627.01,The Edmund Trust,Care Establishment,2 - Operations - Learning Disability,LDP Cambs City - Special Needs,Supported Living
Cambridgeshire County Council,27-Apr-17,23103583-15246725,-627.01,The Edmund Trust,Care Establishment,2 - Operations - Learning Disability,LDP Cambs City - Special Needs,Supported Living
Cambridgeshire County Council,06-Apr-17,23003167-15152068,-627.01,The Edmund Trust,Care Establishment,2 - Operations - Learning Disability,LDP South Cambs - Special Needs,Supported Living
Cambridgeshire County Council,06-Apr-17,23003172-15152075,-627.01,The Edmund Trust,Care Establishment,2 - Operations - Learning Disability,LDP Cambs City - Special Needs,Supported Living
Cambridgeshire County Council,20-Apr-17,23042003-15205809,-627.01,The Edmund Trust,Care Establishment,2 - Operations - Learning Disability,LDP Cambs City - Special Needs,Supported Living
Cambridgeshire County Council,27-Apr-17,23103599-15246730,-627.01,The Edmund Trust,Care Establishment,2 - Operations - Learning Disability,LDP Cambs City - Special Needs,Supported Living
Cambridgeshire County Council,06-Apr-17,23003158-15152059,-627.01,The Edmund Trust,Care Establishment,2 - Operations - Learning Disability,LDP South Cambs - Special Needs,Supported Living
Cambridgeshire County Council,06-Apr-17,23003159-15152060,-627.01,The Edmund Trust,Care Establishment,2 - Operations - Learning Disability,LDP Cambs City - Special Needs,Supported Living
Cambridgeshire County Council,20-Apr-17,23042018-15205819,-627.01,The Edmund Trust,Care Establishment,2 - Operations - Learning Disability,LDP South Cambs - Special Needs,Supported Living
Cambridgeshire County Council,20-Apr-17,23077952-15205867,-627.01,The Edmund Trust,Care Establishment,2 - Operations - Learning Disability,LDP Cambs City - Special Needs,Supported Living
Cambridgeshire County Council,20-Apr-17,23077954-15205868,-627.01,The Edmund Trust,Care Establishment,2 - Operations - Learning Disability,LDP Cambs City - Special Needs,Supported Living
Cambridgeshire County Council,20-Apr-17,23077957-15205871,-627.01,The Edmund Trust,Care Establishment,2 - Operations - Learning Disability,LDP South Cambs - Special Needs,Supported Living
Cambridgeshire County Council,20-Apr-17,23077968-15205879,-627.01,The Edmund Trust,Care Establishment,2 - Operations - Learning Disability,LDP South Cambs - Special Needs,Supported Living
Cambridgeshire County Council,27-Apr-17,23103582-15246724,-627.01,The Edmund Trust,Care Establishment,2 - Operations - Learning Disability,LDP Cambs City - Special Needs,Supported Living
Cambridgeshire County Council,06-Apr-17,23003157-15152058,-627.01,The Edmund Trust,Care Establishment,2 - Operations - Learning Disability,LDP Cambs City - Special Needs,Supported Living
Cambridgeshire County Council,27-Apr-17,23103589-15246726,-627.01,The Edmund Trust,Care Establishment,2 - Operations - Learning Disability,LDP Cambs City - Special Needs,Supported Living
Cambridgeshire County Council,20-Apr-17,23042012-15205815,-627.01,The Edmund Trust,Care Establishment,2 - Operations - Learning Disability,LDP South Cambs - Special Needs,Supported Living
Cambridgeshire County Council,06-Apr-17,23003168-15152069,-627.01,The Edmund Trust,Care Establishment,2 - Operations - Learning Disability,LDP Cambs City - Special Needs,Supported Living
Cambridgeshire County Council,06-Apr-17,23003170-15152073,-627.01,The Edmund Trust,Care Establishment,2 - Operations - Learning Disability,LDP Cambs City - Special Needs,Supported Living
Cambridgeshire County Council,20-Apr-17,23042008-15205812,-627.01,The Edmund Trust,Care Establishment,2 - Operations - Learning Disability,LDP South Cambs - Special Needs,Supported Living
Cambridgeshire County Council,20-Apr-17,23042019-15205820,-627.01,The Edmund Trust,Care Establishment,2 - Operations - Learning Disability,LDP South Cambs - Special Needs,Supported Living
Cambridgeshire County Council,20-Apr-17,23077961-15205875,-627.01,The Edmund Trust,Care Establishment,2 - Operations - Learning Disability,LDP South Cambs - Special Needs,Supported Living
Cambridgeshire County Council,27-Apr-17,23104671-15246756,-627.01,The Edmund Trust,Care Establishment,2 - Operations - Learning Disability,LDP South Cambs - Special Needs,Supported Living
Cambridgeshire County Council,04-Apr-17,22575573-15138844,-622.8,Hughes Tv & Audio Ltd T/A Trade Electricals Direct,Trade Supplier,CSC,18-25 Service Team,Leaving Care Grants
Cambridgeshire County Council,27-Apr-17,23042179-15250231,-610,Brook Healthcare#1,Care Establishment,2 - Commissioning - Older people Pool,Older People - City & South,Residential Independent Sector
Cambridgeshire County Council,27-Apr-17,23042178-15250230,-610,Brook Healthcare#1,Care Establishment,2 - Commissioning - Older people Pool,Older People - City & South,Residential Independent Sector
Cambridgeshire County Council,27-Apr-17,23042182-15250234,-610,Brook Healthcare#1,Care Establishment,2 - Commissioning - Older people Pool,Older People - City & South,Residential Independent Sector
Cambridgeshire County Council,12-Apr-17,22964121-15177987,-603.04,The Cambridge Nursing Centre,Care Establishment,2 - Commissioning - Older people Pool,Older People - City & South,Nursing Independent Sector
Cambridgeshire County Council,27-Apr-17,23102422-15242699,-599.93,25 Scotney Street,Care Establishment,3 - Operations - Countywide Services,Autism and Adult Support Team - Care,Supported Living
Cambridgeshire County Council,12-Apr-17,22999540-15178018,-598.54,The Cambridge Nursing Centre,Care Establishment,2 - Commissioning - Older people Pool,Older People - City & South,Nursing Independent Sector
Cambridgeshire County Council,27-Apr-17,23115829-15250059,-597.25,Ringshill Care Home,Care Establishment,2 - Commissioning - Older people Pool,Hunts O P  Team,Nursing Independent Sector
Cambridgeshire County Council,27-Apr-17,23099015-15249934,-597.25,Ringshill Care Home,Care Establishment,2 - Commissioning - Older people Pool,Hunts O P  Team,Nursing Independent Sector
Cambridgeshire County Council,27-Apr-17,23098987-15249929,-597.25,Ringshill Care Home,Care Establishment,2 - Commissioning - Older people Pool,Hunts O P  Team,Nursing Independent Sector
Cambridgeshire County Council,27-Apr-17,23099014-15249933,-597.25,Ringshill Care Home,Care Establishment,2 - Commissioning - Older people Pool,Hunts O P  Team,Nursing Independent Sector
Cambridgeshire County Council,27-Apr-17,23099029-15249936,-597.25,Ringshill Care Home,Care Establishment,2 - Commissioning - Older people Pool,Hunts O P  Team,Nursing Independent Sector
Cambridgeshire County Council,27-Apr-17,23000198-15232834,-596,Aliwal Healthcare Ltd,Care Establishment,2 - Commissioning - Older people Pool,Older People - Fenland,Respite Independent Sector
Cambridgeshire County Council,27-Apr-17,23000207-15232835,-596,Aliwal Healthcare Ltd,Care Establishment,2 - Commissioning - Older people Pool,Older People - Fenland,Respite Independent Sector
Cambridgeshire County Council,27-Apr-17,23117485-15241609,-580.17,Conquest Care Homes (Soham) Ltd,Care Establishment,2 - Operations - Learning Disability,LDP E Cambs Special Needs,Residential Independent Sector
Cambridgeshire County Council,27-Apr-17,23111514-15250184,-577,Hunters Healthcare (Hunters Down),Care Establishment,2 - Commissioning - Older people Pool,Hunts O P  Team,Residential Independent Sector
Cambridgeshire County Council,27-Apr-17,23111539-15250185,-577,Hunters Healthcare (Hunters Down),Care Establishment,2 - Commissioning - Older people Pool,Hunts O P  Team,Residential Independent Sector
Cambridgeshire County Council,27-Apr-17,23111557-15250188,-577,Hunters Healthcare (Hunters Down),Care Establishment,2 - Commissioning - Older people Pool,Hunts O P  Team,Residential Independent Sector
Cambridgeshire County Council,27-Apr-17,23005008-15250119,-577,Hunters Healthcare (Hunters Down),Care Establishment,2 - Commissioning - Older people Pool,Hunts O P  Team,Residential Independent Sector
Cambridgeshire County Council,27-Apr-17,23105217-15250159,-577,Hunters Healthcare (Hunters Down),Care Establishment,2 - Commissioning - Older people Pool,Hunts O P  Team,Residential Independent Sector
Cambridgeshire County Council,27-Apr-17,23111551-15250186,-577,Hunters Healthcare (Hunters Down),Care Establishment,2 - Commissioning - Older people Pool,Hunts O P  Team,Residential Independent Sector
Cambridgeshire County Council,27-Apr-17,23101952-15250141,-570.46,Hunters Healthcare (Hunters Down),Care Establishment,2 - Commissioning - Older people Pool,Hunts O P  Team,Short Term Other
Cambridgeshire County Council,27-Apr-17,23097339-15233841,-567,Xma Limited,Trade Supplier,LGSS,DIT Hardware Refresh,Capital WIP - IT  -  Plant and equipment
Cambridgeshire County Council,27-Apr-17,23078962-15243275,-566.44,Qualitycare,Care Establishment,2 - Commissioning - Older people Pool,Older People - City & South,Day and Domicillary Care Independent Sector
Cambridgeshire County Council,27-Apr-17,23078963-15243276,-566.44,Qualitycare,Care Establishment,2 - Commissioning - Older people Pool,Older People - City & South,Day and Domicillary Care Independent Sector
Cambridgeshire County Council,27-Apr-17,23005561-15234033,-555.51,Home Close Ltd,Care Establishment,2 - Commissioning - Older people Pool,Older People - City & South,Nursing Independent Sector
Cambridgeshire County Council,06-Apr-17,23000263-15150185,-553.85,Cedar Court Care Ltd,Care Establishment,2 - Commissioning - Older people Pool,Older People - Fenland,Nursing Independent Sector
Cambridgeshire County Council,06-Apr-17,23000292-15150214,-553.85,Cedar Court Care Ltd,Care Establishment,2 - Commissioning - Older people Pool,Older People - Fenland,Nursing Independent Sector
Cambridgeshire County Council,06-Apr-17,23000253-15150175,-553.85,Cedar Court Care Ltd,Care Establishment,2 - Commissioning - Older people Pool,Older People - Fenland,Nursing Independent Sector
Cambridgeshire County Council,06-Apr-17,23000275-15150197,-553.85,Cedar Court Care Ltd,Care Establishment,2 - Commissioning - Older people Pool,Older People - Fenland,Nursing Independent Sector
Cambridgeshire County Council,06-Apr-17,23000284-15150206,-553.85,Cedar Court Care Ltd,Care Establishment,2 - Commissioning - Older people Pool,Older People - Fenland,Nursing Independent Sector
Cambridgeshire County Council,06-Apr-17,23006263-15150226,-553.85,Cedar Court Care Ltd,Care Establishment,2 - Commissioning - Older people Pool,Older People - Fenland,Nursing Independent Sector
Cambridgeshire County Council,06-Apr-17,23000265-15150187,-553.85,Cedar Court Care Ltd,Care Establishment,2 - Commissioning - Older people Pool,Older People - Fenland,Nursing Independent Sector
Cambridgeshire County Council,06-Apr-17,23000270-15150192,-553.85,Cedar Court Care Ltd,Care Establishment,2 - Commissioning - Older people Pool,Older People - Fenland,Nursing Independent Sector
Cambridgeshire County Council,06-Apr-17,23000272-15150194,-553.85,Cedar Court Care Ltd,Care Establishment,2 - Commissioning - Older people Pool,Older People - Fenland,Nursing Independent Sector
Cambridgeshire County Council,06-Apr-17,23000274-15150196,-553.85,Cedar Court Care Ltd,Care Establishment,2 - Commissioning - Older people Pool,Older People - Fenland,Nursing Independent Sector
Cambridgeshire County Council,06-Apr-17,23000288-15150210,-553.85,Cedar Court Care Ltd,Care Establishment,2 - Commissioning - Older people Pool,Older People - Fenland,Nursing Independent Sector
Cambridgeshire County Council,06-Apr-17,23000267-15150189,-553.85,Cedar Court Care Ltd,Care Establishment,2 - Commissioning - Older people Pool,Older People - Fenland,Nursing Independent Sector
Cambridgeshire County Council,06-Apr-17,23000282-15150204,-553.85,Cedar Court Care Ltd,Care Establishment,2 - Commissioning - Older people Pool,Older People - Fenland,Nursing Independent Sector
Cambridgeshire County Council,06-Apr-17,23000295-15150217,-553.85,Cedar Court Care Ltd,Care Establishment,2 - Commissioning - Older people Pool,Older People - Fenland,Nursing Independent Sector
Cambridgeshire County Council,06-Apr-17,23000273-15150195,-553.85,Cedar Court Care Ltd,Care Establishment,2 - Commissioning - Older people Pool,Older People - Fenland,Nursing Independent Sector
Cambridgeshire County Council,06-Apr-17,23000296-15150218,-553.85,Cedar Court Care Ltd,Care Establishment,2 - Commissioning - Older people Pool,Older People - Fenland,Nursing Independent Sector
Cambridgeshire County Council,06-Apr-17,23000264-15150186,-553.85,Cedar Court Care Ltd,Care Establishment,2 - Commissioning - Older people Pool,Older People - Fenland,Nursing Independent Sector
Cambridgeshire County Council,06-Apr-17,23000266-15150188,-553.85,Cedar Court Care Ltd,Care Establishment,2 - Commissioning - Older people Pool,Older People - Fenland,Nursing Independent Sector
Cambridgeshire County Council,06-Apr-17,23000279-15150201,-553.85,Cedar Court Care Ltd,Care Establishment,2 - Commissioning - Older people Pool,Older People - Fenland,Nursing Independent Sector
Cambridgeshire County Council,06-Apr-17,23000285-15150207,-553.85,Cedar Court Care Ltd,Care Establishment,2 - Commissioning - Older people Pool,Older People - Fenland,Nursing Independent Sector
Cambridgeshire County Council,06-Apr-17,23000290-15150212,-553.85,Cedar Court Care Ltd,Care Establishment,2 - Commissioning - Older people Pool,Older People - Fenland,Nursing Independent Sector
Cambridgeshire County Council,06-Apr-17,23000298-15150220,-553.85,Cedar Court Care Ltd,Care Establishment,2 - Commissioning - Older people Pool,Older People - Fenland,Nursing Independent Sector
Cambridgeshire County Council,06-Apr-17,23000255-15150177,-553.85,Cedar Court Care Ltd,Care Establishment,2 - Commissioning - Older people Pool,Older People - Fenland,Nursing Independent Sector
Cambridgeshire County Council,06-Apr-17,23000277-15150199,-553.85,Cedar Court Care Ltd,Care Establishment,2 - Commissioning - Older people Pool,Older People - Fenland,Nursing Independent Sector
Cambridgeshire County Council,06-Apr-17,23000278-15150200,-553.85,Cedar Court Care Ltd,Care Establishment,2 - Commissioning - Older people Pool,Older People - Fenland,Nursing Independent Sector
Cambridgeshire County Council,27-Apr-17,23003777-15234028,-550.54,Home Close Ltd,Care Establishment,2 - Commissioning - Older people Pool,Older People - City & South,Nursing Independent Sector
Cambridgeshire County Council,27-Apr-17,23105266-15233918,-550,Hillview Residential Home,Care Establishment,2 - Commissioning - Older people Pool,Hunts O P  Team,Residential Independent Sector
Cambridgeshire County Council,27-Apr-17,23105269-15233921,-550,Hillview Residential Home,Care Establishment,2 - Commissioning - Older people Pool,Hunts O P  Team,Residential Independent Sector
Cambridgeshire County Council,27-Apr-17,23105270-15233922,-550,Hillview Residential Home,Care Establishment,2 - Commissioning - Older people Pool,Hunts O P  Team,Residential Independent Sector
Cambridgeshire County Council,27-Apr-17,23105267-15233919,-550,Hillview Residential Home,Care Establishment,2 - Commissioning - Older people Pool,Hunts O P  Team,Residential Independent Sector
Cambridgeshire County Council,06-Apr-17,23002841-15146504,-549.07,Redacted Personal Data,Individual,2 - Operations - Learning Disability,LDP Fenland Locality - Care,Direct Payments - Social Services
Cambridgeshire County Council,06-Apr-17,22994681-15146459,-549.07,Redacted Personal Data,Individual,2 - Operations - Learning Disability,LDP Fenland Locality - Care,Direct Payments - Social Services
Cambridgeshire County Council,06-Apr-17,22999604-15146471,-549.07,Redacted Personal Data,Individual,2 - Operations - Learning Disability,LDP Fenland Locality - Care,Direct Payments - Social Services
Cambridgeshire County Council,06-Apr-17,23002854-15146516,-549.07,Redacted Personal Data,Individual,2 - Operations - Learning Disability,LDP Fenland Locality - Care,Direct Payments - Social Services
Cambridgeshire County Council,06-Apr-17,23002836-15146499,-549.07,Redacted Personal Data,Individual,2 - Operations - Learning Disability,LDP Fenland Locality - Care,Direct Payments - Social Services
Cambridgeshire County Council,06-Apr-17,22999615-15146482,-549.07,Redacted Personal Data,Individual,2 - Operations - Learning Disability,LDP Fenland Locality - Care,Direct Payments - Social Services
Cambridgeshire County Council,06-Apr-17,22999610-15146477,-549.07,Redacted Personal Data,Individual,2 - Operations - Learning Disability,LDP Fenland Locality - Care,Direct Payments - Social Services
Cambridgeshire County Council,27-Apr-17,23107329-15234624,-548.88,Abbott Healthcare Ltd,Care Establishment,2 - Commissioning - Older people Pool,Older People - City & South,Day and Domicillary Care Independent Sector
Cambridgeshire County Council,27-Apr-17,23110923-15236142,-542.82,2 Cheveril Lane (Voyage),Care Establishment,2 - Operations - Learning Disability,LDP Hunts special needs,Supported Living
Cambridgeshire County Council,27-Apr-17,23078612-15236113,-542.82,2 Cheveril Lane (Voyage),Care Establishment,2 - Operations - Learning Disability,LDP Hunts special needs,Supported Living
Cambridgeshire County Council,27-Apr-17,22995194-15236077,-542.82,2 Cheveril Lane (Voyage),Care Establishment,2 - Operations - Learning Disability,LDP Hunts special needs,Supported Living
Cambridgeshire County Council,27-Apr-17,23041868-15236107,-542.82,2 Cheveril Lane (Voyage),Care Establishment,2 - Operations - Learning Disability,LDP Hunts special needs,Supported Living
Cambridgeshire County Council,11-Apr-17,22981512-15171511,-528,Randstad Education Limited,Education,E&P,SEND Specialist Services - Hearing Impaired Service,Pay - Agency Staff
Cambridgeshire County Council,27-Apr-17,23105209-15232339,-526.01,The Elms Nursing Home,Care Establishment,2 - Commissioning - Older people Pool,Older People - Fenland,Nursing Independent Sector
Cambridgeshire County Council,27-Apr-17,23042180-15250232,-522.86,Brook Healthcare#1,Care Establishment,2 - Commissioning - Older people Pool,Older People - City & South,Residential Independent Sector
Cambridgeshire County Council,27-Apr-17,23115824-15250058,-511.93,Ringshill Care Home,Care Establishment,2 - Commissioning - Older people Pool,Hunts O P  Team,Nursing Independent Sector
Cambridgeshire County Council,27-Apr-17,23000160-15232832,-510.86,Aliwal Healthcare Ltd,Care Establishment,2 - Commissioning - Older people Pool,Older People - Fenland,Respite Independent Sector
Cambridgeshire County Council,13-Apr-17,23062541-15185409,-502.43,One Step At A Time,Care Establishment,CSC,Unaccompanied Asylum Seeking Children,Living support grants - Financial Assistance - Asylum Seekers
Cambridgeshire County Council,06-Apr-17,22998628-15144155,500,Redacted Personal Data,Parent/Guardian,3 - Operations - Countywide Services,Countywide PD Service - Care,Direct Payments - Social Services
Cambridgeshire County Council,06-Apr-17,23000967-15160975,500,Ellacombe,Care Establishment,2 - Commissioning - Older people Pool,Older People - City & South,Residential Independent Sector
Cambridgeshire County Council,06-Apr-17,23000971-15160978,500,Ellacombe,Care Establishment,2 - Commissioning - Older people Pool,Older People - City & South,Residential Independent Sector
Cambridgeshire County Council,13-Apr-17,22936906-15185337,500,Rolando Ugolini,Trade Supplier,Corporate Services,CD - Smarter Greater Cambridge,Photocopier
Cambridgeshire County Council,20-Apr-17,23076785-15204087,500,The Cambridge Nursing Centre,Care Establishment,2 - Commissioning - Older people Pool,Older People - City & South,Residential Independent Sector
Cambridgeshire County Council,20-Apr-17,23076786-15204088,500,The Cambridge Nursing Centre,Care Establishment,2 - Commissioning - Older people Pool,Older People - City & South,Residential Independent Sector
Cambridgeshire County Council,20-Apr-17,23078151-15204219,500,Rose Cottage Residential Home,Care Establishment,2 - Commissioning - Older people Pool,Hunts O P  Team,Residential Independent Sector
Cambridgeshire County Council,25-Apr-17,23080944-15223444,500,Deborah House,Trade Supplier,LRNG,Primary Area 3 - ECF,Other Hired Contract Services
Cambridgeshire County Council,27-Apr-17,23101552-15253559,500,Woodfield Court,Care Establishment,2 - Commissioning - Older people Pool,East Cambs - O P Team,Residential Independent Sector
Cambridgeshire County Council,27-Apr-17,23111075-15253568,500,Epsom (Residential Care Only (La/Nhs))(66784),Care Establishment,2 - Commissioning - Older people Pool,Older People - Fenland,Residential Independent Sector
Cambridgeshire County Council,27-Apr-17,23112650-15250606,500,K Ravivaruman T/A Fair Haven Care Home,Care Establishment,2 - Commissioning - Older people Pool,East Cambs - O P Team,Residential Independent Sector
Cambridgeshire County Council,06-Apr-17,23006402-15144595,500,Redacted Personal Data,Individual,2 - Commissioning - Older people Pool,Hunts O P  Team,Residential Independent Sector
Cambridgeshire County Council,11-Apr-17,22933757-15171104,500,Ymca Cambridgeshire And Peterborough,Charity,CSC,18-25 Service Team,Leaving Care Grants
Cambridgeshire County Council,12-Apr-17,22942951-15177978,500,The Cambridge Nursing Centre,Care Establishment,2 - Commissioning - Older people Pool,Older People - City & South,Residential Independent Sector
Cambridgeshire County Council,12-Apr-17,23038666-15178712,500,Florence House(Ramsey) Residential Home For The Elderly,Care Establishment,2 - Commissioning - Older people Pool,Hunts O P  Team,Residential Independent Sector
Cambridgeshire County Council,20-Apr-17,23076788-15204090,500,The Cambridge Nursing Centre,Care Establishment,2 - Commissioning - Older people Pool,Older People - City & South,Residential Independent Sector
Cambridgeshire County Council,20-Apr-17,23078149-15204217,500,Rose Cottage Residential Home,Care Establishment,2 - Commissioning - Older people Pool,Hunts O P  Team,Residential Independent Sector
Cambridgeshire County Council,27-Apr-17,23109276-15235780,500,The Gables Specialist Nursing Home,Care Establishment,2 - Commissioning - Older people Pool,Older People Mental Health Fenland,Residential Independent Sector
Cambridgeshire County Council,27-Apr-17,23115634-15235798,500,The Gables Specialist Nursing Home,Care Establishment,2 - Commissioning - Older people Pool,Older People Mental Health Fenland,Residential Independent Sector
Cambridgeshire County Council,27-Apr-17,23101550-15253557,500,Woodfield Court,Care Establishment,2 - Commissioning - Older people Pool,East Cambs - O P Team,Residential Independent Sector
Cambridgeshire County Council,27-Apr-17,23112640-15250596,500,K Ravivaruman T/A Fair Haven Care Home,Care Establishment,2 - Commissioning - Older people Pool,East Cambs - O P Team,Residential Independent Sector
Cambridgeshire County Council,27-Apr-17,23109735-15251237,500,The Cambridge Nursing Centre,Care Establishment,2 - Commissioning - Older people Pool,East Cambs - O P Team,Residential Independent Sector
Cambridgeshire County Council,27-Apr-17,23112839-15251238,500,The Cambridge Nursing Centre,Care Establishment,2 - Commissioning - Older people Pool,Older People - City & South,Residential Independent Sector
Cambridgeshire County Council,27-Apr-17,23112847-15251240,500,The Cambridge Nursing Centre,Care Establishment,2 - Commissioning - Older people Pool,Older People - City & South,Residential Independent Sector
Cambridgeshire County Council,06-Apr-17,22998627-15144154,500,Redacted Personal Data,Parent/Guardian,3 - Operations - Countywide Services,Countywide PD Service - Care,Direct Payments - Social Services
Cambridgeshire County Council,12-Apr-17,22962844-15177986,500,The Cambridge Nursing Centre,Care Establishment,2 - Commissioning - Older people Pool,East Cambs - O P Team,Residential Independent Sector
Cambridgeshire County Council,12-Apr-17,22956700-15178006,500,The Cambridge Nursing Centre,Care Establishment,2 - Commissioning - Older people Pool,East Cambs - O P Team,Residential Independent Sector
Cambridgeshire County Council,20-Apr-17,23078188-15204097,500,The Cambridge Nursing Centre,Care Establishment,2 - Commissioning - Older people Pool,Older People - City & South,Residential Independent Sector
Cambridgeshire County Council,20-Apr-17,23078150-15204218,500,Rose Cottage Residential Home,Care Establishment,2 - Commissioning - Older people Pool,Hunts O P  Team,Residential Independent Sector
Cambridgeshire County Council,20-Apr-17,23078152-15204220,500,Rose Cottage Residential Home,Care Establishment,2 - Commissioning - Older people Pool,Hunts O P  Team,Residential Independent Sector
Cambridgeshire County Council,20-Apr-17,23075141-15205039,500,Eltisley Manor (Psycare Ltd),Care Establishment,4 - Commissioning - Mental Health & Supporting People,Cambridge Mental Health team,Nursing Independent Sector
Cambridgeshire County Council,27-Apr-17,23101774-15253582,500,Gokul Nivas Care Home,Care Establishment,2 - Commissioning - Older people Pool,Older People - Fenland,Residential Independent Sector
Cambridgeshire County Council,27-Apr-17,23112636-15250592,500,K Ravivaruman T/A Fair Haven Care Home,Care Establishment,2 - Commissioning - Older people Pool,East Cambs - O P Team,Residential Independent Sector
Cambridgeshire County Council,27-Apr-17,23112637-15250593,500,K Ravivaruman T/A Fair Haven Care Home,Care Establishment,2 - Commissioning - Older people Pool,East Cambs - O P Team,Residential Independent Sector
Cambridgeshire County Council,27-Apr-17,23112647-15250603,500,K Ravivaruman T/A Fair Haven Care Home,Care Establishment,2 - Commissioning - Older people Pool,East Cambs - O P Team,Residential Independent Sector
Cambridgeshire County Council,27-Apr-17,23112652-15250608,500,K Ravivaruman T/A Fair Haven Care Home,Care Establishment,2 - Commissioning - Older people Pool,East Cambs - O P Team,Residential Independent Sector
Cambridgeshire County Council,06-Apr-17,22998625-15144152,500,Redacted Personal Data,Parent/Guardian,3 - Operations - Countywide Services,Countywide PD Service - Care,Direct Payments - Social Services
Cambridgeshire County Council,06-Apr-17,22998626-15144153,500,Redacted Personal Data,Parent/Guardian,3 - Operations - Countywide Services,Countywide PD Service - Care,Direct Payments - Social Services
Cambridgeshire County Council,12-Apr-17,23038668-15178713,500,Florence House(Ramsey) Residential Home For The Elderly,Care Establishment,2 - Commissioning - Older people Pool,Hunts O P  Team,Residential Independent Sector
Cambridgeshire County Council,20-Apr-17,23078186-15204095,500,The Cambridge Nursing Centre,Care Establishment,2 - Commissioning - Older people Pool,Older People - City & South,Residential Independent Sector
Cambridgeshire County Council,20-Apr-17,23078187-15204096,500,The Cambridge Nursing Centre,Care Establishment,2 - Commissioning - Older people Pool,Older People - City & South,Residential Independent Sector
Cambridgeshire County Council,20-Apr-17,23076787-15204089,500,The Cambridge Nursing Centre,Care Establishment,2 - Commissioning - Older people Pool,Older People - City & South,Residential Independent Sector
Cambridgeshire County Council,20-Apr-17,23075140-15205038,500,Eltisley Manor (Psycare Ltd),Care Establishment,4 - Commissioning - Mental Health & Supporting People,Cambridge Mental Health team,Nursing Independent Sector
Cambridgeshire County Council,25-Apr-17,23081145-15224015,500,Orwell Parish Council,Other Public Bodies,Local Infrastructure & Street Management,Local Projects,Capital WIP - roads  -  Expenditure / Payments
Cambridgeshire County Council,27-Apr-17,23101142-15235895,500,Olivemede Residential Home,Care Establishment,2 - Commissioning - Older people Pool,Hunts O P  Team,Residential Independent Sector
Cambridgeshire County Council,27-Apr-17,23111078-15253571,500,Epsom (Residential Care Only (La/Nhs))(66784),Care Establishment,2 - Commissioning - Older people Pool,Older People - Fenland,Residential Independent Sector
Cambridgeshire County Council,27-Apr-17,23101773-15253581,500,Gokul Nivas Care Home,Care Establishment,2 - Commissioning - Older people Pool,Older People - Fenland,Residential Independent Sector
Cambridgeshire County Council,27-Apr-17,23107490-15250583,500,K Ravivaruman T/A Fair Haven Care Home,Care Establishment,2 - Commissioning - Older people Pool,East Cambs - O P Team,Residential Independent Sector
Cambridgeshire County Council,27-Apr-17,23112639-15250595,500,K Ravivaruman T/A Fair Haven Care Home,Care Establishment,2 - Commissioning - Older people Pool,East Cambs - O P Team,Residential Independent Sector
Cambridgeshire County Council,27-Apr-17,23112648-15250604,500,K Ravivaruman T/A Fair Haven Care Home,Care Establishment,2 - Commissioning - Older people Pool,East Cambs - O P Team,Residential Independent Sector
Cambridgeshire County Council,27-Apr-17,23112651-15250607,500,K Ravivaruman T/A Fair Haven Care Home,Care Establishment,2 - Commissioning - Older people Pool,East Cambs - O P Team,Residential Independent Sector
Cambridgeshire County Council,27-Apr-17,23112653-15250609,500,K Ravivaruman T/A Fair Haven Care Home,Care Establishment,2 - Commissioning - Older people Pool,East Cambs - O P Team,Residential Independent Sector
Cambridgeshire County Council,27-Apr-17,23109728-15251236,500,The Cambridge Nursing Centre,Care Establishment,2 - Commissioning - Older people Pool,East Cambs - O P Team,Residential Independent Sector
Cambridgeshire County Council,27-Apr-17,23112840-15251239,500,The Cambridge Nursing Centre,Care Establishment,2 - Commissioning - Older people Pool,Older People - City & South,Residential Independent Sector
Cambridgeshire County Council,06-Apr-17,23006400-15144593,500,Redacted Personal Data,Individual,2 - Commissioning - Older people Pool,Hunts O P  Team,Residential Independent Sector
Cambridgeshire County Council,11-Apr-17,23012874-15171619,500,Redacted Personal Data,Individual,LRNG,Duke of Edinburgh's Award,Specialist equipment for service provision
Cambridgeshire County Council,12-Apr-17,22942949-15177976,500,The Cambridge Nursing Centre,Care Establishment,2 - Commissioning - Older people Pool,Older People - City & South,Residential Independent Sector
Cambridgeshire County Council,12-Apr-17,22956701-15178007,500,The Cambridge Nursing Centre,Care Establishment,2 - Commissioning - Older people Pool,East Cambs - O P Team,Residential Independent Sector
Cambridgeshire County Council,21-Apr-17,23081256-15215477,500,Ascentis Awarding Organisation,Trade Supplier,Corporate Services,AL&S Direct Delivery,Exam Fees
Cambridgeshire County Council,27-Apr-17,23115632-15235797,500,The Gables Specialist Nursing Home,Care Establishment,2 - Commissioning - Older people Pool,Older People Mental Health Fenland,Residential Independent Sector
Cambridgeshire County Council,27-Apr-17,23101143-15235896,500,Olivemede Residential Home,Care Establishment,2 - Commissioning - Older people Pool,Hunts O P  Team,Residential Independent Sector
Cambridgeshire County Council,27-Apr-17,23116900-15235933,500,Olivemede Residential Home,Care Establishment,2 - Operations - Learning Disability,LDP Huntingdonshire Locality - Care,Residential Independent Sector
Cambridgeshire County Council,27-Apr-17,23111077-15253570,500,Epsom (Residential Care Only (La/Nhs))(66784),Care Establishment,2 - Commissioning - Older people Pool,Older People - Fenland,Residential Independent Sector
Cambridgeshire County Council,27-Apr-17,23112642-15250598,500,K Ravivaruman T/A Fair Haven Care Home,Care Establishment,2 - Commissioning - Older people Pool,East Cambs - O P Team,Residential Independent Sector
Cambridgeshire County Council,27-Apr-17,23112643-15250599,500,K Ravivaruman T/A Fair Haven Care Home,Care Establishment,2 - Commissioning - Older people Pool,East Cambs - O P Team,Residential Independent Sector
Cambridgeshire County Council,04-Apr-17,22968116-15141997,500,Redacted Personal Data,Individual,LGSS Managed,County Farms,County Farms Maintenance unplanned
Cambridgeshire County Council,06-Apr-17,23006399-15144592,500,Redacted Personal Data,Individual,2 - Commissioning - Older people Pool,Hunts O P  Team,Residential Independent Sector
Cambridgeshire County Council,06-Apr-17,23006401-15144594,500,Redacted Personal Data,Individual,2 - Commissioning - Older people Pool,Hunts O P  Team,Residential Independent Sector
Cambridgeshire County Council,12-Apr-17,22942950-15177977,500,The Cambridge Nursing Centre,Care Establishment,2 - Commissioning - Older people Pool,Older People - City & South,Residential Independent Sector
Cambridgeshire County Council,12-Apr-17,22942956-15177979,500,The Cambridge Nursing Centre,Care Establishment,2 - Commissioning - Older people Pool,Older People - City & South,Residential Independent Sector
Cambridgeshire County Council,20-Apr-17,23075138-15205036,500,Eltisley Manor (Psycare Ltd),Care Establishment,4 - Commissioning - Mental Health & Supporting People,Cambridge Mental Health team,Nursing Independent Sector
Cambridgeshire County Council,20-Apr-17,23075139-15205037,500,Eltisley Manor (Psycare Ltd),Care Establishment,4 - Commissioning - Mental Health & Supporting People,Cambridge Mental Health team,Nursing Independent Sector
Cambridgeshire County Council,27-Apr-17,23101772-15253580,500,Gokul Nivas Care Home,Care Establishment,2 - Commissioning - Older people Pool,Older People - Fenland,Residential Independent Sector
Cambridgeshire County Council,27-Apr-17,23107492-15250585,500,K Ravivaruman T/A Fair Haven Care Home,Care Establishment,2 - Commissioning - Older people Pool,East Cambs - O P Team,Residential Independent Sector
Cambridgeshire County Council,27-Apr-17,23112644-15250600,500,K Ravivaruman T/A Fair Haven Care Home,Care Establishment,2 - Commissioning - Older people Pool,East Cambs - O P Team,Residential Independent Sector
Cambridgeshire County Council,27-Apr-17,23112646-15250602,500,K Ravivaruman T/A Fair Haven Care Home,Care Establishment,2 - Commissioning - Older people Pool,East Cambs - O P Team,Residential Independent Sector
Cambridgeshire County Council,27-Apr-17,23109715-15251234,500,The Cambridge Nursing Centre,Care Establishment,2 - Commissioning - Older people Pool,East Cambs - O P Team,Residential Independent Sector
Cambridgeshire County Council,12-Apr-17,23038671-15178715,500,Florence House(Ramsey) Residential Home For The Elderly,Care Establishment,2 - Commissioning - Older people Pool,Hunts O P  Team,Residential Independent Sector
Cambridgeshire County Council,20-Apr-17,23078189-15204098,500,The Cambridge Nursing Centre,Care Establishment,2 - Commissioning - Older people Pool,Older People - City & South,Residential Independent Sector
Cambridgeshire County Council,27-Apr-17,23101144-15235897,500,Olivemede Residential Home,Care Establishment,2 - Commissioning - Older people Pool,Hunts O P  Team,Residential Independent Sector
Cambridgeshire County Council,27-Apr-17,23110306-15235924,500,Olivemede Residential Home,Care Establishment,2 - Operations - Learning Disability,LDP Huntingdonshire Locality - Care,Residential Independent Sector
Cambridgeshire County Council,27-Apr-17,23101775-15253583,500,Gokul Nivas Care Home,Care Establishment,2 - Commissioning - Older people Pool,Older People - Fenland,Residential Independent Sector
Cambridgeshire County Council,27-Apr-17,23107493-15250586,500,K Ravivaruman T/A Fair Haven Care Home,Care Establishment,2 - Commissioning - Older people Pool,East Cambs - O P Team,Residential Independent Sector
Cambridgeshire County Council,27-Apr-17,23112638-15250594,500,K Ravivaruman T/A Fair Haven Care Home,Care Establishment,2 - Commissioning - Older people Pool,East Cambs - O P Team,Residential Independent Sector
Cambridgeshire County Council,27-Apr-17,23112850-15251241,500,The Cambridge Nursing Centre,Care Establishment,2 - Commissioning - Older people Pool,Older People - City & South,Residential Independent Sector
Cambridgeshire County Council,06-Apr-17,23000968-15160976,500,Ellacombe,Care Establishment,2 - Commissioning - Older people Pool,Older People - City & South,Residential Independent Sector
Cambridgeshire County Council,06-Apr-17,23000969-15160977,500,Ellacombe,Care Establishment,2 - Commissioning - Older people Pool,Older People - City & South,Residential Independent Sector
Cambridgeshire County Council,12-Apr-17,22956703-15178008,500,The Cambridge Nursing Centre,Care Establishment,2 - Commissioning - Older people Pool,East Cambs - O P Team,Residential Independent Sector
Cambridgeshire County Council,12-Apr-17,23038670-15178714,500,Florence House(Ramsey) Residential Home For The Elderly,Care Establishment,2 - Commissioning - Older people Pool,Hunts O P  Team,Residential Independent Sector
Cambridgeshire County Council,24-Apr-17,23008007-15220477,500,Musicmark,Education,LRNG,Cambs Music Central Management,Subscriptions
Cambridgeshire County Council,27-Apr-17,23109277-15235781,500,The Gables Specialist Nursing Home,Care Establishment,2 - Commissioning - Older people Pool,Older People Mental Health Fenland,Residential Independent Sector
Cambridgeshire County Council,27-Apr-17,23101141-15235894,500,Olivemede Residential Home,Care Establishment,2 - Commissioning - Older people Pool,Hunts O P  Team,Residential Independent Sector
Cambridgeshire County Council,27-Apr-17,23110303-15235923,500,Olivemede Residential Home,Care Establishment,2 - Operations - Learning Disability,LDP Huntingdonshire Locality - Care,Residential Independent Sector
Cambridgeshire County Council,27-Apr-17,23110315-15235925,500,Olivemede Residential Home,Care Establishment,2 - Operations - Learning Disability,LDP Huntingdonshire Locality - Care,Residential Independent Sector
Cambridgeshire County Council,27-Apr-17,23101549-15253556,500,Woodfield Court,Care Establishment,2 - Commissioning - Older people Pool,East Cambs - O P Team,Residential Independent Sector
Cambridgeshire County Council,27-Apr-17,23101551-15253558,500,Woodfield Court,Care Establishment,2 - Commissioning - Older people Pool,East Cambs - O P Team,Residential Independent Sector
Cambridgeshire County Council,27-Apr-17,23111076-15253569,500,Epsom (Residential Care Only (La/Nhs))(66784),Care Establishment,2 - Commissioning - Older people Pool,Older People - Fenland,Residential Independent Sector
Cambridgeshire County Council,27-Apr-17,23107494-15250587,500,K Ravivaruman T/A Fair Haven Care Home,Care Establishment,2 - Commissioning - Older people Pool,East Cambs - O P Team,Residential Independent Sector
Cambridgeshire County Council,27-Apr-17,23107495-15250588,500,K Ravivaruman T/A Fair Haven Care Home,Care Establishment,2 - Commissioning - Older people Pool,East Cambs - O P Team,Residential Independent Sector
Cambridgeshire County Council,27-Apr-17,23109724-15251235,500,The Cambridge Nursing Centre,Care Establishment,2 - Commissioning - Older people Pool,East Cambs - O P Team,Residential Independent Sector
Cambridgeshire County Council,27-Apr-17,23099088-15234125,500.22,Home Meadow Ltd,Care Establishment,2 - Commissioning - Older people Pool,Older People - City & South,Residential Independent Sector
Cambridgeshire County Council,27-Apr-17,23108703-15234159,500.22,Home Meadow Ltd,Care Establishment,2 - Commissioning - Older people Pool,Older People - City & South,Residential Independent Sector
Cambridgeshire County Council,27-Apr-17,23114928-15234180,500.22,Home Meadow Ltd,Care Establishment,2 - Commissioning - Older people Pool,Older People - City & South,Residential Independent Sector
Cambridgeshire County Council,27-Apr-17,23114947-15234181,500.22,Home Meadow Ltd,Care Establishment,2 - Commissioning - Older people Pool,Older People - City & South,Residential Independent Sector
Cambridgeshire County Council,27-Apr-17,23099091-15234128,500.22,Home Meadow Ltd,Care Establishment,2 - Commissioning - Older people Pool,Older People - City & South,Residential Independent Sector
Cambridgeshire County Council,27-Apr-17,23108706-15234162,500.22,Home Meadow Ltd,Care Establishment,2 - Commissioning - Older people Pool,Older People - City & South,Residential Independent Sector
Cambridgeshire County Council,27-Apr-17,23112283-15234167,500.22,Home Meadow Ltd,Care Establishment,2 - Commissioning - Older people Pool,Older People - City & South,Residential Independent Sector
Cambridgeshire County Council,27-Apr-17,23117666-15234191,500.22,Home Meadow Ltd,Care Establishment,2 - Commissioning - Older people Pool,Older People - City & South,Residential Independent Sector
Cambridgeshire County Council,27-Apr-17,23099089-15234126,500.22,Home Meadow Ltd,Care Establishment,2 - Commissioning - Older people Pool,Older People - City & South,Residential Independent Sector
Cambridgeshire County Council,27-Apr-17,23114957-15234182,500.22,Home Meadow Ltd,Care Establishment,2 - Commissioning - Older people Pool,Older People - City & South,Residential Independent Sector
Cambridgeshire County Council,27-Apr-17,23112286-15234170,500.22,Home Meadow Ltd,Care Establishment,2 - Commissioning - Older people Pool,Older People - City & South,Residential Independent Sector
Cambridgeshire County Council,27-Apr-17,23112285-15234169,500.22,Home Meadow Ltd,Care Establishment,2 - Commissioning - Older people Pool,Older People - City & South,Residential Independent Sector
Cambridgeshire County Council,27-Apr-17,23114959-15234183,500.22,Home Meadow Ltd,Care Establishment,2 - Commissioning - Older people Pool,Older People - City & South,Residential Independent Sector
Cambridgeshire County Council,27-Apr-17,23117665-15234190,500.22,Home Meadow Ltd,Care Establishment,2 - Commissioning - Older people Pool,Older People - City & South,Residential Independent Sector
Cambridgeshire County Council,27-Apr-17,23108704-15234160,500.22,Home Meadow Ltd,Care Establishment,2 - Commissioning - Older people Pool,Older People - City & South,Residential Independent Sector
Cambridgeshire County Council,27-Apr-17,23112284-15234168,500.22,Home Meadow Ltd,Care Establishment,2 - Commissioning - Older people Pool,Older People - City & South,Residential Independent Sector
